{"text_format":"1","workbook":"xlsx","n_sheets":13,"sheets":["Index","Summary","Refri&Freezer","RTMDs_WICRs","RTMD_Refrigerators","Training","DroDown","Spares, TMDs & VRs","PMT Contact Details","PMT_briefings","Customs","Deviation Protocol","Plugs"],"not_rendered":{"charts":0,"images":3,"macros":1,"external_links":0,"defined_names":8,"comments":0,"pivot_tables":5},"unopened":[],"bounds":{"document_bytes":16777216,"sheet_cells":100000,"rows_first":2000,"rows_last":500,"rows_between":2000,"halvings":0,"cell_chars":16384,"cell_head_chars":4096},"cells_cut":0,"cells_raw":0,"read":"whole","date_system":"1900"}

{"sheet":"Index","index":0,"n_rows":26,"n_cols":4,"rows_kept":26,"cut":false,"hidden":false,"merged":[[1,1,1,3]]}
[]
[null,"Cold Chain Equipment Optimization Platform: Operational Deployment Plan"]
[]
[null,"Index page","Click the link","Note"]
[1,"Summary","Link to Summary","Use this worksheet to get a summary statistical information on the data you entered."]
[2,"Refrigerators and Freezers","Refrigerator and Freezer","Use this worksheet to submit requests for Refrigerators, freezers and RTMDs."]
[3,"RTMD for existing WICRs/WIFRs","RTMDs WICRs/FRs","Use this worksheet to submit RTMDs requests for existing WICRs/FRs."]
[4,"RTMD for existing Refrigerators and Freezers","RTMD Refrigerators & Freezers","Use this worksheet for RTMD requests for existing refrigerators and freezers."]
[5,"Refrigerators, freezers & RTMDs: Installation, maintenance and repair training","Training","Use this worksheet to provide information on training needs for refrigerators, freezers, and RTMDs."]
[6,"Additional items: Spare parts, TMD, VR","Spares, TMDs & VRs","Use this worksheet in order to request spare parts, freeze-free cold boxes and vaccine carriers, voltage regulators, as well as temperature monitoring devices."]
[7,"PMT contact details","PMT Contact Details","Use this worksheet to submit PMT contact details."]
[8,"PMT project introduction participants","PMT briefings","Use this worksheet to submit PMT project introduction participants."]
[9,"Local Customs Documentation & Requirements","Customs","Use this worksheet to submit Local Customs Documentation & Requirements."]
[10,"Deviation Protocol","Deviation Protocol","Use this worksheet to submit Deviation Protocol."]
[11,"Plug type reference","Plugs type","Use this worksheet to refer to plug type."]
[null,"Version: CCEOP_ ODP_Eng_V2.3_10 March 2022"]
[null,"Contact either Gavi or UNICEF if you need support:","Gavi: Jalia Nanfuka, jnanfuka@gavi.org","UNICEF SD: Hailu M KENEA hkenea@unicef.org"]
[]
[null,"Abbreviations"]
[]
[null,"PMT:","Project Management Team"]
[null,"RTMD:","Remote Temperature Monitoring Device"]
[null,"TMD:","Temperature Monitoring Device"]
[null,"VR:","Voltage Regulator"]
[null,"WICRs:","Walk-in Cold Rooms"]
[null,"WIFRs:","Walk-in Freezer Rooms"]

{"sheet":"Summary","index":1,"n_rows":110,"n_cols":12,"rows_kept":110,"cut":false,"hidden":false,"merged":[[1,4,1,8],[2,4,2,8],[0,2,0,8],[1,2,1,3],[2,2,2,3]]}
[null,"Back to Index page","If auto pivot table refresh does not work:"]
[null,null,"Manual refresh all pivot table: ",null,"Select data tab  and select refresh all"]
[null,null,"Manual refresh individual pivot table: ",null,"Right-click on any cell in the Pivot Table and Select Refresh."]
[null,null,null,null,"Unhde row raw data if full summary is not visible"]
[null,"1. Summary refrigerators and freezers"]
[]
[null,"Power source","Type","CCE Manufacturer","CCE Model","Voltage supply","Plug type","Panel mounting type","RTMD required?","RTMD  Manufacturer and model","Supplier-led RTMD Installation required?","Qty."]
[null,"(blank)","(blank)","(blank)","(blank)","(blank)","(blank)","(blank)","No","(blank)","(blank)"]
[null,null,null,null,null,null,null,null,"Yes","(blank)","(blank)"]
[null,null,null,null,null,null,null,null,"(blank)","(blank)","(blank)"]
[null,"(blank) Total"]
[null,"Grand Total"]
[]
[]
[]
[]
[]
[]
[]
[]
[]
[]
[]
[]
[]
[]
[]
[]
[]
[]
[]
[]
[]
[]
[]
[]
[]
[]
[]
[null,"2. Summary RTMD for existing WICR/FR"]
[]
[null,"RTMD  Manufacturer and model","Indicate plug type","Voltage supply","Frequency","SIM card type to be used with RTMD","Mobile reception (2G and above /GSM) available","Preferred dashboard language","Supplier-led RTMD Installation required?","Supplier-led RTMD central or remote training required?","Qty"]
[null,"(blank)","(blank)","(blank)","(blank)","(blank)","(blank)","(blank)","(blank)","(blank)"]
[null,"Grand Total"]
[]
[]
[]
[]
[]
[]
[]
[]
[]
[]
[]
[]
[]
[]
[]
[]
[]
[null,"3. Summary RTMD for existing Refrigerators and freezers"]
[]
[null,"RTMD  Manufacturer and model","Plug type","Voltage supply","Frequency","SIM card type","Mobile reception (2G and above /GSM) available","Preferred dashboard language","Supplier-led RTMD Installation required?","Supplier-led RTMD central or remote training required?","Qty."]
[null,"(blank)","(blank)","(blank)","(blank)","(blank)","(blank)","(blank)","(blank)","(blank)"]
[null,"Grand Total"]
[]
[]
[]
[]
[]
[]
[]
[]
[]
[]
[]
[]
[]
[]
[]
[]
[]
[]
[null,"4. Summary refrigerator and freezer installation, maintenance and repair training"]
[]
[null,"Type of Training","Training Language","Implementation year 1","1st training # of participants","Implementation year 2","2nd training: # of participants","1st number of  training ","2nd number of  training"]
[null,"In-person refrigerators and freezers installation, maintenance, and repair Central Training (ToT).","(blank)","(blank)","(blank)","(blank)","(blank)",0,0]
[null,"In-person RTMD system, technician and general  Central training on WICRs/WIFRs.","(blank)","(blank)","(blank)","(blank)","(blank)",0,0]
[null,"In-person RTMD system, technician and general  trainings on Refrigerators and freezers ( ToT).","(blank)","(blank)","(blank)","(blank)","(blank)",0,0]
[null,"Remote RTMD system, technician and general  Central training on WICRs/WIFRs.","(blank)","(blank)","(blank)","(blank)","(blank)",0,0]
[null,"Remote RTMD system, technician and general  trainings on Refrigerators and freezers.","(blank)","(blank)","(blank)","(blank)","(blank)",0,0]
[null,"Grand Total",null,null,null,null,null,0,0]
[]
[]
[]
[]
[]
[]
[]
[]
[]
[]
[]
[]
[null,"5. Summary: additional items such as spare parts, freeze-preventive cold boxes, freeze-preventive vaccine carriers, voltage regulators, TMDs, etc."]
[]
[null,"Description/ Type","Manufacturer","Model","PQS code","unit of measurment","Qty."]
[null,"(blank)","(blank)","(blank)","(blank)","(blank)"]
[null,"Grand Total"]

{"sheet":"Refri&Freezer","index":2,"n_rows":2772,"n_cols":41,"rows_kept":2772,"cut":false,"hidden":false,"merged":[[1,5,1,10],[1,12,1,15],[1,0,1,3],[3,31,3,37],[3,1,3,7],[3,17,3,24],[3,8,3,16],[3,25,3,30]]}
[]
["Back to Index page",null,null,null,"Country: ",null,null,null,null,null,null,"Date [dd/mm/yyyy]:"]
[]
[null,"Facility BACIS DATA",null,null,null,null,null,null,"CCE  DESIGNATED",null,null,null,null,null,null,null,null,"SITE ACCESSIBILITY",null,null,null,null,null,null,null,"SITE READINESS",null,null,null,null,null,"RTMD   ",null,null,null,null,null,null,null,"END USER TRAINING"]
["#","Supply Chain Level (where equipment is needed)","Region/ Province/States","District","Facility Name","Facility Address","Officer in Charge (OIC)  Name","Contact Number (mobile) of the OIC","Reason for deployment","Number of  functional CCE already installed at HF","Number of CCE at HF to be replaced","CCE Manufacturer","CCE Model","Type (refrigerator, Combo or freezer)","Power source (SDD or ON-grid)","Storage volume Category: \nOn-grid & SDD refrigerators:<60L, ≥60, <120L,  ≥120L;\nOn-grid Vaccine/waterpack freezer: <150L, <150L gross, ≥150L gross;\nOn-grid Combined refr/frzr: ≤60L;\nSDD Waterpack freezer: <120L gross\nSDD Combined rfr/frzr: <60, ≥60, <120L;","QTY\n(per / HF)","Is the site fully accessible by road?","Distance (km) from district hub","Rate the quality of road to the site (Category Examples Below)","Special access needs (Category Examples Below)","Other Special Access Needs (If Applicable)","List any months when the site is not accessible (e.g. Monsoon)","GPS Coordinates (Latitude)\n[optional]","GPS Coordinates (Longitude)\n[Optional]","Type of Roof","Indicate if the designated CCE will fit through the door of the building","FOR SDD only- Type of panel mounting required ","Indicate plug type","Voltage supply","Frequency","RTMD required ?  [Yes,No]","If RTMD required, [Integrated, Sandalone,  Any]","RTMD  Manufacturer and model","SIM card type to be used with RTMD. [Global/Local]","Is mobile reception (2G/GSM or above) available inside the building where the RTM system will be installed? [Yes/No] ","Preferred dashboard language [select from dropdown list]","Supplier-led RTMD Installation required? [Yes/No]","Supplier-led RTMD central or remote training required? [Yes/no]; If,  Yes, proceed to complete sheet, \"Trainings\"","Number of staff to be trained on site by supplier on CCE and or  RTMD preventive mainteance  and usage","Year of CCEOP approval"]
[1,null,null,null,null,null,null,null,null,null,null,null,null,null,null,null,null,null,null,null,null,null,null,null,null,null,null,null,null,null,null,"No"]
[2,null,null,null,null,null,null,null,null,null,null,null,null,null,null,null,null,null,null,null,null,null,null,null,null,null,null,null,null,null,null,"Yes","Integrated"]
[3,null,null,null,null,null,null,null,null,null,null,null,null,null,null,null,null,null,null,null,null,null,null,null,null,null,null,null,null,null,null,"Yes","Any"]
[4]
[5]
[6]
[7]
[8]
[9]
[10]
[11]
[12]
[13]
[14]
[15]
[16]
[17]
[18]
[19]
[20]
[21]
[22]
[23]
[24]
[25]
[26]
[27]
[28]
[29]
[30]
[31]
[32]
[33]
[34]
[35]
[36]
[37]
[38]
[39]
[40]
[41]
[42]
[43]
[44]
[45]
[46]
[47]
[48]
[49]
[50]
[51]
[52]
[53]
[54]
[55]
[56]
[57]
[58]
[59]
[60]
[61]
[62]
[63]
[64]
[65]
[66]
[67]
[68]
[69]
[70]
[71]
[72]
[73]
[74]
[75]
[76]
[77]
[78]
[79]
[80]
[81]
[82]
[83]
[84]
[85]
[86]
[87]
[88]
[89]
[90]
[91]
[92]
[93]
[94]
[95]
[96]
[97]
[98]
[99]
[100]
[101]
[102]
[103]
[104]
[105]
[106]
[107]
[108]
[109]
[110]
[111]
[112]
[113]
[114]
[115]
[116]
[117]
[118]
[119]
[120]
[121]
[122]
[123]
[124]
[125]
[126]
[127]
[128]
[129]
[130]
[131]
[132]
[133]
[134]
[135]
[136]
[137]
[138]
[139]
[140]
[141]
[142]
[143]
[144]
[145]
[146]
[147]
[148]
[149]
[150]
[151]
[152]
[153]
[154]
[155]
[156]
[157]
[158]
[159]
[160]
[161]
[162]
[163]
[164]
[165]
[166]
[167]
[168]
[169]
[170]
[171]
[172]
[173]
[174]
[175]
[176]
[177]
[178]
[179]
[180]
[181]
[182]
[183]
[184]
[185]
[186]
[187]
[188]
[189]
[190]
[191]
[192]
[193]
[194]
[195]
[196]
[197]
[198]
[199]
[200]
[201]
[202]
[203]
[204]
[205]
[206]
[207]
[208]
[209]
[210]
[211]
[212]
[213]
[214]
[215]
[216]
[217]
[218]
[219]
[220]
[221]
[222]
[223]
[224]
[225]
[226]
[227]
[228]
[229]
[230]
[231]
[232]
[233]
[234]
[235]
[236]
[237]
[238]
[239]
[240]
[241]
[242]
[243]
[244]
[245]
[246]
[247]
[248]
[249]
[250]
[251]
[252]
[253]
[254]
[255]
[256]
[257]
[258]
[259]
[260]
[261]
[262]
[263]
[264]
[265]
[266]
[267]
[268]
[269]
[270]
[271]
[272]
[273]
[274]
[275]
[276]
[277]
[278]
[279]
[280]
[281]
[282]
[283]
[284]
[285]
[286]
[287]
[288]
[289]
[290]
[291]
[292]
[293]
[294]
[295]
[296]
[297]
[298]
[299]
[300]
[301]
[302]
[303]
[304]
[305]
[306]
[307]
[308]
[309]
[310]
[311]
[312]
[313]
[314]
[315]
[316]
[317]
[318]
[319]
[320]
[321]
[322]
[323]
[324]
[325]
[326]
[327]
[328]
[329]
[330]
[331]
[332]
[333]
[334]
[335]
[336]
[337]
[338]
[339]
[340]
[341]
[342]
[343]
[344]
[345]
[346]
[347]
[348]
[349]
[350]
[351]
[352]
[353]
[354]
[355]
[356]
[357]
[358]
[359]
[360]
[361]
[362]
[363]
[364]
[365]
[366]
[367]
[368]
[369]
[370]
[371]
[372]
[373]
[374]
[375]
[376]
[377]
[378]
[379]
[380]
[381]
[382]
[383]
[384]
[385]
[386]
[387]
[388]
[389]
[390]
[391]
[392]
[393]
[394]
[395]
[396]
[397]
[398]
[399]
[400]
[401]
[402]
[403]
[404]
[405]
[406]
[407]
[408]
[409]
[410]
[411]
[412]
[413]
[414]
[415]
[416]
[417]
[418]
[419]
[420]
[421]
[422]
[423]
[424]
[425]
[426]
[427]
[428]
[429]
[430]
[431]
[432]
[433]
[434]
[435]
[436]
[437]
[438]
[439]
[440]
[441]
[442]
[443]
[444]
[445]
[446]
[447]
[448]
[449]
[450]
[451]
[452]
[453]
[454]
[455]
[456]
[457]
[458]
[459]
[460]
[461]
[462]
[463]
[464]
[465]
[466]
[467]
[468]
[469]
[470]
[471]
[472]
[473]
[474]
[475]
[476]
[477]
[478]
[479]
[480]
[481]
[482]
[483]
[484]
[485]
[486]
[487]
[488]
[489]
[490]
[491]
[492]
[493]
[494]
[495]
[496]
[497]
[498]
[499]
[500]
[501]
[502]
[503]
[504]
[505]
[506]
[507]
[508]
[509]
[510]
[511]
[512]
[513]
[514]
[515]
[516]
[517]
[518]
[519]
[520]
[521]
[522]
[523]
[524]
[525]
[526]
[527]
[528]
[529]
[530]
[531]
[532]
[533]
[534]
[535]
[536]
[537]
[538]
[539]
[540]
[541]
[542]
[543]
[544]
[545]
[546]
[547]
[548]
[549]
[550]
[551]
[552]
[553]
[554]
[555]
[556]
[557]
[558]
[559]
[560]
[561]
[562]
[563]
[564]
[565]
[566]
[567]
[568]
[569]
[570]
[571]
[572]
[573]
[574]
[575]
[576]
[577]
[578]
[579]
[580]
[581]
[582]
[583]
[584]
[585]
[586]
[587]
[588]
[589]
[590]
[591]
[592]
[593]
[594]
[595]
[596]
[597]
[598]
[599]
[600]
[601]
[602]
[603]
[604]
[605]
[606]
[607]
[608]
[609]
[610]
[611]
[612]
[613]
[614]
[615]
[616]
[617]
[618]
[619]
[620]
[621]
[622]
[623]
[624]
[625]
[626]
[627]
[628]
[629]
[630]
[631]
[632]
[633]
[634]
[635]
[636]
[637]
[638]
[639]
[640]
[641]
[642]
[643]
[644]
[645]
[646]
[647]
[648]
[649]
[650]
[651]
[652]
[653]
[654]
[655]
[656]
[657]
[658]
[659]
[660]
[661]
[662]
[663]
[664]
[665]
[666]
[667]
[668]
[669]
[670]
[671]
[672]
[673]
[674]
[675]
[676]
[677]
[678]
[679]
[680]
[681]
[682]
[683]
[684]
[685]
[686]
[687]
[688]
[689]
[690]
[691]
[692]
[693]
[694]
[695]
[696]
[697]
[698]
[699]
[700]
[701]
[702]
[703]
[704]
[705]
[706]
[707]
[708]
[709]
[710]
[711]
[712]
[713]
[714]
[715]
[716]
[717]
[718]
[719]
[720]
[721]
[722]
[723]
[724]
[725]
[726]
[727]
[728]
[729]
[730]
[731]
[732]
[733]
[734]
[735]
[736]
[737]
[738]
[739]
[740]
[741]
[742]
[743]
[744]
[745]
[746]
[747]
[748]
[749]
[750]
[751]
[752]
[753]
[754]
[755]
[756]
[757]
[758]
[759]
[760]
[761]
[762]
[763]
[764]
[765]
[766]
[767]
[768]
[769]
[770]
[771]
[772]
[773]
[774]
[775]
[776]
[777]
[778]
[779]
[780]
[781]
[782]
[783]
[784]
[785]
[786]
[787]
[788]
[789]
[790]
[791]
[792]
[793]
[794]
[795]
[796]
[797]
[798]
[799]
[800]
[801]
[802]
[803]
[804]
[805]
[806]
[807]
[808]
[809]
[810]
[811]
[812]
[813]
[814]
[815]
[816]
[817]
[818]
[819]
[820]
[821]
[822]
[823]
[824]
[825]
[826]
[827]
[828]
[829]
[830]
[831]
[832]
[833]
[834]
[835]
[836]
[837]
[838]
[839]
[840]
[841]
[842]
[843]
[844]
[845]
[846]
[847]
[848]
[849]
[850]
[851]
[852]
[853]
[854]
[855]
[856]
[857]
[858]
[859]
[860]
[861]
[862]
[863]
[864]
[865]
[866]
[867]
[868]
[869]
[870]
[871]
[872]
[873]
[874]
[875]
[876]
[877]
[878]
[879]
[880]
[881]
[882]
[883]
[884]
[885]
[886]
[887]
[888]
[889]
[890]
[891]
[892]
[893]
[894]
[895]
[896]
[897]
[898]
[899]
[900]
[901]
[902]
[903]
[904]
[905]
[906]
[907]
[908]
[909]
[910]
[911]
[912]
[913]
[914]
[915]
[916]
[917]
[918]
[919]
[920]
[921]
[922]
[923]
[924]
[925]
[926]
[927]
[928]
[929]
[930]
[931]
[932]
[933]
[934]
[935]
[936]
[937]
[938]
[939]
[940]
[941]
[942]
[943]
[944]
[945]
[946]
[947]
[948]
[949]
[950]
[951]
[952]
[953]
[954]
[955]
[956]
[957]
[958]
[959]
[960]
[961]
[962]
[963]
[964]
[965]
[966]
[967]
[968]
[969]
[970]
[971]
[972]
[973]
[974]
[975]
[976]
[977]
[978]
[979]
[980]
[981]
[982]
[983]
[984]
[985]
[986]
[987]
[988]
[989]
[990]
[991]
[992]
[993]
[994]
[995]
[996]
[997]
[998]
[999]
[1000]
[1001]
[1002]
[1003]
[1004]
[1005]
[1006]
[1007]
[1008]
[1009]
[1010]
[1011]
[1012]
[1013]
[1014]
[1015]
[1016]
[1017]
[1018]
[1019]
[1020]
[1021]
[1022]
[1023]
[1024]
[1025]
[1026]
[1027]
[1028]
[1029]
[1030]
[1031]
[1032]
[1033]
[1034]
[1035]
[1036]
[1037]
[1038]
[1039]
[1040]
[1041]
[1042]
[1043]
[1044]
[1045]
[1046]
[1047]
[1048]
[1049]
[1050]
[1051]
[1052]
[1053]
[1054]
[1055]
[1056]
[1057]
[1058]
[1059]
[1060]
[1061]
[1062]
[1063]
[1064]
[1065]
[1066]
[1067]
[1068]
[1069]
[1070]
[1071]
[1072]
[1073]
[1074]
[1075]
[1076]
[1077]
[1078]
[1079]
[1080]
[1081]
[1082]
[1083]
[1084]
[1085]
[1086]
[1087]
[1088]
[1089]
[1090]
[1091]
[1092]
[1093]
[1094]
[1095]
[1096]
[1097]
[1098]
[1099]
[1100]
[1101]
[1102]
[1103]
[1104]
[1105]
[1106]
[1107]
[1108]
[1109]
[1110]
[1111]
[1112]
[1113]
[1114]
[1115]
[1116]
[1117]
[1118]
[1119]
[1120]
[1121]
[1122]
[1123]
[1124]
[1125]
[1126]
[1127]
[1128]
[1129]
[1130]
[1131]
[1132]
[1133]
[1134]
[1135]
[1136]
[1137]
[1138]
[1139]
[1140]
[1141]
[1142]
[1143]
[1144]
[1145]
[1146]
[1147]
[1148]
[1149]
[1150]
[1151]
[1152]
[1153]
[1154]
[1155]
[1156]
[1157]
[1158]
[1159]
[1160]
[1161]
[1162]
[1163]
[1164]
[1165]
[1166]
[1167]
[1168]
[1169]
[1170]
[1171]
[1172]
[1173]
[1174]
[1175]
[1176]
[1177]
[1178]
[1179]
[1180]
[1181]
[1182]
[1183]
[1184]
[1185]
[1186]
[1187]
[1188]
[1189]
[1190]
[1191]
[1192]
[1193]
[1194]
[1195]
[1196]
[1197]
[1198]
[1199]
[1200]
[1201]
[1202]
[1203]
[1204]
[1205]
[1206]
[1207]
[1208]
[1209]
[1210]
[1211]
[1212]
[1213]
[1214]
[1215]
[1216]
[1217]
[1218]
[1219]
[1220]
[1221]
[1222]
[1223]
[1224]
[1225]
[1226]
[1227]
[1228]
[1229]
[1230]
[1231]
[1232]
[1233]
[1234]
[1235]
[1236]
[1237]
[1238]
[1239]
[1240]
[1241]
[1242]
[1243]
[1244]
[1245]
[1246]
[1247]
[1248]
[1249]
[1250]
[1251]
[1252]
[1253]
[1254]
[1255]
[1256]
[1257]
[1258]
[1259]
[1260]
[1261]
[1262]
[1263]
[1264]
[1265]
[1266]
[1267]
[1268]
[1269]
[1270]
[1271]
[1272]
[1273]
[1274]
[1275]
[1276]
[1277]
[1278]
[1279]
[1280]
[1281]
[1282]
[1283]
[1284]
[1285]
[1286]
[1287]
[1288]
[1289]
[1290]
[1291]
[1292]
[1293]
[1294]
[1295]
[1296]
[1297]
[1298]
[1299]
[1300]
[1301]
[1302]
[1303]
[1304]
[1305]
[1306]
[1307]
[1308]
[1309]
[1310]
[1311]
[1312]
[1313]
[1314]
[1315]
[1316]
[1317]
[1318]
[1319]
[1320]
[1321]
[1322]
[1323]
[1324]
[1325]
[1326]
[1327]
[1328]
[1329]
[1330]
[1331]
[1332]
[1333]
[1334]
[1335]
[1336]
[1337]
[1338]
[1339]
[1340]
[1341]
[1342]
[1343]
[1344]
[1345]
[1346]
[1347]
[1348]
[1349]
[1350]
[1351]
[1352]
[1353]
[1354]
[1355]
[1356]
[1357]
[1358]
[1359]
[1360]
[1361]
[1362]
[1363]
[1364]
[1365]
[1366]
[1367]
[1368]
[1369]
[1370]
[1371]
[1372]
[1373]
[1374]
[1375]
[1376]
[1377]
[1378]
[1379]
[1380]
[1381]
[1382]
[1383]
[1384]
[1385]
[1386]
[1387]
[1388]
[1389]
[1390]
[1391]
[1392]
[1393]
[1394]
[1395]
[1396]
[1397]
[1398]
[1399]
[1400]
[1401]
[1402]
[1403]
[1404]
[1405]
[1406]
[1407]
[1408]
[1409]
[1410]
[1411]
[1412]
[1413]
[1414]
[1415]
[1416]
[1417]
[1418]
[1419]
[1420]
[1421]
[1422]
[1423]
[1424]
[1425]
[1426]
[1427]
[1428]
[1429]
[1430]
[1431]
[1432]
[1433]
[1434]
[1435]
[1436]
[1437]
[1438]
[1439]
[1440]
[1441]
[1442]
[1443]
[1444]
[1445]
[1446]
[1447]
[1448]
[1449]
[1450]
[1451]
[1452]
[1453]
[1454]
[1455]
[1456]
[1457]
[1458]
[1459]
[1460]
[1461]
[1462]
[1463]
[1464]
[1465]
[1466]
[1467]
[1468]
[1469]
[1470]
[1471]
[1472]
[1473]
[1474]
[1475]
[1476]
[1477]
[1478]
[1479]
[1480]
[1481]
[1482]
[1483]
[1484]
[1485]
[1486]
[1487]
[1488]
[1489]
[1490]
[1491]
[1492]
[1493]
[1494]
[1495]
[1496]
[1497]
[1498]
[1499]
[1500]
[1501]
[1502]
[1503]
[1504]
[1505]
[1506]
[1507]
[1508]
[1509]
[1510]
[1511]
[1512]
[1513]
[1514]
[1515]
[1516]
[1517]
[1518]
[1519]
[1520]
[1521]
[1522]
[1523]
[1524]
[1525]
[1526]
[1527]
[1528]
[1529]
[1530]
[1531]
[1532]
[1533]
[1534]
[1535]
[1536]
[1537]
[1538]
[1539]
[1540]
[1541]
[1542]
[1543]
[1544]
[1545]
[1546]
[1547]
[1548]
[1549]
[1550]
[1551]
[1552]
[1553]
[1554]
[1555]
[1556]
[1557]
[1558]
[1559]
[1560]
[1561]
[1562]
[1563]
[1564]
[1565]
[1566]
[1567]
[1568]
[1569]
[1570]
[1571]
[1572]
[1573]
[1574]
[1575]
[1576]
[1577]
[1578]
[1579]
[1580]
[1581]
[1582]
[1583]
[1584]
[1585]
[1586]
[1587]
[1588]
[1589]
[1590]
[1591]
[1592]
[1593]
[1594]
[1595]
[1596]
[1597]
[1598]
[1599]
[1600]
[1601]
[1602]
[1603]
[1604]
[1605]
[1606]
[1607]
[1608]
[1609]
[1610]
[1611]
[1612]
[1613]
[1614]
[1615]
[1616]
[1617]
[1618]
[1619]
[1620]
[1621]
[1622]
[1623]
[1624]
[1625]
[1626]
[1627]
[1628]
[1629]
[1630]
[1631]
[1632]
[1633]
[1634]
[1635]
[1636]
[1637]
[1638]
[1639]
[1640]
[1641]
[1642]
[1643]
[1644]
[1645]
[1646]
[1647]
[1648]
[1649]
[1650]
[1651]
[1652]
[1653]
[1654]
[1655]
[1656]
[1657]
[1658]
[1659]
[1660]
[1661]
[1662]
[1663]
[1664]
[1665]
[1666]
[1667]
[1668]
[1669]
[1670]
[1671]
[1672]
[1673]
[1674]
[1675]
[1676]
[1677]
[1678]
[1679]
[1680]
[1681]
[1682]
[1683]
[1684]
[1685]
[1686]
[1687]
[1688]
[1689]
[1690]
[1691]
[1692]
[1693]
[1694]
[1695]
[1696]
[1697]
[1698]
[1699]
[1700]
[1701]
[1702]
[1703]
[1704]
[1705]
[1706]
[1707]
[1708]
[1709]
[1710]
[1711]
[1712]
[1713]
[1714]
[1715]
[1716]
[1717]
[1718]
[1719]
[1720]
[1721]
[1722]
[1723]
[1724]
[1725]
[1726]
[1727]
[1728]
[1729]
[1730]
[1731]
[1732]
[1733]
[1734]
[1735]
[1736]
[1737]
[1738]
[1739]
[1740]
[1741]
[1742]
[1743]
[1744]
[1745]
[1746]
[1747]
[1748]
[1749]
[1750]
[1751]
[1752]
[1753]
[1754]
[1755]
[1756]
[1757]
[1758]
[1759]
[1760]
[1761]
[1762]
[1763]
[1764]
[1765]
[1766]
[1767]
[1768]
[1769]
[1770]
[1771]
[1772]
[1773]
[1774]
[1775]
[1776]
[1777]
[1778]
[1779]
[1780]
[1781]
[1782]
[1783]
[1784]
[1785]
[1786]
[1787]
[1788]
[1789]
[1790]
[1791]
[1792]
[1793]
[1794]
[1795]
[1796]
[1797]
[1798]
[1799]
[1800]
[1801]
[1802]
[1803]
[1804]
[1805]
[1806]
[1807]
[1808]
[1809]
[1810]
[1811]
[1812]
[1813]
[1814]
[1815]
[1816]
[1817]
[1818]
[1819]
[1820]
[1821]
[1822]
[1823]
[1824]
[1825]
[1826]
[1827]
[1828]
[1829]
[1830]
[1831]
[1832]
[1833]
[1834]
[1835]
[1836]
[1837]
[1838]
[1839]
[1840]
[1841]
[1842]
[1843]
[1844]
[1845]
[1846]
[1847]
[1848]
[1849]
[1850]
[1851]
[1852]
[1853]
[1854]
[1855]
[1856]
[1857]
[1858]
[1859]
[1860]
[1861]
[1862]
[1863]
[1864]
[1865]
[1866]
[1867]
[1868]
[1869]
[1870]
[1871]
[1872]
[1873]
[1874]
[1875]
[1876]
[1877]
[1878]
[1879]
[1880]
[1881]
[1882]
[1883]
[1884]
[1885]
[1886]
[1887]
[1888]
[1889]
[1890]
[1891]
[1892]
[1893]
[1894]
[1895]
[1896]
[1897]
[1898]
[1899]
[1900]
[1901]
[1902]
[1903]
[1904]
[1905]
[1906]
[1907]
[1908]
[1909]
[1910]
[1911]
[1912]
[1913]
[1914]
[1915]
[1916]
[1917]
[1918]
[1919]
[1920]
[1921]
[1922]
[1923]
[1924]
[1925]
[1926]
[1927]
[1928]
[1929]
[1930]
[1931]
[1932]
[1933]
[1934]
[1935]
[1936]
[1937]
[1938]
[1939]
[1940]
[1941]
[1942]
[1943]
[1944]
[1945]
[1946]
[1947]
[1948]
[1949]
[1950]
[1951]
[1952]
[1953]
[1954]
[1955]
[1956]
[1957]
[1958]
[1959]
[1960]
[1961]
[1962]
[1963]
[1964]
[1965]
[1966]
[1967]
[1968]
[1969]
[1970]
[1971]
[1972]
[1973]
[1974]
[1975]
[1976]
[1977]
[1978]
[1979]
[1980]
[1981]
[1982]
[1983]
[1984]
[1985]
[1986]
[1987]
[1988]
[1989]
[1990]
[1991]
[1992]
[1993]
[1994]
[1995]
[1996]
[1997]
[1998]
[1999]
[2000]
[2001]
[2002]
[2003]
[2004]
[2005]
[2006]
[2007]
[2008]
[2009]
[2010]
[2011]
[2012]
[2013]
[2014]
[2015]
[2016]
[2017]
[2018]
[2019]
[2020]
[2021]
[2022]
[2023]
[2024]
[2025]
[2026]
[2027]
[2028]
[2029]
[2030]
[2031]
[2032]
[2033]
[2034]
[2035]
[2036]
[2037]
[2038]
[2039]
[2040]
[2041]
[2042]
[2043]
[2044]
[2045]
[2046]
[2047]
[2048]
[2049]
[2050]
[2051]
[2052]
[2053]
[2054]
[2055]
[2056]
[2057]
[2058]
[2059]
[2060]
[2061]
[2062]
[2063]
[2064]
[2065]
[2066]
[2067]
[2068]
[2069]
[2070]
[2071]
[2072]
[2073]
[2074]
[2075]
[2076]
[2077]
[2078]
[2079]
[2080]
[2081]
[2082]
[2083]
[2084]
[2085]
[2086]
[2087]
[2088]
[2089]
[2090]
[2091]
[2092]
[2093]
[2094]
[2095]
[2096]
[2097]
[2098]
[2099]
[2100]
[2101]
[2102]
[2103]
[2104]
[2105]
[2106]
[2107]
[2108]
[2109]
[2110]
[2111]
[2112]
[2113]
[2114]
[2115]
[2116]
[2117]
[2118]
[2119]
[2120]
[2121]
[2122]
[2123]
[2124]
[2125]
[2126]
[2127]
[2128]
[2129]
[2130]
[2131]
[2132]
[2133]
[2134]
[2135]
[2136]
[2137]
[2138]
[2139]
[2140]
[2141]
[2142]
[2143]
[2144]
[2145]
[2146]
[2147]
[2148]
[2149]
[2150]
[2151]
[2152]
[2153]
[2154]
[2155]
[2156]
[2157]
[2158]
[2159]
[2160]
[2161]
[2162]
[2163]
[2164]
[2165]
[2166]
[2167]
[2168]
[2169]
[2170]
[2171]
[2172]
[2173]
[2174]
[2175]
[2176]
[2177]
[2178]
[2179]
[2180]
[2181]
[2182]
[2183]
[2184]
[2185]
[2186]
[2187]
[2188]
[2189]
[2190]
[2191]
[2192]
[2193]
[2194]
[2195]
[2196]
[2197]
[2198]
[2199]
[2200]
[2201]
[2202]
[2203]
[2204]
[2205]
[2206]
[2207]
[2208]
[2209]
[2210]
[2211]
[2212]
[2213]
[2214]
[2215]
[2216]
[2217]
[2218]
[2219]
[2220]
[2221]
[2222]
[2223]
[2224]
[2225]
[2226]
[2227]
[2228]
[2229]
[2230]
[2231]
[2232]
[2233]
[2234]
[2235]
[2236]
[2237]
[2238]
[2239]
[2240]
[2241]
[2242]
[2243]
[2244]
[2245]
[2246]
[2247]
[2248]
[2249]
[2250]
[2251]
[2252]
[2253]
[2254]
[2255]
[2256]
[2257]
[2258]
[2259]
[2260]
[2261]
[2262]
[2263]
[2264]
[2265]
[2266]
[2267]
[2268]
[2269]
[2270]
[2271]
[2272]
[2273]
[2274]
[2275]
[2276]
[2277]
[2278]
[2279]
[2280]
[2281]
[2282]
[2283]
[2284]
[2285]
[2286]
[2287]
[2288]
[2289]
[2290]
[2291]
[2292]
[2293]
[2294]
[2295]
[2296]
[2297]
[2298]
[2299]
[2300]
[2301]
[2302]
[2303]
[2304]
[2305]
[2306]
[2307]
[2308]
[2309]
[2310]
[2311]
[2312]
[2313]
[2314]
[2315]
[2316]
[2317]
[2318]
[2319]
[2320]
[2321]
[2322]
[2323]
[2324]
[2325]
[2326]
[2327]
[2328]
[2329]
[2330]
[2331]
[2332]
[2333]
[2334]
[2335]
[2336]
[2337]
[2338]
[2339]
[2340]
[2341]
[2342]
[2343]
[2344]
[2345]
[2346]
[2347]
[2348]
[2349]
[2350]
[2351]
[2352]
[2353]
[2354]
[2355]
[2356]
[2357]
[2358]
[2359]
[2360]
[2361]
[2362]
[2363]
[2364]
[2365]
[2366]
[2367]
[2368]
[2369]
[2370]
[2371]
[2372]
[2373]
[2374]
[2375]
[2376]
[2377]
[2378]
[2379]
[2380]
[2381]
[2382]
[2383]
[2384]
[2385]
[2386]
[2387]
[2388]
[2389]
[2390]
[2391]
[2392]
[2393]
[2394]
[2395]
[2396]
[2397]
[2398]
[2399]
[2400]
[2401]
[2402]
[2403]
[2404]
[2405]
[2406]
[2407]
[2408]
[2409]
[2410]
[2411]
[2412]
[2413]
[2414]
[2415]
[2416]
[2417]
[2418]
[2419]
[2420]
[2421]
[2422]
[2423]
[2424]
[2425]
[2426]
[2427]
[2428]
[2429]
[2430]
[2431]
[2432]
[2433]
[2434]
[2435]
[2436]
[2437]
[2438]
[2439]
[2440]
[2441]
[2442]
[2443]
[2444]
[2445]
[2446]
[2447]
[2448]
[2449]
[2450]
[2451]
[2452]
[2453]
[2454]
[2455]
[2456]
[2457]
[2458]
[2459]
[2460]
[2461]
[2462]
[2463]
[2464]
[2465]
[2466]
[2467]
[2468]
[2469]
[2470]
[2471]
[2472]
[2473]
[2474]
[2475]
[2476]
[2477]
[2478]
[2479]
[2480]
[2481]
[2482]
[2483]
[2484]
[2485]
[2486]
[2487]
[2488]
[2489]
[2490]
[2491]
[2492]
[2493]
[2494]
[2495]
[2496]
[2497]
[2498]
[2499]
[2500]
[2501]
[2502]
[2503]
[2504]
[2505]
[2506]
[2507]
[2508]
[2509]
[2510]
[2511]
[2512]
[2513]
[2514]
[2515]
[2516]
[2517]
[2518]
[2519]
[2520]
[2521]
[2522]
[2523]
[2524]
[2525]
[2526]
[2527]
[2528]
[2529]
[2530]
[2531]
[2532]
[2533]
[2534]
[2535]
[2536]
[2537]
[2538]
[2539]
[2540]
[2541]
[2542]
[2543]
[2544]
[2545]
[2546]
[2547]
[2548]
[2549]
[2550]
[2551]
[2552]
[2553]
[2554]
[2555]
[2556]
[2557]
[2558]
[2559]
[2560]
[2561]
[2562]
[2563]
[2564]
[2565]
[2566]
[2567]
[2568]
[2569]
[2570]
[2571]
[2572]
[2573]
[2574]
[2575]
[2576]
[2577]
[2578]
[2579]
[2580]
[2581]
[2582]
[2583]
[2584]
[2585]
[2586]
[2587]
[2588]
[2589]
[2590]
[2591]
[2592]
[2593]
[2594]
[2595]
[2596]
[2597]
[2598]
[2599]
[2600]
[2601]
[2602]
[2603]
[2604]
[2605]
[2606]
[2607]
[2608]
[2609]
[2610]
[2611]
[2612]
[2613]
[2614]
[2615]
[2616]
[2617]
[2618]
[2619]
[2620]
[2621]
[2622]
[2623]
[2624]
[2625]
[2626]
[2627]
[2628]
[2629]
[2630]
[2631]
[2632]
[2633]
[2634]
[2635]
[2636]
[2637]
[2638]
[2639]
[2640]
[2641]
[2642]
[2643]
[2644]
[2645]
[2646]
[2647]
[2648]
[2649]
[2650]
[2651]
[2652]
[2653]
[2654]
[2655]
[2656]
[2657]
[2658]
[2659]
[2660]
[2661]
[2662]
[2663]
[2664]
[2665]
[2666]
[2667]
[2668]
[2669]
[2670]
[2671]
[2672]
[2673]
[2674]
[2675]
[2676]
[2677]
[2678]
[2679]
[2680]
[2681]
[2682]
[2683]
[2684]
[2685]
[2686]
[2687]
[2688]
[2689]
[2690]
[2691]
[2692]
[2693]
[2694]
[2695]
[2696]
[2697]
[2698]
[2699]
[2700]
[2701]
[2702]
[2703]
[2704]
[2705]
[2706]
[2707]
[2708]
[2709]
[2710]
[2711]
[2712]
[2713]
[2714]
[2715]
[2716]
[2717]
[2718]
[2719]
[2720]
[2721]
[2722]
[2723]
[2724]
[2725]
[2726]
[2727]
[2728]
[2729]
[2730]
[2731]
[2732]
[2733]
[2734]
[2735]
[2736]
[2737]
[2738]
[2739]
[2740]
[2741]
[2742]
[2743]
[2744]
[2745]
[2746]
[2747]
[2748]
[2749]
[2750]
[2751]
[2752]
[2753]
[2754]
[2755]
[2756]
[2757]
[2758]
[2759]
[2760]
[2761]
[2762]
[2763,null,null,null,null,null,null,null,null,null,null,null,null,null,null,null,null,null,null,null,null,null,null,null,null,null,null,null,null,null,null,null,null,null,null,null,null,null,null,null,4783]
[2764,null,null,null,null,null,null,null,null,null,null,null,null,null,null,null,null,null,null,null,null,null,null,null,null,null,null,null,null,null,null,null,null,null,null,null,null,null,null,null,4784]
[2765,null,null,null,null,null,null,null,null,null,null,null,null,null,null,null,null,null,null,null,null,null,null,null,null,null,null,null,null,null,null,null,null,null,null,null,null,null,null,null,4785]
[2766,null,null,null,null,null,null,null,null,null,null,null,null,null,null,null,null,null,null,null,null,null,null,null,null,null,null,null,null,null,null,null,null,null,null,null,null,null,null,null,4786]
[2767,null,null,null,null,null,null,null,null,null,null,null,null,null,null,null,null,null,null,null,null,null,null,null,null,null,null,null,null,null,null,null,null,null,null,null,null,null,null,null,4787]

{"sheet":"RTMDs_WICRs","index":3,"n_rows":36,"n_cols":27,"rows_kept":36,"cut":false,"hidden":false,"merged":[[1,14,1,15],[3,16,3,25],[3,1,3,7],[3,8,3,13],[3,14,3,15],[1,0,1,1],[1,11,1,13],[1,5,1,10],[32,1,32,26],[33,1,33,26],[34,1,34,26],[35,1,35,26],[2,1,2,12],[28,1,28,20],[27,1,27,13],[29,1,29,26],[30,1,30,26],[31,1,31,26]]}
[]
["Back to Index page",null,null,null,"Country: ",null,null,null,null,null,null,"Date [dd/mm/yyyy]:"]
[null,"If the country requests RTMD for existing WICR/FR"]
[null,"Facility Basic Data",null,null,null,null,null,null,"CCE Designated",null,null,null,null,null,"Site Accessibility",null,"RTMD   "]
["#","Supply Chain Level (where equipment is needed)","Region/ Province/States","District","Facility Name","Facility Address","Officer in Charge (OIC)  Name","Contact Number (mobile) of OIC","Existing equipment type (WIC, WIF, combo)","CCE Manufacturer","Storage volume Category (10 cbm, 20 cbm,  etc)","Power source (SDD or ON-grid)","QTY\n(per / site)","If more than one per site, Equipment location [Same or separate buildings)","Is the site fully accessible by road?","Distance (km) from National Vaccine Store to the installation site","RTMD  Manufacturer and model","Indicate plug type","Voltage supply","Frequency","SIM card type to be used with RTMD. [Global/Local]","Is mobile reception (2G and above /GSM) available at the sites? [Yes/No]","Preferred dashboard language [select from dropdown list]","Supplier-led RTMD Installation required? [Yes/No]","Supplier-led RTMD central or remote training required? [Yes/no]; If,  Yes, proceed to complete sheet, \"CCE_Maintenance_RTMD_Trainings\"","Number of staff to be trained on site by supplier on RTMD preventive mainteance  and usage","Year of CCE OP approval"]
[1]
[2]
[3]
[4]
[5]
[6]
[7]
[8]
[9]
[10]
[11]
[12]
[13]
[14]
[15]
[16]
[17]
[18]
[19]
[20]
[]
[]
[null,"Key note on terms:"]
[null," Period of subscription:  by default is 3 years."]
[null,"Technician Training - Supplier trains country technicians on correct installation of the RTM system, system administration, setup, operation, troubleshooting, maintenance, interpreting of data, and training of further technicians, system administrators and/or operators.  Detailed theoretical session in classroom format."]
[null,"System Administrator Training - Supplier trains system administrators on system administration, setup, operation, troubleshooting, maintenance, interpreting of data, and training of further system administrators and/or operators.  Usually only a limited number of system administrators need to be trained, as these IT type users will maintain general user profiles and system setup while also being able to access and interpret data. Detailed theoretical session in classroom format."]
[null,"General Operation Training - Supplier trains system operators and logisticians on system operation, interpreting of data, basic troubleshooting and maintenance.  These users will be the general users of the system. Detailed theoretical session in classroom format."]
[null,"In-person trainer - Both the trainer and trainees are at the same location."]
[null,"Remote trainer - The trainer is instructing the trainees from a remote location via Skype or conference call.  Trainees may be at a central location or dispersed locations, but need to have access to facilities such as a phone, computer and internet."]
[null,"General profile of the trainees.  This will allow the supplier to tailor the training better to the overall skill and experience level of the participants."]
[null,"Training Language: Training is normally provided in English as standard, but other training language options such as French may be available too"]

{"sheet":"RTMD_Refrigerators","index":4,"n_rows":2772,"n_cols":23,"rows_kept":2772,"cut":false,"hidden":false,"merged":[[1,0,1,1],[1,5,1,10],[1,12,1,16],[3,16,3,20],[3,1,3,7],[3,8,3,12],[3,13,3,15],[2,1,2,15]]}
[]
["Back to Index page",null,null,null,"Country: ",null,null,null,null,null,null,"Date [dd/mm/yyyy]:"]
[null,"If the country requests RTMD for existing refrigerators and freezer"]
[null,"Facility Basic Data",null,null,null,null,null,null,"CCE Designated",null,null,null,null,"Power supply",null,null,"RTMD"]
["#","Supply Chain Level (where equipment is needed)","Region/ Province/States","District","Facility Name","Facility Address","Officer in Charge (OIC)  Name","Contact Number (mobile) of the OIC","CCE Manufacturer","CCE Model","Type (refrigerator, Combo or freezer)","Power source (SDD or ON-grid)","QTY\n(per / HF)","Indicate plug type","Voltage supply","Frequency","RTMD  Manufacturer and model","SIM card type to be used with RTMD. [Global/Local]","Is mobile reception (2G/GSM or above) available inside the building where the RTM system will be installed? [Yes/No] ","Preferred dashboard language [select from dropdown list]","Supplier-led RTMD Installation required? [Yes/No]","Supplier-led RTMD central or remote training required? [Yes/no]; If,  Yes, proceed to complete sheet, \"Trainings\"","Year of CCE OP approval"]
[1]
[2]
[3]
[4]
[5]
[6]
[7]
[8]
[9]
[10]
[11]
[12]
[13]
[14]
[15]
[16]
[17]
[18]
[19]
[20]
[21]
[22]
[23]
[24]
[25]
[26]
[27]
[28]
[29]
[30]
[31]
[32]
[33]
[34]
[35]
[36]
[37]
[38]
[39]
[40]
[41]
[42]
[43]
[44]
[45]
[46]
[47]
[48]
[49]
[50]
[51]
[52]
[53]
[54]
[55]
[56]
[57]
[58]
[59]
[60]
[61]
[62]
[63]
[64]
[65]
[66]
[67]
[68]
[69]
[70]
[71]
[72]
[73]
[74]
[75]
[76]
[77]
[78]
[79]
[80]
[81]
[82]
[83]
[84]
[85]
[86]
[87]
[88]
[89]
[90]
[91]
[92]
[93]
[94]
[95]
[96]
[97]
[98]
[99]
[100]
[101]
[102]
[103]
[104]
[105]
[106]
[107]
[108]
[109]
[110]
[111]
[112]
[113]
[114]
[115]
[116]
[117]
[118]
[119]
[120]
[121]
[122]
[123]
[124]
[125]
[126]
[127]
[128]
[129]
[130]
[131]
[132]
[133]
[134]
[135]
[136]
[137]
[138]
[139]
[140]
[141]
[142]
[143]
[144]
[145]
[146]
[147]
[148]
[149]
[150]
[151]
[152]
[153]
[154]
[155]
[156]
[157]
[158,null,null,null,null,null,null,null,null,null,null,null,null,null,null,null,null,null,null,null,null,null,2178]
[159,null,null,null,null,null,null,null,null,null,null,null,null,null,null,null,null,null,null,null,null,null,2179]
[160,null,null,null,null,null,null,null,null,null,null,null,null,null,null,null,null,null,null,null,null,null,2180]
[161,null,null,null,null,null,null,null,null,null,null,null,null,null,null,null,null,null,null,null,null,null,2181]
[162,null,null,null,null,null,null,null,null,null,null,null,null,null,null,null,null,null,null,null,null,null,2182]
[163,null,null,null,null,null,null,null,null,null,null,null,null,null,null,null,null,null,null,null,null,null,2183]
[164,null,null,null,null,null,null,null,null,null,null,null,null,null,null,null,null,null,null,null,null,null,2184]
[165,null,null,null,null,null,null,null,null,null,null,null,null,null,null,null,null,null,null,null,null,null,2185]
[166,null,null,null,null,null,null,null,null,null,null,null,null,null,null,null,null,null,null,null,null,null,2186]
[167,null,null,null,null,null,null,null,null,null,null,null,null,null,null,null,null,null,null,null,null,null,2187]
[168,null,null,null,null,null,null,null,null,null,null,null,null,null,null,null,null,null,null,null,null,null,2188]
[169,null,null,null,null,null,null,null,null,null,null,null,null,null,null,null,null,null,null,null,null,null,2189]
[170,null,null,null,null,null,null,null,null,null,null,null,null,null,null,null,null,null,null,null,null,null,2190]
[171,null,null,null,null,null,null,null,null,null,null,null,null,null,null,null,null,null,null,null,null,null,2191]
[172,null,null,null,null,null,null,null,null,null,null,null,null,null,null,null,null,null,null,null,null,null,2192]
[173,null,null,null,null,null,null,null,null,null,null,null,null,null,null,null,null,null,null,null,null,null,2193]
[174,null,null,null,null,null,null,null,null,null,null,null,null,null,null,null,null,null,null,null,null,null,2194]
[175,null,null,null,null,null,null,null,null,null,null,null,null,null,null,null,null,null,null,null,null,null,2195]
[176,null,null,null,null,null,null,null,null,null,null,null,null,null,null,null,null,null,null,null,null,null,2196]
[177,null,null,null,null,null,null,null,null,null,null,null,null,null,null,null,null,null,null,null,null,null,2197]
[178,null,null,null,null,null,null,null,null,null,null,null,null,null,null,null,null,null,null,null,null,null,2198]
[179,null,null,null,null,null,null,null,null,null,null,null,null,null,null,null,null,null,null,null,null,null,2199]
[180,null,null,null,null,null,null,null,null,null,null,null,null,null,null,null,null,null,null,null,null,null,2200]
[181,null,null,null,null,null,null,null,null,null,null,null,null,null,null,null,null,null,null,null,null,null,2201]
[182,null,null,null,null,null,null,null,null,null,null,null,null,null,null,null,null,null,null,null,null,null,2202]
[183,null,null,null,null,null,null,null,null,null,null,null,null,null,null,null,null,null,null,null,null,null,2203]
[184,null,null,null,null,null,null,null,null,null,null,null,null,null,null,null,null,null,null,null,null,null,2204]
[185,null,null,null,null,null,null,null,null,null,null,null,null,null,null,null,null,null,null,null,null,null,2205]
[186,null,null,null,null,null,null,null,null,null,null,null,null,null,null,null,null,null,null,null,null,null,2206]
[187,null,null,null,null,null,null,null,null,null,null,null,null,null,null,null,null,null,null,null,null,null,2207]
[188,null,null,null,null,null,null,null,null,null,null,null,null,null,null,null,null,null,null,null,null,null,2208]
[189,null,null,null,null,null,null,null,null,null,null,null,null,null,null,null,null,null,null,null,null,null,2209]
[190,null,null,null,null,null,null,null,null,null,null,null,null,null,null,null,null,null,null,null,null,null,2210]
[191,null,null,null,null,null,null,null,null,null,null,null,null,null,null,null,null,null,null,null,null,null,2211]
[192,null,null,null,null,null,null,null,null,null,null,null,null,null,null,null,null,null,null,null,null,null,2212]
[193,null,null,null,null,null,null,null,null,null,null,null,null,null,null,null,null,null,null,null,null,null,2213]
[194,null,null,null,null,null,null,null,null,null,null,null,null,null,null,null,null,null,null,null,null,null,2214]
[195,null,null,null,null,null,null,null,null,null,null,null,null,null,null,null,null,null,null,null,null,null,2215]
[196,null,null,null,null,null,null,null,null,null,null,null,null,null,null,null,null,null,null,null,null,null,2216]
[197,null,null,null,null,null,null,null,null,null,null,null,null,null,null,null,null,null,null,null,null,null,2217]
[198,null,null,null,null,null,null,null,null,null,null,null,null,null,null,null,null,null,null,null,null,null,2218]
[199,null,null,null,null,null,null,null,null,null,null,null,null,null,null,null,null,null,null,null,null,null,2219]
[200,null,null,null,null,null,null,null,null,null,null,null,null,null,null,null,null,null,null,null,null,null,2220]
[201,null,null,null,null,null,null,null,null,null,null,null,null,null,null,null,null,null,null,null,null,null,2221]
[202,null,null,null,null,null,null,null,null,null,null,null,null,null,null,null,null,null,null,null,null,null,2222]
[203,null,null,null,null,null,null,null,null,null,null,null,null,null,null,null,null,null,null,null,null,null,2223]
[204,null,null,null,null,null,null,null,null,null,null,null,null,null,null,null,null,null,null,null,null,null,2224]
[205,null,null,null,null,null,null,null,null,null,null,null,null,null,null,null,null,null,null,null,null,null,2225]
[206,null,null,null,null,null,null,null,null,null,null,null,null,null,null,null,null,null,null,null,null,null,2226]
[207,null,null,null,null,null,null,null,null,null,null,null,null,null,null,null,null,null,null,null,null,null,2227]
[208,null,null,null,null,null,null,null,null,null,null,null,null,null,null,null,null,null,null,null,null,null,2228]
[209,null,null,null,null,null,null,null,null,null,null,null,null,null,null,null,null,null,null,null,null,null,2229]
[210,null,null,null,null,null,null,null,null,null,null,null,null,null,null,null,null,null,null,null,null,null,2230]
[211,null,null,null,null,null,null,null,null,null,null,null,null,null,null,null,null,null,null,null,null,null,2231]
[212,null,null,null,null,null,null,null,null,null,null,null,null,null,null,null,null,null,null,null,null,null,2232]
[213,null,null,null,null,null,null,null,null,null,null,null,null,null,null,null,null,null,null,null,null,null,2233]
[214,null,null,null,null,null,null,null,null,null,null,null,null,null,null,null,null,null,null,null,null,null,2234]
[215,null,null,null,null,null,null,null,null,null,null,null,null,null,null,null,null,null,null,null,null,null,2235]
[216,null,null,null,null,null,null,null,null,null,null,null,null,null,null,null,null,null,null,null,null,null,2236]
[217,null,null,null,null,null,null,null,null,null,null,null,null,null,null,null,null,null,null,null,null,null,2237]
[218,null,null,null,null,null,null,null,null,null,null,null,null,null,null,null,null,null,null,null,null,null,2238]
[219,null,null,null,null,null,null,null,null,null,null,null,null,null,null,null,null,null,null,null,null,null,2239]
[220,null,null,null,null,null,null,null,null,null,null,null,null,null,null,null,null,null,null,null,null,null,2240]
[221,null,null,null,null,null,null,null,null,null,null,null,null,null,null,null,null,null,null,null,null,null,2241]
[222,null,null,null,null,null,null,null,null,null,null,null,null,null,null,null,null,null,null,null,null,null,2242]
[223,null,null,null,null,null,null,null,null,null,null,null,null,null,null,null,null,null,null,null,null,null,2243]
[224,null,null,null,null,null,null,null,null,null,null,null,null,null,null,null,null,null,null,null,null,null,2244]
[225,null,null,null,null,null,null,null,null,null,null,null,null,null,null,null,null,null,null,null,null,null,2245]
[226,null,null,null,null,null,null,null,null,null,null,null,null,null,null,null,null,null,null,null,null,null,2246]
[227,null,null,null,null,null,null,null,null,null,null,null,null,null,null,null,null,null,null,null,null,null,2247]
[228,null,null,null,null,null,null,null,null,null,null,null,null,null,null,null,null,null,null,null,null,null,2248]
[229,null,null,null,null,null,null,null,null,null,null,null,null,null,null,null,null,null,null,null,null,null,2249]
[230,null,null,null,null,null,null,null,null,null,null,null,null,null,null,null,null,null,null,null,null,null,2250]
[231,null,null,null,null,null,null,null,null,null,null,null,null,null,null,null,null,null,null,null,null,null,2251]
[232,null,null,null,null,null,null,null,null,null,null,null,null,null,null,null,null,null,null,null,null,null,2252]
[233,null,null,null,null,null,null,null,null,null,null,null,null,null,null,null,null,null,null,null,null,null,2253]
[234,null,null,null,null,null,null,null,null,null,null,null,null,null,null,null,null,null,null,null,null,null,2254]
[235,null,null,null,null,null,null,null,null,null,null,null,null,null,null,null,null,null,null,null,null,null,2255]
[236,null,null,null,null,null,null,null,null,null,null,null,null,null,null,null,null,null,null,null,null,null,2256]
[237,null,null,null,null,null,null,null,null,null,null,null,null,null,null,null,null,null,null,null,null,null,2257]
[238,null,null,null,null,null,null,null,null,null,null,null,null,null,null,null,null,null,null,null,null,null,2258]
[239,null,null,null,null,null,null,null,null,null,null,null,null,null,null,null,null,null,null,null,null,null,2259]
[240,null,null,null,null,null,null,null,null,null,null,null,null,null,null,null,null,null,null,null,null,null,2260]
[241,null,null,null,null,null,null,null,null,null,null,null,null,null,null,null,null,null,null,null,null,null,2261]
[242,null,null,null,null,null,null,null,null,null,null,null,null,null,null,null,null,null,null,null,null,null,2262]
[243,null,null,null,null,null,null,null,null,null,null,null,null,null,null,null,null,null,null,null,null,null,2263]
[244,null,null,null,null,null,null,null,null,null,null,null,null,null,null,null,null,null,null,null,null,null,2264]
[245,null,null,null,null,null,null,null,null,null,null,null,null,null,null,null,null,null,null,null,null,null,2265]
[246,null,null,null,null,null,null,null,null,null,null,null,null,null,null,null,null,null,null,null,null,null,2266]
[247,null,null,null,null,null,null,null,null,null,null,null,null,null,null,null,null,null,null,null,null,null,2267]
[248,null,null,null,null,null,null,null,null,null,null,null,null,null,null,null,null,null,null,null,null,null,2268]
[249,null,null,null,null,null,null,null,null,null,null,null,null,null,null,null,null,null,null,null,null,null,2269]
[250,null,null,null,null,null,null,null,null,null,null,null,null,null,null,null,null,null,null,null,null,null,2270]
[251,null,null,null,null,null,null,null,null,null,null,null,null,null,null,null,null,null,null,null,null,null,2271]
[252,null,null,null,null,null,null,null,null,null,null,null,null,null,null,null,null,null,null,null,null,null,2272]
[253,null,null,null,null,null,null,null,null,null,null,null,null,null,null,null,null,null,null,null,null,null,2273]
[254,null,null,null,null,null,null,null,null,null,null,null,null,null,null,null,null,null,null,null,null,null,2274]
[255,null,null,null,null,null,null,null,null,null,null,null,null,null,null,null,null,null,null,null,null,null,2275]
[256,null,null,null,null,null,null,null,null,null,null,null,null,null,null,null,null,null,null,null,null,null,2276]
[257,null,null,null,null,null,null,null,null,null,null,null,null,null,null,null,null,null,null,null,null,null,2277]
[258,null,null,null,null,null,null,null,null,null,null,null,null,null,null,null,null,null,null,null,null,null,2278]
[259,null,null,null,null,null,null,null,null,null,null,null,null,null,null,null,null,null,null,null,null,null,2279]
[260,null,null,null,null,null,null,null,null,null,null,null,null,null,null,null,null,null,null,null,null,null,2280]
[261,null,null,null,null,null,null,null,null,null,null,null,null,null,null,null,null,null,null,null,null,null,2281]
[262,null,null,null,null,null,null,null,null,null,null,null,null,null,null,null,null,null,null,null,null,null,2282]
[263,null,null,null,null,null,null,null,null,null,null,null,null,null,null,null,null,null,null,null,null,null,2283]
[264,null,null,null,null,null,null,null,null,null,null,null,null,null,null,null,null,null,null,null,null,null,2284]
[265,null,null,null,null,null,null,null,null,null,null,null,null,null,null,null,null,null,null,null,null,null,2285]
[266,null,null,null,null,null,null,null,null,null,null,null,null,null,null,null,null,null,null,null,null,null,2286]
[267,null,null,null,null,null,null,null,null,null,null,null,null,null,null,null,null,null,null,null,null,null,2287]
[268,null,null,null,null,null,null,null,null,null,null,null,null,null,null,null,null,null,null,null,null,null,2288]
[269,null,null,null,null,null,null,null,null,null,null,null,null,null,null,null,null,null,null,null,null,null,2289]
[270,null,null,null,null,null,null,null,null,null,null,null,null,null,null,null,null,null,null,null,null,null,2290]
[271,null,null,null,null,null,null,null,null,null,null,null,null,null,null,null,null,null,null,null,null,null,2291]
[272,null,null,null,null,null,null,null,null,null,null,null,null,null,null,null,null,null,null,null,null,null,2292]
[273,null,null,null,null,null,null,null,null,null,null,null,null,null,null,null,null,null,null,null,null,null,2293]
[274,null,null,null,null,null,null,null,null,null,null,null,null,null,null,null,null,null,null,null,null,null,2294]
[275,null,null,null,null,null,null,null,null,null,null,null,null,null,null,null,null,null,null,null,null,null,2295]
[276,null,null,null,null,null,null,null,null,null,null,null,null,null,null,null,null,null,null,null,null,null,2296]
[277,null,null,null,null,null,null,null,null,null,null,null,null,null,null,null,null,null,null,null,null,null,2297]
[278,null,null,null,null,null,null,null,null,null,null,null,null,null,null,null,null,null,null,null,null,null,2298]
[279,null,null,null,null,null,null,null,null,null,null,null,null,null,null,null,null,null,null,null,null,null,2299]
[280,null,null,null,null,null,null,null,null,null,null,null,null,null,null,null,null,null,null,null,null,null,2300]
[281,null,null,null,null,null,null,null,null,null,null,null,null,null,null,null,null,null,null,null,null,null,2301]
[282,null,null,null,null,null,null,null,null,null,null,null,null,null,null,null,null,null,null,null,null,null,2302]
[283,null,null,null,null,null,null,null,null,null,null,null,null,null,null,null,null,null,null,null,null,null,2303]
[284,null,null,null,null,null,null,null,null,null,null,null,null,null,null,null,null,null,null,null,null,null,2304]
[285,null,null,null,null,null,null,null,null,null,null,null,null,null,null,null,null,null,null,null,null,null,2305]
[286,null,null,null,null,null,null,null,null,null,null,null,null,null,null,null,null,null,null,null,null,null,2306]
[287,null,null,null,null,null,null,null,null,null,null,null,null,null,null,null,null,null,null,null,null,null,2307]
[288,null,null,null,null,null,null,null,null,null,null,null,null,null,null,null,null,null,null,null,null,null,2308]
[289,null,null,null,null,null,null,null,null,null,null,null,null,null,null,null,null,null,null,null,null,null,2309]
[290,null,null,null,null,null,null,null,null,null,null,null,null,null,null,null,null,null,null,null,null,null,2310]
[291,null,null,null,null,null,null,null,null,null,null,null,null,null,null,null,null,null,null,null,null,null,2311]
[292,null,null,null,null,null,null,null,null,null,null,null,null,null,null,null,null,null,null,null,null,null,2312]
[293,null,null,null,null,null,null,null,null,null,null,null,null,null,null,null,null,null,null,null,null,null,2313]
[294,null,null,null,null,null,null,null,null,null,null,null,null,null,null,null,null,null,null,null,null,null,2314]
[295,null,null,null,null,null,null,null,null,null,null,null,null,null,null,null,null,null,null,null,null,null,2315]
[296,null,null,null,null,null,null,null,null,null,null,null,null,null,null,null,null,null,null,null,null,null,2316]
[297,null,null,null,null,null,null,null,null,null,null,null,null,null,null,null,null,null,null,null,null,null,2317]
[298,null,null,null,null,null,null,null,null,null,null,null,null,null,null,null,null,null,null,null,null,null,2318]
[299,null,null,null,null,null,null,null,null,null,null,null,null,null,null,null,null,null,null,null,null,null,2319]
[300,null,null,null,null,null,null,null,null,null,null,null,null,null,null,null,null,null,null,null,null,null,2320]
[301,null,null,null,null,null,null,null,null,null,null,null,null,null,null,null,null,null,null,null,null,null,2321]
[302,null,null,null,null,null,null,null,null,null,null,null,null,null,null,null,null,null,null,null,null,null,2322]
[303,null,null,null,null,null,null,null,null,null,null,null,null,null,null,null,null,null,null,null,null,null,2323]
[304,null,null,null,null,null,null,null,null,null,null,null,null,null,null,null,null,null,null,null,null,null,2324]
[305,null,null,null,null,null,null,null,null,null,null,null,null,null,null,null,null,null,null,null,null,null,2325]
[306,null,null,null,null,null,null,null,null,null,null,null,null,null,null,null,null,null,null,null,null,null,2326]
[307,null,null,null,null,null,null,null,null,null,null,null,null,null,null,null,null,null,null,null,null,null,2327]
[308,null,null,null,null,null,null,null,null,null,null,null,null,null,null,null,null,null,null,null,null,null,2328]
[309,null,null,null,null,null,null,null,null,null,null,null,null,null,null,null,null,null,null,null,null,null,2329]
[310,null,null,null,null,null,null,null,null,null,null,null,null,null,null,null,null,null,null,null,null,null,2330]
[311,null,null,null,null,null,null,null,null,null,null,null,null,null,null,null,null,null,null,null,null,null,2331]
[312,null,null,null,null,null,null,null,null,null,null,null,null,null,null,null,null,null,null,null,null,null,2332]
[313,null,null,null,null,null,null,null,null,null,null,null,null,null,null,null,null,null,null,null,null,null,2333]
[314,null,null,null,null,null,null,null,null,null,null,null,null,null,null,null,null,null,null,null,null,null,2334]
[315,null,null,null,null,null,null,null,null,null,null,null,null,null,null,null,null,null,null,null,null,null,2335]
[316,null,null,null,null,null,null,null,null,null,null,null,null,null,null,null,null,null,null,null,null,null,2336]
[317,null,null,null,null,null,null,null,null,null,null,null,null,null,null,null,null,null,null,null,null,null,2337]
[318,null,null,null,null,null,null,null,null,null,null,null,null,null,null,null,null,null,null,null,null,null,2338]
[319,null,null,null,null,null,null,null,null,null,null,null,null,null,null,null,null,null,null,null,null,null,2339]
[320,null,null,null,null,null,null,null,null,null,null,null,null,null,null,null,null,null,null,null,null,null,2340]
[321,null,null,null,null,null,null,null,null,null,null,null,null,null,null,null,null,null,null,null,null,null,2341]
[322,null,null,null,null,null,null,null,null,null,null,null,null,null,null,null,null,null,null,null,null,null,2342]
[323,null,null,null,null,null,null,null,null,null,null,null,null,null,null,null,null,null,null,null,null,null,2343]
[324,null,null,null,null,null,null,null,null,null,null,null,null,null,null,null,null,null,null,null,null,null,2344]
[325,null,null,null,null,null,null,null,null,null,null,null,null,null,null,null,null,null,null,null,null,null,2345]
[326,null,null,null,null,null,null,null,null,null,null,null,null,null,null,null,null,null,null,null,null,null,2346]
[327,null,null,null,null,null,null,null,null,null,null,null,null,null,null,null,null,null,null,null,null,null,2347]
[328,null,null,null,null,null,null,null,null,null,null,null,null,null,null,null,null,null,null,null,null,null,2348]
[329,null,null,null,null,null,null,null,null,null,null,null,null,null,null,null,null,null,null,null,null,null,2349]
[330,null,null,null,null,null,null,null,null,null,null,null,null,null,null,null,null,null,null,null,null,null,2350]
[331,null,null,null,null,null,null,null,null,null,null,null,null,null,null,null,null,null,null,null,null,null,2351]
[332,null,null,null,null,null,null,null,null,null,null,null,null,null,null,null,null,null,null,null,null,null,2352]
[333,null,null,null,null,null,null,null,null,null,null,null,null,null,null,null,null,null,null,null,null,null,2353]
[334,null,null,null,null,null,null,null,null,null,null,null,null,null,null,null,null,null,null,null,null,null,2354]
[335,null,null,null,null,null,null,null,null,null,null,null,null,null,null,null,null,null,null,null,null,null,2355]
[336,null,null,null,null,null,null,null,null,null,null,null,null,null,null,null,null,null,null,null,null,null,2356]
[337,null,null,null,null,null,null,null,null,null,null,null,null,null,null,null,null,null,null,null,null,null,2357]
[338,null,null,null,null,null,null,null,null,null,null,null,null,null,null,null,null,null,null,null,null,null,2358]
[339,null,null,null,null,null,null,null,null,null,null,null,null,null,null,null,null,null,null,null,null,null,2359]
[340,null,null,null,null,null,null,null,null,null,null,null,null,null,null,null,null,null,null,null,null,null,2360]
[341,null,null,null,null,null,null,null,null,null,null,null,null,null,null,null,null,null,null,null,null,null,2361]
[342,null,null,null,null,null,null,null,null,null,null,null,null,null,null,null,null,null,null,null,null,null,2362]
[343,null,null,null,null,null,null,null,null,null,null,null,null,null,null,null,null,null,null,null,null,null,2363]
[344,null,null,null,null,null,null,null,null,null,null,null,null,null,null,null,null,null,null,null,null,null,2364]
[345,null,null,null,null,null,null,null,null,null,null,null,null,null,null,null,null,null,null,null,null,null,2365]
[346,null,null,null,null,null,null,null,null,null,null,null,null,null,null,null,null,null,null,null,null,null,2366]
[347,null,null,null,null,null,null,null,null,null,null,null,null,null,null,null,null,null,null,null,null,null,2367]
[348,null,null,null,null,null,null,null,null,null,null,null,null,null,null,null,null,null,null,null,null,null,2368]
[349,null,null,null,null,null,null,null,null,null,null,null,null,null,null,null,null,null,null,null,null,null,2369]
[350,null,null,null,null,null,null,null,null,null,null,null,null,null,null,null,null,null,null,null,null,null,2370]
[351,null,null,null,null,null,null,null,null,null,null,null,null,null,null,null,null,null,null,null,null,null,2371]
[352,null,null,null,null,null,null,null,null,null,null,null,null,null,null,null,null,null,null,null,null,null,2372]
[353,null,null,null,null,null,null,null,null,null,null,null,null,null,null,null,null,null,null,null,null,null,2373]
[354,null,null,null,null,null,null,null,null,null,null,null,null,null,null,null,null,null,null,null,null,null,2374]
[355,null,null,null,null,null,null,null,null,null,null,null,null,null,null,null,null,null,null,null,null,null,2375]
[356,null,null,null,null,null,null,null,null,null,null,null,null,null,null,null,null,null,null,null,null,null,2376]
[357,null,null,null,null,null,null,null,null,null,null,null,null,null,null,null,null,null,null,null,null,null,2377]
[358,null,null,null,null,null,null,null,null,null,null,null,null,null,null,null,null,null,null,null,null,null,2378]
[359,null,null,null,null,null,null,null,null,null,null,null,null,null,null,null,null,null,null,null,null,null,2379]
[360,null,null,null,null,null,null,null,null,null,null,null,null,null,null,null,null,null,null,null,null,null,2380]
[361,null,null,null,null,null,null,null,null,null,null,null,null,null,null,null,null,null,null,null,null,null,2381]
[362,null,null,null,null,null,null,null,null,null,null,null,null,null,null,null,null,null,null,null,null,null,2382]
[363,null,null,null,null,null,null,null,null,null,null,null,null,null,null,null,null,null,null,null,null,null,2383]
[364,null,null,null,null,null,null,null,null,null,null,null,null,null,null,null,null,null,null,null,null,null,2384]
[365,null,null,null,null,null,null,null,null,null,null,null,null,null,null,null,null,null,null,null,null,null,2385]
[366,null,null,null,null,null,null,null,null,null,null,null,null,null,null,null,null,null,null,null,null,null,2386]
[367,null,null,null,null,null,null,null,null,null,null,null,null,null,null,null,null,null,null,null,null,null,2387]
[368,null,null,null,null,null,null,null,null,null,null,null,null,null,null,null,null,null,null,null,null,null,2388]
[369,null,null,null,null,null,null,null,null,null,null,null,null,null,null,null,null,null,null,null,null,null,2389]
[370,null,null,null,null,null,null,null,null,null,null,null,null,null,null,null,null,null,null,null,null,null,2390]
[371,null,null,null,null,null,null,null,null,null,null,null,null,null,null,null,null,null,null,null,null,null,2391]
[372,null,null,null,null,null,null,null,null,null,null,null,null,null,null,null,null,null,null,null,null,null,2392]
[373,null,null,null,null,null,null,null,null,null,null,null,null,null,null,null,null,null,null,null,null,null,2393]
[374,null,null,null,null,null,null,null,null,null,null,null,null,null,null,null,null,null,null,null,null,null,2394]
[375,null,null,null,null,null,null,null,null,null,null,null,null,null,null,null,null,null,null,null,null,null,2395]
[376,null,null,null,null,null,null,null,null,null,null,null,null,null,null,null,null,null,null,null,null,null,2396]
[377,null,null,null,null,null,null,null,null,null,null,null,null,null,null,null,null,null,null,null,null,null,2397]
[378,null,null,null,null,null,null,null,null,null,null,null,null,null,null,null,null,null,null,null,null,null,2398]
[379,null,null,null,null,null,null,null,null,null,null,null,null,null,null,null,null,null,null,null,null,null,2399]
[380,null,null,null,null,null,null,null,null,null,null,null,null,null,null,null,null,null,null,null,null,null,2400]
[381,null,null,null,null,null,null,null,null,null,null,null,null,null,null,null,null,null,null,null,null,null,2401]
[382,null,null,null,null,null,null,null,null,null,null,null,null,null,null,null,null,null,null,null,null,null,2402]
[383,null,null,null,null,null,null,null,null,null,null,null,null,null,null,null,null,null,null,null,null,null,2403]
[384,null,null,null,null,null,null,null,null,null,null,null,null,null,null,null,null,null,null,null,null,null,2404]
[385,null,null,null,null,null,null,null,null,null,null,null,null,null,null,null,null,null,null,null,null,null,2405]
[386,null,null,null,null,null,null,null,null,null,null,null,null,null,null,null,null,null,null,null,null,null,2406]
[387,null,null,null,null,null,null,null,null,null,null,null,null,null,null,null,null,null,null,null,null,null,2407]
[388,null,null,null,null,null,null,null,null,null,null,null,null,null,null,null,null,null,null,null,null,null,2408]
[389,null,null,null,null,null,null,null,null,null,null,null,null,null,null,null,null,null,null,null,null,null,2409]
[390,null,null,null,null,null,null,null,null,null,null,null,null,null,null,null,null,null,null,null,null,null,2410]
[391,null,null,null,null,null,null,null,null,null,null,null,null,null,null,null,null,null,null,null,null,null,2411]
[392,null,null,null,null,null,null,null,null,null,null,null,null,null,null,null,null,null,null,null,null,null,2412]
[393,null,null,null,null,null,null,null,null,null,null,null,null,null,null,null,null,null,null,null,null,null,2413]
[394,null,null,null,null,null,null,null,null,null,null,null,null,null,null,null,null,null,null,null,null,null,2414]
[395,null,null,null,null,null,null,null,null,null,null,null,null,null,null,null,null,null,null,null,null,null,2415]
[396,null,null,null,null,null,null,null,null,null,null,null,null,null,null,null,null,null,null,null,null,null,2416]
[397,null,null,null,null,null,null,null,null,null,null,null,null,null,null,null,null,null,null,null,null,null,2417]
[398,null,null,null,null,null,null,null,null,null,null,null,null,null,null,null,null,null,null,null,null,null,2418]
[399,null,null,null,null,null,null,null,null,null,null,null,null,null,null,null,null,null,null,null,null,null,2419]
[400,null,null,null,null,null,null,null,null,null,null,null,null,null,null,null,null,null,null,null,null,null,2420]
[401,null,null,null,null,null,null,null,null,null,null,null,null,null,null,null,null,null,null,null,null,null,2421]
[402,null,null,null,null,null,null,null,null,null,null,null,null,null,null,null,null,null,null,null,null,null,2422]
[403,null,null,null,null,null,null,null,null,null,null,null,null,null,null,null,null,null,null,null,null,null,2423]
[404,null,null,null,null,null,null,null,null,null,null,null,null,null,null,null,null,null,null,null,null,null,2424]
[405,null,null,null,null,null,null,null,null,null,null,null,null,null,null,null,null,null,null,null,null,null,2425]
[406,null,null,null,null,null,null,null,null,null,null,null,null,null,null,null,null,null,null,null,null,null,2426]
[407,null,null,null,null,null,null,null,null,null,null,null,null,null,null,null,null,null,null,null,null,null,2427]
[408,null,null,null,null,null,null,null,null,null,null,null,null,null,null,null,null,null,null,null,null,null,2428]
[409,null,null,null,null,null,null,null,null,null,null,null,null,null,null,null,null,null,null,null,null,null,2429]
[410,null,null,null,null,null,null,null,null,null,null,null,null,null,null,null,null,null,null,null,null,null,2430]
[411,null,null,null,null,null,null,null,null,null,null,null,null,null,null,null,null,null,null,null,null,null,2431]
[412,null,null,null,null,null,null,null,null,null,null,null,null,null,null,null,null,null,null,null,null,null,2432]
[413,null,null,null,null,null,null,null,null,null,null,null,null,null,null,null,null,null,null,null,null,null,2433]
[414,null,null,null,null,null,null,null,null,null,null,null,null,null,null,null,null,null,null,null,null,null,2434]
[415,null,null,null,null,null,null,null,null,null,null,null,null,null,null,null,null,null,null,null,null,null,2435]
[416,null,null,null,null,null,null,null,null,null,null,null,null,null,null,null,null,null,null,null,null,null,2436]
[417,null,null,null,null,null,null,null,null,null,null,null,null,null,null,null,null,null,null,null,null,null,2437]
[418,null,null,null,null,null,null,null,null,null,null,null,null,null,null,null,null,null,null,null,null,null,2438]
[419,null,null,null,null,null,null,null,null,null,null,null,null,null,null,null,null,null,null,null,null,null,2439]
[420,null,null,null,null,null,null,null,null,null,null,null,null,null,null,null,null,null,null,null,null,null,2440]
[421,null,null,null,null,null,null,null,null,null,null,null,null,null,null,null,null,null,null,null,null,null,2441]
[422,null,null,null,null,null,null,null,null,null,null,null,null,null,null,null,null,null,null,null,null,null,2442]
[423,null,null,null,null,null,null,null,null,null,null,null,null,null,null,null,null,null,null,null,null,null,2443]
[424,null,null,null,null,null,null,null,null,null,null,null,null,null,null,null,null,null,null,null,null,null,2444]
[425,null,null,null,null,null,null,null,null,null,null,null,null,null,null,null,null,null,null,null,null,null,2445]
[426,null,null,null,null,null,null,null,null,null,null,null,null,null,null,null,null,null,null,null,null,null,2446]
[427,null,null,null,null,null,null,null,null,null,null,null,null,null,null,null,null,null,null,null,null,null,2447]
[428,null,null,null,null,null,null,null,null,null,null,null,null,null,null,null,null,null,null,null,null,null,2448]
[429,null,null,null,null,null,null,null,null,null,null,null,null,null,null,null,null,null,null,null,null,null,2449]
[430,null,null,null,null,null,null,null,null,null,null,null,null,null,null,null,null,null,null,null,null,null,2450]
[431,null,null,null,null,null,null,null,null,null,null,null,null,null,null,null,null,null,null,null,null,null,2451]
[432,null,null,null,null,null,null,null,null,null,null,null,null,null,null,null,null,null,null,null,null,null,2452]
[433,null,null,null,null,null,null,null,null,null,null,null,null,null,null,null,null,null,null,null,null,null,2453]
[434,null,null,null,null,null,null,null,null,null,null,null,null,null,null,null,null,null,null,null,null,null,2454]
[435,null,null,null,null,null,null,null,null,null,null,null,null,null,null,null,null,null,null,null,null,null,2455]
[436,null,null,null,null,null,null,null,null,null,null,null,null,null,null,null,null,null,null,null,null,null,2456]
[437,null,null,null,null,null,null,null,null,null,null,null,null,null,null,null,null,null,null,null,null,null,2457]
[438,null,null,null,null,null,null,null,null,null,null,null,null,null,null,null,null,null,null,null,null,null,2458]
[439,null,null,null,null,null,null,null,null,null,null,null,null,null,null,null,null,null,null,null,null,null,2459]
[440,null,null,null,null,null,null,null,null,null,null,null,null,null,null,null,null,null,null,null,null,null,2460]
[441,null,null,null,null,null,null,null,null,null,null,null,null,null,null,null,null,null,null,null,null,null,2461]
[442,null,null,null,null,null,null,null,null,null,null,null,null,null,null,null,null,null,null,null,null,null,2462]
[443,null,null,null,null,null,null,null,null,null,null,null,null,null,null,null,null,null,null,null,null,null,2463]
[444,null,null,null,null,null,null,null,null,null,null,null,null,null,null,null,null,null,null,null,null,null,2464]
[445,null,null,null,null,null,null,null,null,null,null,null,null,null,null,null,null,null,null,null,null,null,2465]
[446,null,null,null,null,null,null,null,null,null,null,null,null,null,null,null,null,null,null,null,null,null,2466]
[447,null,null,null,null,null,null,null,null,null,null,null,null,null,null,null,null,null,null,null,null,null,2467]
[448,null,null,null,null,null,null,null,null,null,null,null,null,null,null,null,null,null,null,null,null,null,2468]
[449,null,null,null,null,null,null,null,null,null,null,null,null,null,null,null,null,null,null,null,null,null,2469]
[450,null,null,null,null,null,null,null,null,null,null,null,null,null,null,null,null,null,null,null,null,null,2470]
[451,null,null,null,null,null,null,null,null,null,null,null,null,null,null,null,null,null,null,null,null,null,2471]
[452,null,null,null,null,null,null,null,null,null,null,null,null,null,null,null,null,null,null,null,null,null,2472]
[453,null,null,null,null,null,null,null,null,null,null,null,null,null,null,null,null,null,null,null,null,null,2473]
[454,null,null,null,null,null,null,null,null,null,null,null,null,null,null,null,null,null,null,null,null,null,2474]
[455,null,null,null,null,null,null,null,null,null,null,null,null,null,null,null,null,null,null,null,null,null,2475]
[456,null,null,null,null,null,null,null,null,null,null,null,null,null,null,null,null,null,null,null,null,null,2476]
[457,null,null,null,null,null,null,null,null,null,null,null,null,null,null,null,null,null,null,null,null,null,2477]
[458,null,null,null,null,null,null,null,null,null,null,null,null,null,null,null,null,null,null,null,null,null,2478]
[459,null,null,null,null,null,null,null,null,null,null,null,null,null,null,null,null,null,null,null,null,null,2479]
[460,null,null,null,null,null,null,null,null,null,null,null,null,null,null,null,null,null,null,null,null,null,2480]
[461,null,null,null,null,null,null,null,null,null,null,null,null,null,null,null,null,null,null,null,null,null,2481]
[462,null,null,null,null,null,null,null,null,null,null,null,null,null,null,null,null,null,null,null,null,null,2482]
[463,null,null,null,null,null,null,null,null,null,null,null,null,null,null,null,null,null,null,null,null,null,2483]
[464,null,null,null,null,null,null,null,null,null,null,null,null,null,null,null,null,null,null,null,null,null,2484]
[465,null,null,null,null,null,null,null,null,null,null,null,null,null,null,null,null,null,null,null,null,null,2485]
[466,null,null,null,null,null,null,null,null,null,null,null,null,null,null,null,null,null,null,null,null,null,2486]
[467,null,null,null,null,null,null,null,null,null,null,null,null,null,null,null,null,null,null,null,null,null,2487]
[468,null,null,null,null,null,null,null,null,null,null,null,null,null,null,null,null,null,null,null,null,null,2488]
[469,null,null,null,null,null,null,null,null,null,null,null,null,null,null,null,null,null,null,null,null,null,2489]
[470,null,null,null,null,null,null,null,null,null,null,null,null,null,null,null,null,null,null,null,null,null,2490]
[471,null,null,null,null,null,null,null,null,null,null,null,null,null,null,null,null,null,null,null,null,null,2491]
[472,null,null,null,null,null,null,null,null,null,null,null,null,null,null,null,null,null,null,null,null,null,2492]
[473,null,null,null,null,null,null,null,null,null,null,null,null,null,null,null,null,null,null,null,null,null,2493]
[474,null,null,null,null,null,null,null,null,null,null,null,null,null,null,null,null,null,null,null,null,null,2494]
[475,null,null,null,null,null,null,null,null,null,null,null,null,null,null,null,null,null,null,null,null,null,2495]
[476,null,null,null,null,null,null,null,null,null,null,null,null,null,null,null,null,null,null,null,null,null,2496]
[477,null,null,null,null,null,null,null,null,null,null,null,null,null,null,null,null,null,null,null,null,null,2497]
[478,null,null,null,null,null,null,null,null,null,null,null,null,null,null,null,null,null,null,null,null,null,2498]
[479,null,null,null,null,null,null,null,null,null,null,null,null,null,null,null,null,null,null,null,null,null,2499]
[480,null,null,null,null,null,null,null,null,null,null,null,null,null,null,null,null,null,null,null,null,null,2500]
[481,null,null,null,null,null,null,null,null,null,null,null,null,null,null,null,null,null,null,null,null,null,2501]
[482,null,null,null,null,null,null,null,null,null,null,null,null,null,null,null,null,null,null,null,null,null,2502]
[483,null,null,null,null,null,null,null,null,null,null,null,null,null,null,null,null,null,null,null,null,null,2503]
[484,null,null,null,null,null,null,null,null,null,null,null,null,null,null,null,null,null,null,null,null,null,2504]
[485,null,null,null,null,null,null,null,null,null,null,null,null,null,null,null,null,null,null,null,null,null,2505]
[486,null,null,null,null,null,null,null,null,null,null,null,null,null,null,null,null,null,null,null,null,null,2506]
[487,null,null,null,null,null,null,null,null,null,null,null,null,null,null,null,null,null,null,null,null,null,2507]
[488,null,null,null,null,null,null,null,null,null,null,null,null,null,null,null,null,null,null,null,null,null,2508]
[489,null,null,null,null,null,null,null,null,null,null,null,null,null,null,null,null,null,null,null,null,null,2509]
[490,null,null,null,null,null,null,null,null,null,null,null,null,null,null,null,null,null,null,null,null,null,2510]
[491,null,null,null,null,null,null,null,null,null,null,null,null,null,null,null,null,null,null,null,null,null,2511]
[492,null,null,null,null,null,null,null,null,null,null,null,null,null,null,null,null,null,null,null,null,null,2512]
[493,null,null,null,null,null,null,null,null,null,null,null,null,null,null,null,null,null,null,null,null,null,2513]
[494,null,null,null,null,null,null,null,null,null,null,null,null,null,null,null,null,null,null,null,null,null,2514]
[495,null,null,null,null,null,null,null,null,null,null,null,null,null,null,null,null,null,null,null,null,null,2515]
[496,null,null,null,null,null,null,null,null,null,null,null,null,null,null,null,null,null,null,null,null,null,2516]
[497,null,null,null,null,null,null,null,null,null,null,null,null,null,null,null,null,null,null,null,null,null,2517]
[498,null,null,null,null,null,null,null,null,null,null,null,null,null,null,null,null,null,null,null,null,null,2518]
[499,null,null,null,null,null,null,null,null,null,null,null,null,null,null,null,null,null,null,null,null,null,2519]
[500,null,null,null,null,null,null,null,null,null,null,null,null,null,null,null,null,null,null,null,null,null,2520]
[501,null,null,null,null,null,null,null,null,null,null,null,null,null,null,null,null,null,null,null,null,null,2521]
[502,null,null,null,null,null,null,null,null,null,null,null,null,null,null,null,null,null,null,null,null,null,2522]
[503,null,null,null,null,null,null,null,null,null,null,null,null,null,null,null,null,null,null,null,null,null,2523]
[504,null,null,null,null,null,null,null,null,null,null,null,null,null,null,null,null,null,null,null,null,null,2524]
[505,null,null,null,null,null,null,null,null,null,null,null,null,null,null,null,null,null,null,null,null,null,2525]
[506,null,null,null,null,null,null,null,null,null,null,null,null,null,null,null,null,null,null,null,null,null,2526]
[507,null,null,null,null,null,null,null,null,null,null,null,null,null,null,null,null,null,null,null,null,null,2527]
[508,null,null,null,null,null,null,null,null,null,null,null,null,null,null,null,null,null,null,null,null,null,2528]
[509,null,null,null,null,null,null,null,null,null,null,null,null,null,null,null,null,null,null,null,null,null,2529]
[510,null,null,null,null,null,null,null,null,null,null,null,null,null,null,null,null,null,null,null,null,null,2530]
[511,null,null,null,null,null,null,null,null,null,null,null,null,null,null,null,null,null,null,null,null,null,2531]
[512,null,null,null,null,null,null,null,null,null,null,null,null,null,null,null,null,null,null,null,null,null,2532]
[513,null,null,null,null,null,null,null,null,null,null,null,null,null,null,null,null,null,null,null,null,null,2533]
[514,null,null,null,null,null,null,null,null,null,null,null,null,null,null,null,null,null,null,null,null,null,2534]
[515,null,null,null,null,null,null,null,null,null,null,null,null,null,null,null,null,null,null,null,null,null,2535]
[516,null,null,null,null,null,null,null,null,null,null,null,null,null,null,null,null,null,null,null,null,null,2536]
[517,null,null,null,null,null,null,null,null,null,null,null,null,null,null,null,null,null,null,null,null,null,2537]
[518,null,null,null,null,null,null,null,null,null,null,null,null,null,null,null,null,null,null,null,null,null,2538]
[519,null,null,null,null,null,null,null,null,null,null,null,null,null,null,null,null,null,null,null,null,null,2539]
[520,null,null,null,null,null,null,null,null,null,null,null,null,null,null,null,null,null,null,null,null,null,2540]
[521,null,null,null,null,null,null,null,null,null,null,null,null,null,null,null,null,null,null,null,null,null,2541]
[522,null,null,null,null,null,null,null,null,null,null,null,null,null,null,null,null,null,null,null,null,null,2542]
[523,null,null,null,null,null,null,null,null,null,null,null,null,null,null,null,null,null,null,null,null,null,2543]
[524,null,null,null,null,null,null,null,null,null,null,null,null,null,null,null,null,null,null,null,null,null,2544]
[525,null,null,null,null,null,null,null,null,null,null,null,null,null,null,null,null,null,null,null,null,null,2545]
[526,null,null,null,null,null,null,null,null,null,null,null,null,null,null,null,null,null,null,null,null,null,2546]
[527,null,null,null,null,null,null,null,null,null,null,null,null,null,null,null,null,null,null,null,null,null,2547]
[528,null,null,null,null,null,null,null,null,null,null,null,null,null,null,null,null,null,null,null,null,null,2548]
[529,null,null,null,null,null,null,null,null,null,null,null,null,null,null,null,null,null,null,null,null,null,2549]
[530,null,null,null,null,null,null,null,null,null,null,null,null,null,null,null,null,null,null,null,null,null,2550]
[531,null,null,null,null,null,null,null,null,null,null,null,null,null,null,null,null,null,null,null,null,null,2551]
[532,null,null,null,null,null,null,null,null,null,null,null,null,null,null,null,null,null,null,null,null,null,2552]
[533,null,null,null,null,null,null,null,null,null,null,null,null,null,null,null,null,null,null,null,null,null,2553]
[534,null,null,null,null,null,null,null,null,null,null,null,null,null,null,null,null,null,null,null,null,null,2554]
[535,null,null,null,null,null,null,null,null,null,null,null,null,null,null,null,null,null,null,null,null,null,2555]
[536,null,null,null,null,null,null,null,null,null,null,null,null,null,null,null,null,null,null,null,null,null,2556]
[537,null,null,null,null,null,null,null,null,null,null,null,null,null,null,null,null,null,null,null,null,null,2557]
[538,null,null,null,null,null,null,null,null,null,null,null,null,null,null,null,null,null,null,null,null,null,2558]
[539,null,null,null,null,null,null,null,null,null,null,null,null,null,null,null,null,null,null,null,null,null,2559]
[540,null,null,null,null,null,null,null,null,null,null,null,null,null,null,null,null,null,null,null,null,null,2560]
[541,null,null,null,null,null,null,null,null,null,null,null,null,null,null,null,null,null,null,null,null,null,2561]
[542,null,null,null,null,null,null,null,null,null,null,null,null,null,null,null,null,null,null,null,null,null,2562]
[543,null,null,null,null,null,null,null,null,null,null,null,null,null,null,null,null,null,null,null,null,null,2563]
[544,null,null,null,null,null,null,null,null,null,null,null,null,null,null,null,null,null,null,null,null,null,2564]
[545,null,null,null,null,null,null,null,null,null,null,null,null,null,null,null,null,null,null,null,null,null,2565]
[546,null,null,null,null,null,null,null,null,null,null,null,null,null,null,null,null,null,null,null,null,null,2566]
[547,null,null,null,null,null,null,null,null,null,null,null,null,null,null,null,null,null,null,null,null,null,2567]
[548,null,null,null,null,null,null,null,null,null,null,null,null,null,null,null,null,null,null,null,null,null,2568]
[549,null,null,null,null,null,null,null,null,null,null,null,null,null,null,null,null,null,null,null,null,null,2569]
[550,null,null,null,null,null,null,null,null,null,null,null,null,null,null,null,null,null,null,null,null,null,2570]
[551,null,null,null,null,null,null,null,null,null,null,null,null,null,null,null,null,null,null,null,null,null,2571]
[552,null,null,null,null,null,null,null,null,null,null,null,null,null,null,null,null,null,null,null,null,null,2572]
[553,null,null,null,null,null,null,null,null,null,null,null,null,null,null,null,null,null,null,null,null,null,2573]
[554,null,null,null,null,null,null,null,null,null,null,null,null,null,null,null,null,null,null,null,null,null,2574]
[555,null,null,null,null,null,null,null,null,null,null,null,null,null,null,null,null,null,null,null,null,null,2575]
[556,null,null,null,null,null,null,null,null,null,null,null,null,null,null,null,null,null,null,null,null,null,2576]
[557,null,null,null,null,null,null,null,null,null,null,null,null,null,null,null,null,null,null,null,null,null,2577]
[558,null,null,null,null,null,null,null,null,null,null,null,null,null,null,null,null,null,null,null,null,null,2578]
[559,null,null,null,null,null,null,null,null,null,null,null,null,null,null,null,null,null,null,null,null,null,2579]
[560,null,null,null,null,null,null,null,null,null,null,null,null,null,null,null,null,null,null,null,null,null,2580]
[561,null,null,null,null,null,null,null,null,null,null,null,null,null,null,null,null,null,null,null,null,null,2581]
[562,null,null,null,null,null,null,null,null,null,null,null,null,null,null,null,null,null,null,null,null,null,2582]
[563,null,null,null,null,null,null,null,null,null,null,null,null,null,null,null,null,null,null,null,null,null,2583]
[564,null,null,null,null,null,null,null,null,null,null,null,null,null,null,null,null,null,null,null,null,null,2584]
[565,null,null,null,null,null,null,null,null,null,null,null,null,null,null,null,null,null,null,null,null,null,2585]
[566,null,null,null,null,null,null,null,null,null,null,null,null,null,null,null,null,null,null,null,null,null,2586]
[567,null,null,null,null,null,null,null,null,null,null,null,null,null,null,null,null,null,null,null,null,null,2587]
[568,null,null,null,null,null,null,null,null,null,null,null,null,null,null,null,null,null,null,null,null,null,2588]
[569,null,null,null,null,null,null,null,null,null,null,null,null,null,null,null,null,null,null,null,null,null,2589]
[570,null,null,null,null,null,null,null,null,null,null,null,null,null,null,null,null,null,null,null,null,null,2590]
[571,null,null,null,null,null,null,null,null,null,null,null,null,null,null,null,null,null,null,null,null,null,2591]
[572,null,null,null,null,null,null,null,null,null,null,null,null,null,null,null,null,null,null,null,null,null,2592]
[573,null,null,null,null,null,null,null,null,null,null,null,null,null,null,null,null,null,null,null,null,null,2593]
[574,null,null,null,null,null,null,null,null,null,null,null,null,null,null,null,null,null,null,null,null,null,2594]
[575,null,null,null,null,null,null,null,null,null,null,null,null,null,null,null,null,null,null,null,null,null,2595]
[576,null,null,null,null,null,null,null,null,null,null,null,null,null,null,null,null,null,null,null,null,null,2596]
[577,null,null,null,null,null,null,null,null,null,null,null,null,null,null,null,null,null,null,null,null,null,2597]
[578,null,null,null,null,null,null,null,null,null,null,null,null,null,null,null,null,null,null,null,null,null,2598]
[579,null,null,null,null,null,null,null,null,null,null,null,null,null,null,null,null,null,null,null,null,null,2599]
[580,null,null,null,null,null,null,null,null,null,null,null,null,null,null,null,null,null,null,null,null,null,2600]
[581,null,null,null,null,null,null,null,null,null,null,null,null,null,null,null,null,null,null,null,null,null,2601]
[582,null,null,null,null,null,null,null,null,null,null,null,null,null,null,null,null,null,null,null,null,null,2602]
[583,null,null,null,null,null,null,null,null,null,null,null,null,null,null,null,null,null,null,null,null,null,2603]
[584,null,null,null,null,null,null,null,null,null,null,null,null,null,null,null,null,null,null,null,null,null,2604]
[585,null,null,null,null,null,null,null,null,null,null,null,null,null,null,null,null,null,null,null,null,null,2605]
[586,null,null,null,null,null,null,null,null,null,null,null,null,null,null,null,null,null,null,null,null,null,2606]
[587,null,null,null,null,null,null,null,null,null,null,null,null,null,null,null,null,null,null,null,null,null,2607]
[588,null,null,null,null,null,null,null,null,null,null,null,null,null,null,null,null,null,null,null,null,null,2608]
[589,null,null,null,null,null,null,null,null,null,null,null,null,null,null,null,null,null,null,null,null,null,2609]
[590,null,null,null,null,null,null,null,null,null,null,null,null,null,null,null,null,null,null,null,null,null,2610]
[591,null,null,null,null,null,null,null,null,null,null,null,null,null,null,null,null,null,null,null,null,null,2611]
[592,null,null,null,null,null,null,null,null,null,null,null,null,null,null,null,null,null,null,null,null,null,2612]
[593,null,null,null,null,null,null,null,null,null,null,null,null,null,null,null,null,null,null,null,null,null,2613]
[594,null,null,null,null,null,null,null,null,null,null,null,null,null,null,null,null,null,null,null,null,null,2614]
[595,null,null,null,null,null,null,null,null,null,null,null,null,null,null,null,null,null,null,null,null,null,2615]
[596,null,null,null,null,null,null,null,null,null,null,null,null,null,null,null,null,null,null,null,null,null,2616]
[597,null,null,null,null,null,null,null,null,null,null,null,null,null,null,null,null,null,null,null,null,null,2617]
[598,null,null,null,null,null,null,null,null,null,null,null,null,null,null,null,null,null,null,null,null,null,2618]
[599,null,null,null,null,null,null,null,null,null,null,null,null,null,null,null,null,null,null,null,null,null,2619]
[600,null,null,null,null,null,null,null,null,null,null,null,null,null,null,null,null,null,null,null,null,null,2620]
[601,null,null,null,null,null,null,null,null,null,null,null,null,null,null,null,null,null,null,null,null,null,2621]
[602,null,null,null,null,null,null,null,null,null,null,null,null,null,null,null,null,null,null,null,null,null,2622]
[603,null,null,null,null,null,null,null,null,null,null,null,null,null,null,null,null,null,null,null,null,null,2623]
[604,null,null,null,null,null,null,null,null,null,null,null,null,null,null,null,null,null,null,null,null,null,2624]
[605,null,null,null,null,null,null,null,null,null,null,null,null,null,null,null,null,null,null,null,null,null,2625]
[606,null,null,null,null,null,null,null,null,null,null,null,null,null,null,null,null,null,null,null,null,null,2626]
[607,null,null,null,null,null,null,null,null,null,null,null,null,null,null,null,null,null,null,null,null,null,2627]
[608,null,null,null,null,null,null,null,null,null,null,null,null,null,null,null,null,null,null,null,null,null,2628]
[609,null,null,null,null,null,null,null,null,null,null,null,null,null,null,null,null,null,null,null,null,null,2629]
[610,null,null,null,null,null,null,null,null,null,null,null,null,null,null,null,null,null,null,null,null,null,2630]
[611,null,null,null,null,null,null,null,null,null,null,null,null,null,null,null,null,null,null,null,null,null,2631]
[612,null,null,null,null,null,null,null,null,null,null,null,null,null,null,null,null,null,null,null,null,null,2632]
[613,null,null,null,null,null,null,null,null,null,null,null,null,null,null,null,null,null,null,null,null,null,2633]
[614,null,null,null,null,null,null,null,null,null,null,null,null,null,null,null,null,null,null,null,null,null,2634]
[615,null,null,null,null,null,null,null,null,null,null,null,null,null,null,null,null,null,null,null,null,null,2635]
[616,null,null,null,null,null,null,null,null,null,null,null,null,null,null,null,null,null,null,null,null,null,2636]
[617,null,null,null,null,null,null,null,null,null,null,null,null,null,null,null,null,null,null,null,null,null,2637]
[618,null,null,null,null,null,null,null,null,null,null,null,null,null,null,null,null,null,null,null,null,null,2638]
[619,null,null,null,null,null,null,null,null,null,null,null,null,null,null,null,null,null,null,null,null,null,2639]
[620,null,null,null,null,null,null,null,null,null,null,null,null,null,null,null,null,null,null,null,null,null,2640]
[621,null,null,null,null,null,null,null,null,null,null,null,null,null,null,null,null,null,null,null,null,null,2641]
[622,null,null,null,null,null,null,null,null,null,null,null,null,null,null,null,null,null,null,null,null,null,2642]
[623,null,null,null,null,null,null,null,null,null,null,null,null,null,null,null,null,null,null,null,null,null,2643]
[624,null,null,null,null,null,null,null,null,null,null,null,null,null,null,null,null,null,null,null,null,null,2644]
[625,null,null,null,null,null,null,null,null,null,null,null,null,null,null,null,null,null,null,null,null,null,2645]
[626,null,null,null,null,null,null,null,null,null,null,null,null,null,null,null,null,null,null,null,null,null,2646]
[627,null,null,null,null,null,null,null,null,null,null,null,null,null,null,null,null,null,null,null,null,null,2647]
[628,null,null,null,null,null,null,null,null,null,null,null,null,null,null,null,null,null,null,null,null,null,2648]
[629,null,null,null,null,null,null,null,null,null,null,null,null,null,null,null,null,null,null,null,null,null,2649]
[630,null,null,null,null,null,null,null,null,null,null,null,null,null,null,null,null,null,null,null,null,null,2650]
[631,null,null,null,null,null,null,null,null,null,null,null,null,null,null,null,null,null,null,null,null,null,2651]
[632,null,null,null,null,null,null,null,null,null,null,null,null,null,null,null,null,null,null,null,null,null,2652]
[633,null,null,null,null,null,null,null,null,null,null,null,null,null,null,null,null,null,null,null,null,null,2653]
[634,null,null,null,null,null,null,null,null,null,null,null,null,null,null,null,null,null,null,null,null,null,2654]
[635,null,null,null,null,null,null,null,null,null,null,null,null,null,null,null,null,null,null,null,null,null,2655]
[636,null,null,null,null,null,null,null,null,null,null,null,null,null,null,null,null,null,null,null,null,null,2656]
[637,null,null,null,null,null,null,null,null,null,null,null,null,null,null,null,null,null,null,null,null,null,2657]
[638,null,null,null,null,null,null,null,null,null,null,null,null,null,null,null,null,null,null,null,null,null,2658]
[639,null,null,null,null,null,null,null,null,null,null,null,null,null,null,null,null,null,null,null,null,null,2659]
[640,null,null,null,null,null,null,null,null,null,null,null,null,null,null,null,null,null,null,null,null,null,2660]
[641,null,null,null,null,null,null,null,null,null,null,null,null,null,null,null,null,null,null,null,null,null,2661]
[642,null,null,null,null,null,null,null,null,null,null,null,null,null,null,null,null,null,null,null,null,null,2662]
[643,null,null,null,null,null,null,null,null,null,null,null,null,null,null,null,null,null,null,null,null,null,2663]
[644,null,null,null,null,null,null,null,null,null,null,null,null,null,null,null,null,null,null,null,null,null,2664]
[645,null,null,null,null,null,null,null,null,null,null,null,null,null,null,null,null,null,null,null,null,null,2665]
[646,null,null,null,null,null,null,null,null,null,null,null,null,null,null,null,null,null,null,null,null,null,2666]
[647,null,null,null,null,null,null,null,null,null,null,null,null,null,null,null,null,null,null,null,null,null,2667]
[648,null,null,null,null,null,null,null,null,null,null,null,null,null,null,null,null,null,null,null,null,null,2668]
[649,null,null,null,null,null,null,null,null,null,null,null,null,null,null,null,null,null,null,null,null,null,2669]
[650,null,null,null,null,null,null,null,null,null,null,null,null,null,null,null,null,null,null,null,null,null,2670]
[651,null,null,null,null,null,null,null,null,null,null,null,null,null,null,null,null,null,null,null,null,null,2671]
[652,null,null,null,null,null,null,null,null,null,null,null,null,null,null,null,null,null,null,null,null,null,2672]
[653,null,null,null,null,null,null,null,null,null,null,null,null,null,null,null,null,null,null,null,null,null,2673]
[654,null,null,null,null,null,null,null,null,null,null,null,null,null,null,null,null,null,null,null,null,null,2674]
[655,null,null,null,null,null,null,null,null,null,null,null,null,null,null,null,null,null,null,null,null,null,2675]
[656,null,null,null,null,null,null,null,null,null,null,null,null,null,null,null,null,null,null,null,null,null,2676]
[657,null,null,null,null,null,null,null,null,null,null,null,null,null,null,null,null,null,null,null,null,null,2677]
[658,null,null,null,null,null,null,null,null,null,null,null,null,null,null,null,null,null,null,null,null,null,2678]
[659,null,null,null,null,null,null,null,null,null,null,null,null,null,null,null,null,null,null,null,null,null,2679]
[660,null,null,null,null,null,null,null,null,null,null,null,null,null,null,null,null,null,null,null,null,null,2680]
[661,null,null,null,null,null,null,null,null,null,null,null,null,null,null,null,null,null,null,null,null,null,2681]
[662,null,null,null,null,null,null,null,null,null,null,null,null,null,null,null,null,null,null,null,null,null,2682]
[663,null,null,null,null,null,null,null,null,null,null,null,null,null,null,null,null,null,null,null,null,null,2683]
[664,null,null,null,null,null,null,null,null,null,null,null,null,null,null,null,null,null,null,null,null,null,2684]
[665,null,null,null,null,null,null,null,null,null,null,null,null,null,null,null,null,null,null,null,null,null,2685]
[666,null,null,null,null,null,null,null,null,null,null,null,null,null,null,null,null,null,null,null,null,null,2686]
[667,null,null,null,null,null,null,null,null,null,null,null,null,null,null,null,null,null,null,null,null,null,2687]
[668,null,null,null,null,null,null,null,null,null,null,null,null,null,null,null,null,null,null,null,null,null,2688]
[669,null,null,null,null,null,null,null,null,null,null,null,null,null,null,null,null,null,null,null,null,null,2689]
[670,null,null,null,null,null,null,null,null,null,null,null,null,null,null,null,null,null,null,null,null,null,2690]
[671,null,null,null,null,null,null,null,null,null,null,null,null,null,null,null,null,null,null,null,null,null,2691]
[672,null,null,null,null,null,null,null,null,null,null,null,null,null,null,null,null,null,null,null,null,null,2692]
[673,null,null,null,null,null,null,null,null,null,null,null,null,null,null,null,null,null,null,null,null,null,2693]
[674,null,null,null,null,null,null,null,null,null,null,null,null,null,null,null,null,null,null,null,null,null,2694]
[675,null,null,null,null,null,null,null,null,null,null,null,null,null,null,null,null,null,null,null,null,null,2695]
[676,null,null,null,null,null,null,null,null,null,null,null,null,null,null,null,null,null,null,null,null,null,2696]
[677,null,null,null,null,null,null,null,null,null,null,null,null,null,null,null,null,null,null,null,null,null,2697]
[678,null,null,null,null,null,null,null,null,null,null,null,null,null,null,null,null,null,null,null,null,null,2698]
[679,null,null,null,null,null,null,null,null,null,null,null,null,null,null,null,null,null,null,null,null,null,2699]
[680,null,null,null,null,null,null,null,null,null,null,null,null,null,null,null,null,null,null,null,null,null,2700]
[681,null,null,null,null,null,null,null,null,null,null,null,null,null,null,null,null,null,null,null,null,null,2701]
[682,null,null,null,null,null,null,null,null,null,null,null,null,null,null,null,null,null,null,null,null,null,2702]
[683,null,null,null,null,null,null,null,null,null,null,null,null,null,null,null,null,null,null,null,null,null,2703]
[684,null,null,null,null,null,null,null,null,null,null,null,null,null,null,null,null,null,null,null,null,null,2704]
[685,null,null,null,null,null,null,null,null,null,null,null,null,null,null,null,null,null,null,null,null,null,2705]
[686,null,null,null,null,null,null,null,null,null,null,null,null,null,null,null,null,null,null,null,null,null,2706]
[687,null,null,null,null,null,null,null,null,null,null,null,null,null,null,null,null,null,null,null,null,null,2707]
[688,null,null,null,null,null,null,null,null,null,null,null,null,null,null,null,null,null,null,null,null,null,2708]
[689,null,null,null,null,null,null,null,null,null,null,null,null,null,null,null,null,null,null,null,null,null,2709]
[690,null,null,null,null,null,null,null,null,null,null,null,null,null,null,null,null,null,null,null,null,null,2710]
[691,null,null,null,null,null,null,null,null,null,null,null,null,null,null,null,null,null,null,null,null,null,2711]
[692,null,null,null,null,null,null,null,null,null,null,null,null,null,null,null,null,null,null,null,null,null,2712]
[693,null,null,null,null,null,null,null,null,null,null,null,null,null,null,null,null,null,null,null,null,null,2713]
[694,null,null,null,null,null,null,null,null,null,null,null,null,null,null,null,null,null,null,null,null,null,2714]
[695,null,null,null,null,null,null,null,null,null,null,null,null,null,null,null,null,null,null,null,null,null,2715]
[696,null,null,null,null,null,null,null,null,null,null,null,null,null,null,null,null,null,null,null,null,null,2716]
[697,null,null,null,null,null,null,null,null,null,null,null,null,null,null,null,null,null,null,null,null,null,2717]
[698,null,null,null,null,null,null,null,null,null,null,null,null,null,null,null,null,null,null,null,null,null,2718]
[699,null,null,null,null,null,null,null,null,null,null,null,null,null,null,null,null,null,null,null,null,null,2719]
[700,null,null,null,null,null,null,null,null,null,null,null,null,null,null,null,null,null,null,null,null,null,2720]
[701,null,null,null,null,null,null,null,null,null,null,null,null,null,null,null,null,null,null,null,null,null,2721]
[702,null,null,null,null,null,null,null,null,null,null,null,null,null,null,null,null,null,null,null,null,null,2722]
[703,null,null,null,null,null,null,null,null,null,null,null,null,null,null,null,null,null,null,null,null,null,2723]
[704,null,null,null,null,null,null,null,null,null,null,null,null,null,null,null,null,null,null,null,null,null,2724]
[705,null,null,null,null,null,null,null,null,null,null,null,null,null,null,null,null,null,null,null,null,null,2725]
[706,null,null,null,null,null,null,null,null,null,null,null,null,null,null,null,null,null,null,null,null,null,2726]
[707,null,null,null,null,null,null,null,null,null,null,null,null,null,null,null,null,null,null,null,null,null,2727]
[708,null,null,null,null,null,null,null,null,null,null,null,null,null,null,null,null,null,null,null,null,null,2728]
[709,null,null,null,null,null,null,null,null,null,null,null,null,null,null,null,null,null,null,null,null,null,2729]
[710,null,null,null,null,null,null,null,null,null,null,null,null,null,null,null,null,null,null,null,null,null,2730]
[711,null,null,null,null,null,null,null,null,null,null,null,null,null,null,null,null,null,null,null,null,null,2731]
[712,null,null,null,null,null,null,null,null,null,null,null,null,null,null,null,null,null,null,null,null,null,2732]
[713,null,null,null,null,null,null,null,null,null,null,null,null,null,null,null,null,null,null,null,null,null,2733]
[714,null,null,null,null,null,null,null,null,null,null,null,null,null,null,null,null,null,null,null,null,null,2734]
[715,null,null,null,null,null,null,null,null,null,null,null,null,null,null,null,null,null,null,null,null,null,2735]
[716,null,null,null,null,null,null,null,null,null,null,null,null,null,null,null,null,null,null,null,null,null,2736]
[717,null,null,null,null,null,null,null,null,null,null,null,null,null,null,null,null,null,null,null,null,null,2737]
[718,null,null,null,null,null,null,null,null,null,null,null,null,null,null,null,null,null,null,null,null,null,2738]
[719,null,null,null,null,null,null,null,null,null,null,null,null,null,null,null,null,null,null,null,null,null,2739]
[720,null,null,null,null,null,null,null,null,null,null,null,null,null,null,null,null,null,null,null,null,null,2740]
[721,null,null,null,null,null,null,null,null,null,null,null,null,null,null,null,null,null,null,null,null,null,2741]
[722,null,null,null,null,null,null,null,null,null,null,null,null,null,null,null,null,null,null,null,null,null,2742]
[723,null,null,null,null,null,null,null,null,null,null,null,null,null,null,null,null,null,null,null,null,null,2743]
[724,null,null,null,null,null,null,null,null,null,null,null,null,null,null,null,null,null,null,null,null,null,2744]
[725,null,null,null,null,null,null,null,null,null,null,null,null,null,null,null,null,null,null,null,null,null,2745]
[726,null,null,null,null,null,null,null,null,null,null,null,null,null,null,null,null,null,null,null,null,null,2746]
[727,null,null,null,null,null,null,null,null,null,null,null,null,null,null,null,null,null,null,null,null,null,2747]
[728,null,null,null,null,null,null,null,null,null,null,null,null,null,null,null,null,null,null,null,null,null,2748]
[729,null,null,null,null,null,null,null,null,null,null,null,null,null,null,null,null,null,null,null,null,null,2749]
[730,null,null,null,null,null,null,null,null,null,null,null,null,null,null,null,null,null,null,null,null,null,2750]
[731,null,null,null,null,null,null,null,null,null,null,null,null,null,null,null,null,null,null,null,null,null,2751]
[732,null,null,null,null,null,null,null,null,null,null,null,null,null,null,null,null,null,null,null,null,null,2752]
[733,null,null,null,null,null,null,null,null,null,null,null,null,null,null,null,null,null,null,null,null,null,2753]
[734,null,null,null,null,null,null,null,null,null,null,null,null,null,null,null,null,null,null,null,null,null,2754]
[735,null,null,null,null,null,null,null,null,null,null,null,null,null,null,null,null,null,null,null,null,null,2755]
[736,null,null,null,null,null,null,null,null,null,null,null,null,null,null,null,null,null,null,null,null,null,2756]
[737,null,null,null,null,null,null,null,null,null,null,null,null,null,null,null,null,null,null,null,null,null,2757]
[738,null,null,null,null,null,null,null,null,null,null,null,null,null,null,null,null,null,null,null,null,null,2758]
[739,null,null,null,null,null,null,null,null,null,null,null,null,null,null,null,null,null,null,null,null,null,2759]
[740,null,null,null,null,null,null,null,null,null,null,null,null,null,null,null,null,null,null,null,null,null,2760]
[741,null,null,null,null,null,null,null,null,null,null,null,null,null,null,null,null,null,null,null,null,null,2761]
[742,null,null,null,null,null,null,null,null,null,null,null,null,null,null,null,null,null,null,null,null,null,2762]
[743,null,null,null,null,null,null,null,null,null,null,null,null,null,null,null,null,null,null,null,null,null,2763]
[744,null,null,null,null,null,null,null,null,null,null,null,null,null,null,null,null,null,null,null,null,null,2764]
[745,null,null,null,null,null,null,null,null,null,null,null,null,null,null,null,null,null,null,null,null,null,2765]
[746,null,null,null,null,null,null,null,null,null,null,null,null,null,null,null,null,null,null,null,null,null,2766]
[747,null,null,null,null,null,null,null,null,null,null,null,null,null,null,null,null,null,null,null,null,null,2767]
[748,null,null,null,null,null,null,null,null,null,null,null,null,null,null,null,null,null,null,null,null,null,2768]
[749,null,null,null,null,null,null,null,null,null,null,null,null,null,null,null,null,null,null,null,null,null,2769]
[750,null,null,null,null,null,null,null,null,null,null,null,null,null,null,null,null,null,null,null,null,null,2770]
[751,null,null,null,null,null,null,null,null,null,null,null,null,null,null,null,null,null,null,null,null,null,2771]
[752,null,null,null,null,null,null,null,null,null,null,null,null,null,null,null,null,null,null,null,null,null,2772]
[753,null,null,null,null,null,null,null,null,null,null,null,null,null,null,null,null,null,null,null,null,null,2773]
[754,null,null,null,null,null,null,null,null,null,null,null,null,null,null,null,null,null,null,null,null,null,2774]
[755,null,null,null,null,null,null,null,null,null,null,null,null,null,null,null,null,null,null,null,null,null,2775]
[756,null,null,null,null,null,null,null,null,null,null,null,null,null,null,null,null,null,null,null,null,null,2776]
[757,null,null,null,null,null,null,null,null,null,null,null,null,null,null,null,null,null,null,null,null,null,2777]
[758,null,null,null,null,null,null,null,null,null,null,null,null,null,null,null,null,null,null,null,null,null,2778]
[759,null,null,null,null,null,null,null,null,null,null,null,null,null,null,null,null,null,null,null,null,null,2779]
[760,null,null,null,null,null,null,null,null,null,null,null,null,null,null,null,null,null,null,null,null,null,2780]
[761,null,null,null,null,null,null,null,null,null,null,null,null,null,null,null,null,null,null,null,null,null,2781]
[762,null,null,null,null,null,null,null,null,null,null,null,null,null,null,null,null,null,null,null,null,null,2782]
[763,null,null,null,null,null,null,null,null,null,null,null,null,null,null,null,null,null,null,null,null,null,2783]
[764,null,null,null,null,null,null,null,null,null,null,null,null,null,null,null,null,null,null,null,null,null,2784]
[765,null,null,null,null,null,null,null,null,null,null,null,null,null,null,null,null,null,null,null,null,null,2785]
[766,null,null,null,null,null,null,null,null,null,null,null,null,null,null,null,null,null,null,null,null,null,2786]
[767,null,null,null,null,null,null,null,null,null,null,null,null,null,null,null,null,null,null,null,null,null,2787]
[768,null,null,null,null,null,null,null,null,null,null,null,null,null,null,null,null,null,null,null,null,null,2788]
[769,null,null,null,null,null,null,null,null,null,null,null,null,null,null,null,null,null,null,null,null,null,2789]
[770,null,null,null,null,null,null,null,null,null,null,null,null,null,null,null,null,null,null,null,null,null,2790]
[771,null,null,null,null,null,null,null,null,null,null,null,null,null,null,null,null,null,null,null,null,null,2791]
[772,null,null,null,null,null,null,null,null,null,null,null,null,null,null,null,null,null,null,null,null,null,2792]
[773,null,null,null,null,null,null,null,null,null,null,null,null,null,null,null,null,null,null,null,null,null,2793]
[774,null,null,null,null,null,null,null,null,null,null,null,null,null,null,null,null,null,null,null,null,null,2794]
[775,null,null,null,null,null,null,null,null,null,null,null,null,null,null,null,null,null,null,null,null,null,2795]
[776,null,null,null,null,null,null,null,null,null,null,null,null,null,null,null,null,null,null,null,null,null,2796]
[777,null,null,null,null,null,null,null,null,null,null,null,null,null,null,null,null,null,null,null,null,null,2797]
[778,null,null,null,null,null,null,null,null,null,null,null,null,null,null,null,null,null,null,null,null,null,2798]
[779,null,null,null,null,null,null,null,null,null,null,null,null,null,null,null,null,null,null,null,null,null,2799]
[780,null,null,null,null,null,null,null,null,null,null,null,null,null,null,null,null,null,null,null,null,null,2800]
[781,null,null,null,null,null,null,null,null,null,null,null,null,null,null,null,null,null,null,null,null,null,2801]
[782,null,null,null,null,null,null,null,null,null,null,null,null,null,null,null,null,null,null,null,null,null,2802]
[783,null,null,null,null,null,null,null,null,null,null,null,null,null,null,null,null,null,null,null,null,null,2803]
[784,null,null,null,null,null,null,null,null,null,null,null,null,null,null,null,null,null,null,null,null,null,2804]
[785,null,null,null,null,null,null,null,null,null,null,null,null,null,null,null,null,null,null,null,null,null,2805]
[786,null,null,null,null,null,null,null,null,null,null,null,null,null,null,null,null,null,null,null,null,null,2806]
[787,null,null,null,null,null,null,null,null,null,null,null,null,null,null,null,null,null,null,null,null,null,2807]
[788,null,null,null,null,null,null,null,null,null,null,null,null,null,null,null,null,null,null,null,null,null,2808]
[789,null,null,null,null,null,null,null,null,null,null,null,null,null,null,null,null,null,null,null,null,null,2809]
[790,null,null,null,null,null,null,null,null,null,null,null,null,null,null,null,null,null,null,null,null,null,2810]
[791,null,null,null,null,null,null,null,null,null,null,null,null,null,null,null,null,null,null,null,null,null,2811]
[792,null,null,null,null,null,null,null,null,null,null,null,null,null,null,null,null,null,null,null,null,null,2812]
[793,null,null,null,null,null,null,null,null,null,null,null,null,null,null,null,null,null,null,null,null,null,2813]
[794,null,null,null,null,null,null,null,null,null,null,null,null,null,null,null,null,null,null,null,null,null,2814]
[795,null,null,null,null,null,null,null,null,null,null,null,null,null,null,null,null,null,null,null,null,null,2815]
[796,null,null,null,null,null,null,null,null,null,null,null,null,null,null,null,null,null,null,null,null,null,2816]
[797,null,null,null,null,null,null,null,null,null,null,null,null,null,null,null,null,null,null,null,null,null,2817]
[798,null,null,null,null,null,null,null,null,null,null,null,null,null,null,null,null,null,null,null,null,null,2818]
[799,null,null,null,null,null,null,null,null,null,null,null,null,null,null,null,null,null,null,null,null,null,2819]
[800,null,null,null,null,null,null,null,null,null,null,null,null,null,null,null,null,null,null,null,null,null,2820]
[801,null,null,null,null,null,null,null,null,null,null,null,null,null,null,null,null,null,null,null,null,null,2821]
[802,null,null,null,null,null,null,null,null,null,null,null,null,null,null,null,null,null,null,null,null,null,2822]
[803,null,null,null,null,null,null,null,null,null,null,null,null,null,null,null,null,null,null,null,null,null,2823]
[804,null,null,null,null,null,null,null,null,null,null,null,null,null,null,null,null,null,null,null,null,null,2824]
[805,null,null,null,null,null,null,null,null,null,null,null,null,null,null,null,null,null,null,null,null,null,2825]
[806,null,null,null,null,null,null,null,null,null,null,null,null,null,null,null,null,null,null,null,null,null,2826]
[807,null,null,null,null,null,null,null,null,null,null,null,null,null,null,null,null,null,null,null,null,null,2827]
[808,null,null,null,null,null,null,null,null,null,null,null,null,null,null,null,null,null,null,null,null,null,2828]
[809,null,null,null,null,null,null,null,null,null,null,null,null,null,null,null,null,null,null,null,null,null,2829]
[810,null,null,null,null,null,null,null,null,null,null,null,null,null,null,null,null,null,null,null,null,null,2830]
[811,null,null,null,null,null,null,null,null,null,null,null,null,null,null,null,null,null,null,null,null,null,2831]
[812,null,null,null,null,null,null,null,null,null,null,null,null,null,null,null,null,null,null,null,null,null,2832]
[813,null,null,null,null,null,null,null,null,null,null,null,null,null,null,null,null,null,null,null,null,null,2833]
[814,null,null,null,null,null,null,null,null,null,null,null,null,null,null,null,null,null,null,null,null,null,2834]
[815,null,null,null,null,null,null,null,null,null,null,null,null,null,null,null,null,null,null,null,null,null,2835]
[816,null,null,null,null,null,null,null,null,null,null,null,null,null,null,null,null,null,null,null,null,null,2836]
[817,null,null,null,null,null,null,null,null,null,null,null,null,null,null,null,null,null,null,null,null,null,2837]
[818,null,null,null,null,null,null,null,null,null,null,null,null,null,null,null,null,null,null,null,null,null,2838]
[819,null,null,null,null,null,null,null,null,null,null,null,null,null,null,null,null,null,null,null,null,null,2839]
[820,null,null,null,null,null,null,null,null,null,null,null,null,null,null,null,null,null,null,null,null,null,2840]
[821,null,null,null,null,null,null,null,null,null,null,null,null,null,null,null,null,null,null,null,null,null,2841]
[822,null,null,null,null,null,null,null,null,null,null,null,null,null,null,null,null,null,null,null,null,null,2842]
[823,null,null,null,null,null,null,null,null,null,null,null,null,null,null,null,null,null,null,null,null,null,2843]
[824,null,null,null,null,null,null,null,null,null,null,null,null,null,null,null,null,null,null,null,null,null,2844]
[825,null,null,null,null,null,null,null,null,null,null,null,null,null,null,null,null,null,null,null,null,null,2845]
[826,null,null,null,null,null,null,null,null,null,null,null,null,null,null,null,null,null,null,null,null,null,2846]
[827,null,null,null,null,null,null,null,null,null,null,null,null,null,null,null,null,null,null,null,null,null,2847]
[828,null,null,null,null,null,null,null,null,null,null,null,null,null,null,null,null,null,null,null,null,null,2848]
[829,null,null,null,null,null,null,null,null,null,null,null,null,null,null,null,null,null,null,null,null,null,2849]
[830,null,null,null,null,null,null,null,null,null,null,null,null,null,null,null,null,null,null,null,null,null,2850]
[831,null,null,null,null,null,null,null,null,null,null,null,null,null,null,null,null,null,null,null,null,null,2851]
[832,null,null,null,null,null,null,null,null,null,null,null,null,null,null,null,null,null,null,null,null,null,2852]
[833,null,null,null,null,null,null,null,null,null,null,null,null,null,null,null,null,null,null,null,null,null,2853]
[834,null,null,null,null,null,null,null,null,null,null,null,null,null,null,null,null,null,null,null,null,null,2854]
[835,null,null,null,null,null,null,null,null,null,null,null,null,null,null,null,null,null,null,null,null,null,2855]
[836,null,null,null,null,null,null,null,null,null,null,null,null,null,null,null,null,null,null,null,null,null,2856]
[837,null,null,null,null,null,null,null,null,null,null,null,null,null,null,null,null,null,null,null,null,null,2857]
[838,null,null,null,null,null,null,null,null,null,null,null,null,null,null,null,null,null,null,null,null,null,2858]
[839,null,null,null,null,null,null,null,null,null,null,null,null,null,null,null,null,null,null,null,null,null,2859]
[840,null,null,null,null,null,null,null,null,null,null,null,null,null,null,null,null,null,null,null,null,null,2860]
[841,null,null,null,null,null,null,null,null,null,null,null,null,null,null,null,null,null,null,null,null,null,2861]
[842,null,null,null,null,null,null,null,null,null,null,null,null,null,null,null,null,null,null,null,null,null,2862]
[843,null,null,null,null,null,null,null,null,null,null,null,null,null,null,null,null,null,null,null,null,null,2863]
[844,null,null,null,null,null,null,null,null,null,null,null,null,null,null,null,null,null,null,null,null,null,2864]
[845,null,null,null,null,null,null,null,null,null,null,null,null,null,null,null,null,null,null,null,null,null,2865]
[846,null,null,null,null,null,null,null,null,null,null,null,null,null,null,null,null,null,null,null,null,null,2866]
[847,null,null,null,null,null,null,null,null,null,null,null,null,null,null,null,null,null,null,null,null,null,2867]
[848,null,null,null,null,null,null,null,null,null,null,null,null,null,null,null,null,null,null,null,null,null,2868]
[849,null,null,null,null,null,null,null,null,null,null,null,null,null,null,null,null,null,null,null,null,null,2869]
[850,null,null,null,null,null,null,null,null,null,null,null,null,null,null,null,null,null,null,null,null,null,2870]
[851,null,null,null,null,null,null,null,null,null,null,null,null,null,null,null,null,null,null,null,null,null,2871]
[852,null,null,null,null,null,null,null,null,null,null,null,null,null,null,null,null,null,null,null,null,null,2872]
[853,null,null,null,null,null,null,null,null,null,null,null,null,null,null,null,null,null,null,null,null,null,2873]
[854,null,null,null,null,null,null,null,null,null,null,null,null,null,null,null,null,null,null,null,null,null,2874]
[855,null,null,null,null,null,null,null,null,null,null,null,null,null,null,null,null,null,null,null,null,null,2875]
[856,null,null,null,null,null,null,null,null,null,null,null,null,null,null,null,null,null,null,null,null,null,2876]
[857,null,null,null,null,null,null,null,null,null,null,null,null,null,null,null,null,null,null,null,null,null,2877]
[858,null,null,null,null,null,null,null,null,null,null,null,null,null,null,null,null,null,null,null,null,null,2878]
[859,null,null,null,null,null,null,null,null,null,null,null,null,null,null,null,null,null,null,null,null,null,2879]
[860,null,null,null,null,null,null,null,null,null,null,null,null,null,null,null,null,null,null,null,null,null,2880]
[861,null,null,null,null,null,null,null,null,null,null,null,null,null,null,null,null,null,null,null,null,null,2881]
[862,null,null,null,null,null,null,null,null,null,null,null,null,null,null,null,null,null,null,null,null,null,2882]
[863,null,null,null,null,null,null,null,null,null,null,null,null,null,null,null,null,null,null,null,null,null,2883]
[864,null,null,null,null,null,null,null,null,null,null,null,null,null,null,null,null,null,null,null,null,null,2884]
[865,null,null,null,null,null,null,null,null,null,null,null,null,null,null,null,null,null,null,null,null,null,2885]
[866,null,null,null,null,null,null,null,null,null,null,null,null,null,null,null,null,null,null,null,null,null,2886]
[867,null,null,null,null,null,null,null,null,null,null,null,null,null,null,null,null,null,null,null,null,null,2887]
[868,null,null,null,null,null,null,null,null,null,null,null,null,null,null,null,null,null,null,null,null,null,2888]
[869,null,null,null,null,null,null,null,null,null,null,null,null,null,null,null,null,null,null,null,null,null,2889]
[870,null,null,null,null,null,null,null,null,null,null,null,null,null,null,null,null,null,null,null,null,null,2890]
[871,null,null,null,null,null,null,null,null,null,null,null,null,null,null,null,null,null,null,null,null,null,2891]
[872,null,null,null,null,null,null,null,null,null,null,null,null,null,null,null,null,null,null,null,null,null,2892]
[873,null,null,null,null,null,null,null,null,null,null,null,null,null,null,null,null,null,null,null,null,null,2893]
[874,null,null,null,null,null,null,null,null,null,null,null,null,null,null,null,null,null,null,null,null,null,2894]
[875,null,null,null,null,null,null,null,null,null,null,null,null,null,null,null,null,null,null,null,null,null,2895]
[876,null,null,null,null,null,null,null,null,null,null,null,null,null,null,null,null,null,null,null,null,null,2896]
[877,null,null,null,null,null,null,null,null,null,null,null,null,null,null,null,null,null,null,null,null,null,2897]
[878,null,null,null,null,null,null,null,null,null,null,null,null,null,null,null,null,null,null,null,null,null,2898]
[879,null,null,null,null,null,null,null,null,null,null,null,null,null,null,null,null,null,null,null,null,null,2899]
[880,null,null,null,null,null,null,null,null,null,null,null,null,null,null,null,null,null,null,null,null,null,2900]
[881,null,null,null,null,null,null,null,null,null,null,null,null,null,null,null,null,null,null,null,null,null,2901]
[882,null,null,null,null,null,null,null,null,null,null,null,null,null,null,null,null,null,null,null,null,null,2902]
[883,null,null,null,null,null,null,null,null,null,null,null,null,null,null,null,null,null,null,null,null,null,2903]
[884,null,null,null,null,null,null,null,null,null,null,null,null,null,null,null,null,null,null,null,null,null,2904]
[885,null,null,null,null,null,null,null,null,null,null,null,null,null,null,null,null,null,null,null,null,null,2905]
[886,null,null,null,null,null,null,null,null,null,null,null,null,null,null,null,null,null,null,null,null,null,2906]
[887,null,null,null,null,null,null,null,null,null,null,null,null,null,null,null,null,null,null,null,null,null,2907]
[888,null,null,null,null,null,null,null,null,null,null,null,null,null,null,null,null,null,null,null,null,null,2908]
[889,null,null,null,null,null,null,null,null,null,null,null,null,null,null,null,null,null,null,null,null,null,2909]
[890,null,null,null,null,null,null,null,null,null,null,null,null,null,null,null,null,null,null,null,null,null,2910]
[891,null,null,null,null,null,null,null,null,null,null,null,null,null,null,null,null,null,null,null,null,null,2911]
[892,null,null,null,null,null,null,null,null,null,null,null,null,null,null,null,null,null,null,null,null,null,2912]
[893,null,null,null,null,null,null,null,null,null,null,null,null,null,null,null,null,null,null,null,null,null,2913]
[894,null,null,null,null,null,null,null,null,null,null,null,null,null,null,null,null,null,null,null,null,null,2914]
[895,null,null,null,null,null,null,null,null,null,null,null,null,null,null,null,null,null,null,null,null,null,2915]
[896,null,null,null,null,null,null,null,null,null,null,null,null,null,null,null,null,null,null,null,null,null,2916]
[897,null,null,null,null,null,null,null,null,null,null,null,null,null,null,null,null,null,null,null,null,null,2917]
[898,null,null,null,null,null,null,null,null,null,null,null,null,null,null,null,null,null,null,null,null,null,2918]
[899,null,null,null,null,null,null,null,null,null,null,null,null,null,null,null,null,null,null,null,null,null,2919]
[900,null,null,null,null,null,null,null,null,null,null,null,null,null,null,null,null,null,null,null,null,null,2920]
[901,null,null,null,null,null,null,null,null,null,null,null,null,null,null,null,null,null,null,null,null,null,2921]
[902,null,null,null,null,null,null,null,null,null,null,null,null,null,null,null,null,null,null,null,null,null,2922]
[903,null,null,null,null,null,null,null,null,null,null,null,null,null,null,null,null,null,null,null,null,null,2923]
[904,null,null,null,null,null,null,null,null,null,null,null,null,null,null,null,null,null,null,null,null,null,2924]
[905,null,null,null,null,null,null,null,null,null,null,null,null,null,null,null,null,null,null,null,null,null,2925]
[906,null,null,null,null,null,null,null,null,null,null,null,null,null,null,null,null,null,null,null,null,null,2926]
[907,null,null,null,null,null,null,null,null,null,null,null,null,null,null,null,null,null,null,null,null,null,2927]
[908,null,null,null,null,null,null,null,null,null,null,null,null,null,null,null,null,null,null,null,null,null,2928]
[909,null,null,null,null,null,null,null,null,null,null,null,null,null,null,null,null,null,null,null,null,null,2929]
[910,null,null,null,null,null,null,null,null,null,null,null,null,null,null,null,null,null,null,null,null,null,2930]
[911,null,null,null,null,null,null,null,null,null,null,null,null,null,null,null,null,null,null,null,null,null,2931]
[912,null,null,null,null,null,null,null,null,null,null,null,null,null,null,null,null,null,null,null,null,null,2932]
[913,null,null,null,null,null,null,null,null,null,null,null,null,null,null,null,null,null,null,null,null,null,2933]
[914,null,null,null,null,null,null,null,null,null,null,null,null,null,null,null,null,null,null,null,null,null,2934]
[915,null,null,null,null,null,null,null,null,null,null,null,null,null,null,null,null,null,null,null,null,null,2935]
[916,null,null,null,null,null,null,null,null,null,null,null,null,null,null,null,null,null,null,null,null,null,2936]
[917,null,null,null,null,null,null,null,null,null,null,null,null,null,null,null,null,null,null,null,null,null,2937]
[918,null,null,null,null,null,null,null,null,null,null,null,null,null,null,null,null,null,null,null,null,null,2938]
[919,null,null,null,null,null,null,null,null,null,null,null,null,null,null,null,null,null,null,null,null,null,2939]
[920,null,null,null,null,null,null,null,null,null,null,null,null,null,null,null,null,null,null,null,null,null,2940]
[921,null,null,null,null,null,null,null,null,null,null,null,null,null,null,null,null,null,null,null,null,null,2941]
[922,null,null,null,null,null,null,null,null,null,null,null,null,null,null,null,null,null,null,null,null,null,2942]
[923,null,null,null,null,null,null,null,null,null,null,null,null,null,null,null,null,null,null,null,null,null,2943]
[924,null,null,null,null,null,null,null,null,null,null,null,null,null,null,null,null,null,null,null,null,null,2944]
[925,null,null,null,null,null,null,null,null,null,null,null,null,null,null,null,null,null,null,null,null,null,2945]
[926,null,null,null,null,null,null,null,null,null,null,null,null,null,null,null,null,null,null,null,null,null,2946]
[927,null,null,null,null,null,null,null,null,null,null,null,null,null,null,null,null,null,null,null,null,null,2947]
[928,null,null,null,null,null,null,null,null,null,null,null,null,null,null,null,null,null,null,null,null,null,2948]
[929,null,null,null,null,null,null,null,null,null,null,null,null,null,null,null,null,null,null,null,null,null,2949]
[930,null,null,null,null,null,null,null,null,null,null,null,null,null,null,null,null,null,null,null,null,null,2950]
[931,null,null,null,null,null,null,null,null,null,null,null,null,null,null,null,null,null,null,null,null,null,2951]
[932,null,null,null,null,null,null,null,null,null,null,null,null,null,null,null,null,null,null,null,null,null,2952]
[933,null,null,null,null,null,null,null,null,null,null,null,null,null,null,null,null,null,null,null,null,null,2953]
[934,null,null,null,null,null,null,null,null,null,null,null,null,null,null,null,null,null,null,null,null,null,2954]
[935,null,null,null,null,null,null,null,null,null,null,null,null,null,null,null,null,null,null,null,null,null,2955]
[936,null,null,null,null,null,null,null,null,null,null,null,null,null,null,null,null,null,null,null,null,null,2956]
[937,null,null,null,null,null,null,null,null,null,null,null,null,null,null,null,null,null,null,null,null,null,2957]
[938,null,null,null,null,null,null,null,null,null,null,null,null,null,null,null,null,null,null,null,null,null,2958]
[939,null,null,null,null,null,null,null,null,null,null,null,null,null,null,null,null,null,null,null,null,null,2959]
[940,null,null,null,null,null,null,null,null,null,null,null,null,null,null,null,null,null,null,null,null,null,2960]
[941,null,null,null,null,null,null,null,null,null,null,null,null,null,null,null,null,null,null,null,null,null,2961]
[942,null,null,null,null,null,null,null,null,null,null,null,null,null,null,null,null,null,null,null,null,null,2962]
[943,null,null,null,null,null,null,null,null,null,null,null,null,null,null,null,null,null,null,null,null,null,2963]
[944,null,null,null,null,null,null,null,null,null,null,null,null,null,null,null,null,null,null,null,null,null,2964]
[945,null,null,null,null,null,null,null,null,null,null,null,null,null,null,null,null,null,null,null,null,null,2965]
[946,null,null,null,null,null,null,null,null,null,null,null,null,null,null,null,null,null,null,null,null,null,2966]
[947,null,null,null,null,null,null,null,null,null,null,null,null,null,null,null,null,null,null,null,null,null,2967]
[948,null,null,null,null,null,null,null,null,null,null,null,null,null,null,null,null,null,null,null,null,null,2968]
[949,null,null,null,null,null,null,null,null,null,null,null,null,null,null,null,null,null,null,null,null,null,2969]
[950,null,null,null,null,null,null,null,null,null,null,null,null,null,null,null,null,null,null,null,null,null,2970]
[951,null,null,null,null,null,null,null,null,null,null,null,null,null,null,null,null,null,null,null,null,null,2971]
[952,null,null,null,null,null,null,null,null,null,null,null,null,null,null,null,null,null,null,null,null,null,2972]
[953,null,null,null,null,null,null,null,null,null,null,null,null,null,null,null,null,null,null,null,null,null,2973]
[954,null,null,null,null,null,null,null,null,null,null,null,null,null,null,null,null,null,null,null,null,null,2974]
[955,null,null,null,null,null,null,null,null,null,null,null,null,null,null,null,null,null,null,null,null,null,2975]
[956,null,null,null,null,null,null,null,null,null,null,null,null,null,null,null,null,null,null,null,null,null,2976]
[957,null,null,null,null,null,null,null,null,null,null,null,null,null,null,null,null,null,null,null,null,null,2977]
[958,null,null,null,null,null,null,null,null,null,null,null,null,null,null,null,null,null,null,null,null,null,2978]
[959,null,null,null,null,null,null,null,null,null,null,null,null,null,null,null,null,null,null,null,null,null,2979]
[960,null,null,null,null,null,null,null,null,null,null,null,null,null,null,null,null,null,null,null,null,null,2980]
[961,null,null,null,null,null,null,null,null,null,null,null,null,null,null,null,null,null,null,null,null,null,2981]
[962,null,null,null,null,null,null,null,null,null,null,null,null,null,null,null,null,null,null,null,null,null,2982]
[963,null,null,null,null,null,null,null,null,null,null,null,null,null,null,null,null,null,null,null,null,null,2983]
[964,null,null,null,null,null,null,null,null,null,null,null,null,null,null,null,null,null,null,null,null,null,2984]
[965,null,null,null,null,null,null,null,null,null,null,null,null,null,null,null,null,null,null,null,null,null,2985]
[966,null,null,null,null,null,null,null,null,null,null,null,null,null,null,null,null,null,null,null,null,null,2986]
[967,null,null,null,null,null,null,null,null,null,null,null,null,null,null,null,null,null,null,null,null,null,2987]
[968,null,null,null,null,null,null,null,null,null,null,null,null,null,null,null,null,null,null,null,null,null,2988]
[969,null,null,null,null,null,null,null,null,null,null,null,null,null,null,null,null,null,null,null,null,null,2989]
[970,null,null,null,null,null,null,null,null,null,null,null,null,null,null,null,null,null,null,null,null,null,2990]
[971,null,null,null,null,null,null,null,null,null,null,null,null,null,null,null,null,null,null,null,null,null,2991]
[972,null,null,null,null,null,null,null,null,null,null,null,null,null,null,null,null,null,null,null,null,null,2992]
[973,null,null,null,null,null,null,null,null,null,null,null,null,null,null,null,null,null,null,null,null,null,2993]
[974,null,null,null,null,null,null,null,null,null,null,null,null,null,null,null,null,null,null,null,null,null,2994]
[975,null,null,null,null,null,null,null,null,null,null,null,null,null,null,null,null,null,null,null,null,null,2995]
[976,null,null,null,null,null,null,null,null,null,null,null,null,null,null,null,null,null,null,null,null,null,2996]
[977,null,null,null,null,null,null,null,null,null,null,null,null,null,null,null,null,null,null,null,null,null,2997]
[978,null,null,null,null,null,null,null,null,null,null,null,null,null,null,null,null,null,null,null,null,null,2998]
[979,null,null,null,null,null,null,null,null,null,null,null,null,null,null,null,null,null,null,null,null,null,2999]
[980,null,null,null,null,null,null,null,null,null,null,null,null,null,null,null,null,null,null,null,null,null,3000]
[981,null,null,null,null,null,null,null,null,null,null,null,null,null,null,null,null,null,null,null,null,null,3001]
[982,null,null,null,null,null,null,null,null,null,null,null,null,null,null,null,null,null,null,null,null,null,3002]
[983,null,null,null,null,null,null,null,null,null,null,null,null,null,null,null,null,null,null,null,null,null,3003]
[984,null,null,null,null,null,null,null,null,null,null,null,null,null,null,null,null,null,null,null,null,null,3004]
[985,null,null,null,null,null,null,null,null,null,null,null,null,null,null,null,null,null,null,null,null,null,3005]
[986,null,null,null,null,null,null,null,null,null,null,null,null,null,null,null,null,null,null,null,null,null,3006]
[987,null,null,null,null,null,null,null,null,null,null,null,null,null,null,null,null,null,null,null,null,null,3007]
[988,null,null,null,null,null,null,null,null,null,null,null,null,null,null,null,null,null,null,null,null,null,3008]
[989,null,null,null,null,null,null,null,null,null,null,null,null,null,null,null,null,null,null,null,null,null,3009]
[990,null,null,null,null,null,null,null,null,null,null,null,null,null,null,null,null,null,null,null,null,null,3010]
[991,null,null,null,null,null,null,null,null,null,null,null,null,null,null,null,null,null,null,null,null,null,3011]
[992,null,null,null,null,null,null,null,null,null,null,null,null,null,null,null,null,null,null,null,null,null,3012]
[993,null,null,null,null,null,null,null,null,null,null,null,null,null,null,null,null,null,null,null,null,null,3013]
[994,null,null,null,null,null,null,null,null,null,null,null,null,null,null,null,null,null,null,null,null,null,3014]
[995,null,null,null,null,null,null,null,null,null,null,null,null,null,null,null,null,null,null,null,null,null,3015]
[996,null,null,null,null,null,null,null,null,null,null,null,null,null,null,null,null,null,null,null,null,null,3016]
[997,null,null,null,null,null,null,null,null,null,null,null,null,null,null,null,null,null,null,null,null,null,3017]
[998,null,null,null,null,null,null,null,null,null,null,null,null,null,null,null,null,null,null,null,null,null,3018]
[999,null,null,null,null,null,null,null,null,null,null,null,null,null,null,null,null,null,null,null,null,null,3019]
[1000,null,null,null,null,null,null,null,null,null,null,null,null,null,null,null,null,null,null,null,null,null,3020]
[1001,null,null,null,null,null,null,null,null,null,null,null,null,null,null,null,null,null,null,null,null,null,3021]
[1002,null,null,null,null,null,null,null,null,null,null,null,null,null,null,null,null,null,null,null,null,null,3022]
[1003,null,null,null,null,null,null,null,null,null,null,null,null,null,null,null,null,null,null,null,null,null,3023]
[1004,null,null,null,null,null,null,null,null,null,null,null,null,null,null,null,null,null,null,null,null,null,3024]
[1005,null,null,null,null,null,null,null,null,null,null,null,null,null,null,null,null,null,null,null,null,null,3025]
[1006,null,null,null,null,null,null,null,null,null,null,null,null,null,null,null,null,null,null,null,null,null,3026]
[1007,null,null,null,null,null,null,null,null,null,null,null,null,null,null,null,null,null,null,null,null,null,3027]
[1008,null,null,null,null,null,null,null,null,null,null,null,null,null,null,null,null,null,null,null,null,null,3028]
[1009,null,null,null,null,null,null,null,null,null,null,null,null,null,null,null,null,null,null,null,null,null,3029]
[1010,null,null,null,null,null,null,null,null,null,null,null,null,null,null,null,null,null,null,null,null,null,3030]
[1011,null,null,null,null,null,null,null,null,null,null,null,null,null,null,null,null,null,null,null,null,null,3031]
[1012,null,null,null,null,null,null,null,null,null,null,null,null,null,null,null,null,null,null,null,null,null,3032]
[1013,null,null,null,null,null,null,null,null,null,null,null,null,null,null,null,null,null,null,null,null,null,3033]
[1014,null,null,null,null,null,null,null,null,null,null,null,null,null,null,null,null,null,null,null,null,null,3034]
[1015,null,null,null,null,null,null,null,null,null,null,null,null,null,null,null,null,null,null,null,null,null,3035]
[1016,null,null,null,null,null,null,null,null,null,null,null,null,null,null,null,null,null,null,null,null,null,3036]
[1017,null,null,null,null,null,null,null,null,null,null,null,null,null,null,null,null,null,null,null,null,null,3037]
[1018,null,null,null,null,null,null,null,null,null,null,null,null,null,null,null,null,null,null,null,null,null,3038]
[1019,null,null,null,null,null,null,null,null,null,null,null,null,null,null,null,null,null,null,null,null,null,3039]
[1020,null,null,null,null,null,null,null,null,null,null,null,null,null,null,null,null,null,null,null,null,null,3040]
[1021,null,null,null,null,null,null,null,null,null,null,null,null,null,null,null,null,null,null,null,null,null,3041]
[1022,null,null,null,null,null,null,null,null,null,null,null,null,null,null,null,null,null,null,null,null,null,3042]
[1023,null,null,null,null,null,null,null,null,null,null,null,null,null,null,null,null,null,null,null,null,null,3043]
[1024,null,null,null,null,null,null,null,null,null,null,null,null,null,null,null,null,null,null,null,null,null,3044]
[1025,null,null,null,null,null,null,null,null,null,null,null,null,null,null,null,null,null,null,null,null,null,3045]
[1026,null,null,null,null,null,null,null,null,null,null,null,null,null,null,null,null,null,null,null,null,null,3046]
[1027,null,null,null,null,null,null,null,null,null,null,null,null,null,null,null,null,null,null,null,null,null,3047]
[1028,null,null,null,null,null,null,null,null,null,null,null,null,null,null,null,null,null,null,null,null,null,3048]
[1029,null,null,null,null,null,null,null,null,null,null,null,null,null,null,null,null,null,null,null,null,null,3049]
[1030,null,null,null,null,null,null,null,null,null,null,null,null,null,null,null,null,null,null,null,null,null,3050]
[1031,null,null,null,null,null,null,null,null,null,null,null,null,null,null,null,null,null,null,null,null,null,3051]
[1032,null,null,null,null,null,null,null,null,null,null,null,null,null,null,null,null,null,null,null,null,null,3052]
[1033,null,null,null,null,null,null,null,null,null,null,null,null,null,null,null,null,null,null,null,null,null,3053]
[1034,null,null,null,null,null,null,null,null,null,null,null,null,null,null,null,null,null,null,null,null,null,3054]
[1035,null,null,null,null,null,null,null,null,null,null,null,null,null,null,null,null,null,null,null,null,null,3055]
[1036,null,null,null,null,null,null,null,null,null,null,null,null,null,null,null,null,null,null,null,null,null,3056]
[1037,null,null,null,null,null,null,null,null,null,null,null,null,null,null,null,null,null,null,null,null,null,3057]
[1038,null,null,null,null,null,null,null,null,null,null,null,null,null,null,null,null,null,null,null,null,null,3058]
[1039,null,null,null,null,null,null,null,null,null,null,null,null,null,null,null,null,null,null,null,null,null,3059]
[1040,null,null,null,null,null,null,null,null,null,null,null,null,null,null,null,null,null,null,null,null,null,3060]
[1041,null,null,null,null,null,null,null,null,null,null,null,null,null,null,null,null,null,null,null,null,null,3061]
[1042,null,null,null,null,null,null,null,null,null,null,null,null,null,null,null,null,null,null,null,null,null,3062]
[1043,null,null,null,null,null,null,null,null,null,null,null,null,null,null,null,null,null,null,null,null,null,3063]
[1044,null,null,null,null,null,null,null,null,null,null,null,null,null,null,null,null,null,null,null,null,null,3064]
[1045,null,null,null,null,null,null,null,null,null,null,null,null,null,null,null,null,null,null,null,null,null,3065]
[1046,null,null,null,null,null,null,null,null,null,null,null,null,null,null,null,null,null,null,null,null,null,3066]
[1047,null,null,null,null,null,null,null,null,null,null,null,null,null,null,null,null,null,null,null,null,null,3067]
[1048,null,null,null,null,null,null,null,null,null,null,null,null,null,null,null,null,null,null,null,null,null,3068]
[1049,null,null,null,null,null,null,null,null,null,null,null,null,null,null,null,null,null,null,null,null,null,3069]
[1050,null,null,null,null,null,null,null,null,null,null,null,null,null,null,null,null,null,null,null,null,null,3070]
[1051,null,null,null,null,null,null,null,null,null,null,null,null,null,null,null,null,null,null,null,null,null,3071]
[1052,null,null,null,null,null,null,null,null,null,null,null,null,null,null,null,null,null,null,null,null,null,3072]
[1053,null,null,null,null,null,null,null,null,null,null,null,null,null,null,null,null,null,null,null,null,null,3073]
[1054,null,null,null,null,null,null,null,null,null,null,null,null,null,null,null,null,null,null,null,null,null,3074]
[1055,null,null,null,null,null,null,null,null,null,null,null,null,null,null,null,null,null,null,null,null,null,3075]
[1056,null,null,null,null,null,null,null,null,null,null,null,null,null,null,null,null,null,null,null,null,null,3076]
[1057,null,null,null,null,null,null,null,null,null,null,null,null,null,null,null,null,null,null,null,null,null,3077]
[1058,null,null,null,null,null,null,null,null,null,null,null,null,null,null,null,null,null,null,null,null,null,3078]
[1059,null,null,null,null,null,null,null,null,null,null,null,null,null,null,null,null,null,null,null,null,null,3079]
[1060,null,null,null,null,null,null,null,null,null,null,null,null,null,null,null,null,null,null,null,null,null,3080]
[1061,null,null,null,null,null,null,null,null,null,null,null,null,null,null,null,null,null,null,null,null,null,3081]
[1062,null,null,null,null,null,null,null,null,null,null,null,null,null,null,null,null,null,null,null,null,null,3082]
[1063,null,null,null,null,null,null,null,null,null,null,null,null,null,null,null,null,null,null,null,null,null,3083]
[1064,null,null,null,null,null,null,null,null,null,null,null,null,null,null,null,null,null,null,null,null,null,3084]
[1065,null,null,null,null,null,null,null,null,null,null,null,null,null,null,null,null,null,null,null,null,null,3085]
[1066,null,null,null,null,null,null,null,null,null,null,null,null,null,null,null,null,null,null,null,null,null,3086]
[1067,null,null,null,null,null,null,null,null,null,null,null,null,null,null,null,null,null,null,null,null,null,3087]
[1068,null,null,null,null,null,null,null,null,null,null,null,null,null,null,null,null,null,null,null,null,null,3088]
[1069,null,null,null,null,null,null,null,null,null,null,null,null,null,null,null,null,null,null,null,null,null,3089]
[1070,null,null,null,null,null,null,null,null,null,null,null,null,null,null,null,null,null,null,null,null,null,3090]
[1071,null,null,null,null,null,null,null,null,null,null,null,null,null,null,null,null,null,null,null,null,null,3091]
[1072,null,null,null,null,null,null,null,null,null,null,null,null,null,null,null,null,null,null,null,null,null,3092]
[1073,null,null,null,null,null,null,null,null,null,null,null,null,null,null,null,null,null,null,null,null,null,3093]
[1074,null,null,null,null,null,null,null,null,null,null,null,null,null,null,null,null,null,null,null,null,null,3094]
[1075,null,null,null,null,null,null,null,null,null,null,null,null,null,null,null,null,null,null,null,null,null,3095]
[1076,null,null,null,null,null,null,null,null,null,null,null,null,null,null,null,null,null,null,null,null,null,3096]
[1077,null,null,null,null,null,null,null,null,null,null,null,null,null,null,null,null,null,null,null,null,null,3097]
[1078,null,null,null,null,null,null,null,null,null,null,null,null,null,null,null,null,null,null,null,null,null,3098]
[1079,null,null,null,null,null,null,null,null,null,null,null,null,null,null,null,null,null,null,null,null,null,3099]
[1080,null,null,null,null,null,null,null,null,null,null,null,null,null,null,null,null,null,null,null,null,null,3100]
[1081,null,null,null,null,null,null,null,null,null,null,null,null,null,null,null,null,null,null,null,null,null,3101]
[1082,null,null,null,null,null,null,null,null,null,null,null,null,null,null,null,null,null,null,null,null,null,3102]
[1083,null,null,null,null,null,null,null,null,null,null,null,null,null,null,null,null,null,null,null,null,null,3103]
[1084,null,null,null,null,null,null,null,null,null,null,null,null,null,null,null,null,null,null,null,null,null,3104]
[1085,null,null,null,null,null,null,null,null,null,null,null,null,null,null,null,null,null,null,null,null,null,3105]
[1086,null,null,null,null,null,null,null,null,null,null,null,null,null,null,null,null,null,null,null,null,null,3106]
[1087,null,null,null,null,null,null,null,null,null,null,null,null,null,null,null,null,null,null,null,null,null,3107]
[1088,null,null,null,null,null,null,null,null,null,null,null,null,null,null,null,null,null,null,null,null,null,3108]
[1089,null,null,null,null,null,null,null,null,null,null,null,null,null,null,null,null,null,null,null,null,null,3109]
[1090,null,null,null,null,null,null,null,null,null,null,null,null,null,null,null,null,null,null,null,null,null,3110]
[1091,null,null,null,null,null,null,null,null,null,null,null,null,null,null,null,null,null,null,null,null,null,3111]
[1092,null,null,null,null,null,null,null,null,null,null,null,null,null,null,null,null,null,null,null,null,null,3112]
[1093,null,null,null,null,null,null,null,null,null,null,null,null,null,null,null,null,null,null,null,null,null,3113]
[1094,null,null,null,null,null,null,null,null,null,null,null,null,null,null,null,null,null,null,null,null,null,3114]
[1095,null,null,null,null,null,null,null,null,null,null,null,null,null,null,null,null,null,null,null,null,null,3115]
[1096,null,null,null,null,null,null,null,null,null,null,null,null,null,null,null,null,null,null,null,null,null,3116]
[1097,null,null,null,null,null,null,null,null,null,null,null,null,null,null,null,null,null,null,null,null,null,3117]
[1098,null,null,null,null,null,null,null,null,null,null,null,null,null,null,null,null,null,null,null,null,null,3118]
[1099,null,null,null,null,null,null,null,null,null,null,null,null,null,null,null,null,null,null,null,null,null,3119]
[1100,null,null,null,null,null,null,null,null,null,null,null,null,null,null,null,null,null,null,null,null,null,3120]
[1101,null,null,null,null,null,null,null,null,null,null,null,null,null,null,null,null,null,null,null,null,null,3121]
[1102,null,null,null,null,null,null,null,null,null,null,null,null,null,null,null,null,null,null,null,null,null,3122]
[1103,null,null,null,null,null,null,null,null,null,null,null,null,null,null,null,null,null,null,null,null,null,3123]
[1104,null,null,null,null,null,null,null,null,null,null,null,null,null,null,null,null,null,null,null,null,null,3124]
[1105,null,null,null,null,null,null,null,null,null,null,null,null,null,null,null,null,null,null,null,null,null,3125]
[1106,null,null,null,null,null,null,null,null,null,null,null,null,null,null,null,null,null,null,null,null,null,3126]
[1107,null,null,null,null,null,null,null,null,null,null,null,null,null,null,null,null,null,null,null,null,null,3127]
[1108,null,null,null,null,null,null,null,null,null,null,null,null,null,null,null,null,null,null,null,null,null,3128]
[1109,null,null,null,null,null,null,null,null,null,null,null,null,null,null,null,null,null,null,null,null,null,3129]
[1110,null,null,null,null,null,null,null,null,null,null,null,null,null,null,null,null,null,null,null,null,null,3130]
[1111,null,null,null,null,null,null,null,null,null,null,null,null,null,null,null,null,null,null,null,null,null,3131]
[1112,null,null,null,null,null,null,null,null,null,null,null,null,null,null,null,null,null,null,null,null,null,3132]
[1113,null,null,null,null,null,null,null,null,null,null,null,null,null,null,null,null,null,null,null,null,null,3133]
[1114,null,null,null,null,null,null,null,null,null,null,null,null,null,null,null,null,null,null,null,null,null,3134]
[1115,null,null,null,null,null,null,null,null,null,null,null,null,null,null,null,null,null,null,null,null,null,3135]
[1116,null,null,null,null,null,null,null,null,null,null,null,null,null,null,null,null,null,null,null,null,null,3136]
[1117,null,null,null,null,null,null,null,null,null,null,null,null,null,null,null,null,null,null,null,null,null,3137]
[1118,null,null,null,null,null,null,null,null,null,null,null,null,null,null,null,null,null,null,null,null,null,3138]
[1119,null,null,null,null,null,null,null,null,null,null,null,null,null,null,null,null,null,null,null,null,null,3139]
[1120,null,null,null,null,null,null,null,null,null,null,null,null,null,null,null,null,null,null,null,null,null,3140]
[1121,null,null,null,null,null,null,null,null,null,null,null,null,null,null,null,null,null,null,null,null,null,3141]
[1122,null,null,null,null,null,null,null,null,null,null,null,null,null,null,null,null,null,null,null,null,null,3142]
[1123,null,null,null,null,null,null,null,null,null,null,null,null,null,null,null,null,null,null,null,null,null,3143]
[1124,null,null,null,null,null,null,null,null,null,null,null,null,null,null,null,null,null,null,null,null,null,3144]
[1125,null,null,null,null,null,null,null,null,null,null,null,null,null,null,null,null,null,null,null,null,null,3145]
[1126,null,null,null,null,null,null,null,null,null,null,null,null,null,null,null,null,null,null,null,null,null,3146]
[1127,null,null,null,null,null,null,null,null,null,null,null,null,null,null,null,null,null,null,null,null,null,3147]
[1128,null,null,null,null,null,null,null,null,null,null,null,null,null,null,null,null,null,null,null,null,null,3148]
[1129,null,null,null,null,null,null,null,null,null,null,null,null,null,null,null,null,null,null,null,null,null,3149]
[1130,null,null,null,null,null,null,null,null,null,null,null,null,null,null,null,null,null,null,null,null,null,3150]
[1131,null,null,null,null,null,null,null,null,null,null,null,null,null,null,null,null,null,null,null,null,null,3151]
[1132,null,null,null,null,null,null,null,null,null,null,null,null,null,null,null,null,null,null,null,null,null,3152]
[1133,null,null,null,null,null,null,null,null,null,null,null,null,null,null,null,null,null,null,null,null,null,3153]
[1134,null,null,null,null,null,null,null,null,null,null,null,null,null,null,null,null,null,null,null,null,null,3154]
[1135,null,null,null,null,null,null,null,null,null,null,null,null,null,null,null,null,null,null,null,null,null,3155]
[1136,null,null,null,null,null,null,null,null,null,null,null,null,null,null,null,null,null,null,null,null,null,3156]
[1137,null,null,null,null,null,null,null,null,null,null,null,null,null,null,null,null,null,null,null,null,null,3157]
[1138,null,null,null,null,null,null,null,null,null,null,null,null,null,null,null,null,null,null,null,null,null,3158]
[1139,null,null,null,null,null,null,null,null,null,null,null,null,null,null,null,null,null,null,null,null,null,3159]
[1140,null,null,null,null,null,null,null,null,null,null,null,null,null,null,null,null,null,null,null,null,null,3160]
[1141,null,null,null,null,null,null,null,null,null,null,null,null,null,null,null,null,null,null,null,null,null,3161]
[1142,null,null,null,null,null,null,null,null,null,null,null,null,null,null,null,null,null,null,null,null,null,3162]
[1143,null,null,null,null,null,null,null,null,null,null,null,null,null,null,null,null,null,null,null,null,null,3163]
[1144,null,null,null,null,null,null,null,null,null,null,null,null,null,null,null,null,null,null,null,null,null,3164]
[1145,null,null,null,null,null,null,null,null,null,null,null,null,null,null,null,null,null,null,null,null,null,3165]
[1146,null,null,null,null,null,null,null,null,null,null,null,null,null,null,null,null,null,null,null,null,null,3166]
[1147,null,null,null,null,null,null,null,null,null,null,null,null,null,null,null,null,null,null,null,null,null,3167]
[1148,null,null,null,null,null,null,null,null,null,null,null,null,null,null,null,null,null,null,null,null,null,3168]
[1149,null,null,null,null,null,null,null,null,null,null,null,null,null,null,null,null,null,null,null,null,null,3169]
[1150,null,null,null,null,null,null,null,null,null,null,null,null,null,null,null,null,null,null,null,null,null,3170]
[1151,null,null,null,null,null,null,null,null,null,null,null,null,null,null,null,null,null,null,null,null,null,3171]
[1152,null,null,null,null,null,null,null,null,null,null,null,null,null,null,null,null,null,null,null,null,null,3172]
[1153,null,null,null,null,null,null,null,null,null,null,null,null,null,null,null,null,null,null,null,null,null,3173]
[1154,null,null,null,null,null,null,null,null,null,null,null,null,null,null,null,null,null,null,null,null,null,3174]
[1155,null,null,null,null,null,null,null,null,null,null,null,null,null,null,null,null,null,null,null,null,null,3175]
[1156,null,null,null,null,null,null,null,null,null,null,null,null,null,null,null,null,null,null,null,null,null,3176]
[1157,null,null,null,null,null,null,null,null,null,null,null,null,null,null,null,null,null,null,null,null,null,3177]
[1158,null,null,null,null,null,null,null,null,null,null,null,null,null,null,null,null,null,null,null,null,null,3178]
[1159,null,null,null,null,null,null,null,null,null,null,null,null,null,null,null,null,null,null,null,null,null,3179]
[1160,null,null,null,null,null,null,null,null,null,null,null,null,null,null,null,null,null,null,null,null,null,3180]
[1161,null,null,null,null,null,null,null,null,null,null,null,null,null,null,null,null,null,null,null,null,null,3181]
[1162,null,null,null,null,null,null,null,null,null,null,null,null,null,null,null,null,null,null,null,null,null,3182]
[1163,null,null,null,null,null,null,null,null,null,null,null,null,null,null,null,null,null,null,null,null,null,3183]
[1164,null,null,null,null,null,null,null,null,null,null,null,null,null,null,null,null,null,null,null,null,null,3184]
[1165,null,null,null,null,null,null,null,null,null,null,null,null,null,null,null,null,null,null,null,null,null,3185]
[1166,null,null,null,null,null,null,null,null,null,null,null,null,null,null,null,null,null,null,null,null,null,3186]
[1167,null,null,null,null,null,null,null,null,null,null,null,null,null,null,null,null,null,null,null,null,null,3187]
[1168,null,null,null,null,null,null,null,null,null,null,null,null,null,null,null,null,null,null,null,null,null,3188]
[1169,null,null,null,null,null,null,null,null,null,null,null,null,null,null,null,null,null,null,null,null,null,3189]
[1170,null,null,null,null,null,null,null,null,null,null,null,null,null,null,null,null,null,null,null,null,null,3190]
[1171,null,null,null,null,null,null,null,null,null,null,null,null,null,null,null,null,null,null,null,null,null,3191]
[1172,null,null,null,null,null,null,null,null,null,null,null,null,null,null,null,null,null,null,null,null,null,3192]
[1173,null,null,null,null,null,null,null,null,null,null,null,null,null,null,null,null,null,null,null,null,null,3193]
[1174,null,null,null,null,null,null,null,null,null,null,null,null,null,null,null,null,null,null,null,null,null,3194]
[1175,null,null,null,null,null,null,null,null,null,null,null,null,null,null,null,null,null,null,null,null,null,3195]
[1176,null,null,null,null,null,null,null,null,null,null,null,null,null,null,null,null,null,null,null,null,null,3196]
[1177,null,null,null,null,null,null,null,null,null,null,null,null,null,null,null,null,null,null,null,null,null,3197]
[1178,null,null,null,null,null,null,null,null,null,null,null,null,null,null,null,null,null,null,null,null,null,3198]
[1179,null,null,null,null,null,null,null,null,null,null,null,null,null,null,null,null,null,null,null,null,null,3199]
[1180,null,null,null,null,null,null,null,null,null,null,null,null,null,null,null,null,null,null,null,null,null,3200]
[1181,null,null,null,null,null,null,null,null,null,null,null,null,null,null,null,null,null,null,null,null,null,3201]
[1182,null,null,null,null,null,null,null,null,null,null,null,null,null,null,null,null,null,null,null,null,null,3202]
[1183,null,null,null,null,null,null,null,null,null,null,null,null,null,null,null,null,null,null,null,null,null,3203]
[1184,null,null,null,null,null,null,null,null,null,null,null,null,null,null,null,null,null,null,null,null,null,3204]
[1185,null,null,null,null,null,null,null,null,null,null,null,null,null,null,null,null,null,null,null,null,null,3205]
[1186,null,null,null,null,null,null,null,null,null,null,null,null,null,null,null,null,null,null,null,null,null,3206]
[1187,null,null,null,null,null,null,null,null,null,null,null,null,null,null,null,null,null,null,null,null,null,3207]
[1188,null,null,null,null,null,null,null,null,null,null,null,null,null,null,null,null,null,null,null,null,null,3208]
[1189,null,null,null,null,null,null,null,null,null,null,null,null,null,null,null,null,null,null,null,null,null,3209]
[1190,null,null,null,null,null,null,null,null,null,null,null,null,null,null,null,null,null,null,null,null,null,3210]
[1191,null,null,null,null,null,null,null,null,null,null,null,null,null,null,null,null,null,null,null,null,null,3211]
[1192,null,null,null,null,null,null,null,null,null,null,null,null,null,null,null,null,null,null,null,null,null,3212]
[1193,null,null,null,null,null,null,null,null,null,null,null,null,null,null,null,null,null,null,null,null,null,3213]
[1194,null,null,null,null,null,null,null,null,null,null,null,null,null,null,null,null,null,null,null,null,null,3214]
[1195,null,null,null,null,null,null,null,null,null,null,null,null,null,null,null,null,null,null,null,null,null,3215]
[1196,null,null,null,null,null,null,null,null,null,null,null,null,null,null,null,null,null,null,null,null,null,3216]
[1197,null,null,null,null,null,null,null,null,null,null,null,null,null,null,null,null,null,null,null,null,null,3217]
[1198,null,null,null,null,null,null,null,null,null,null,null,null,null,null,null,null,null,null,null,null,null,3218]
[1199,null,null,null,null,null,null,null,null,null,null,null,null,null,null,null,null,null,null,null,null,null,3219]
[1200,null,null,null,null,null,null,null,null,null,null,null,null,null,null,null,null,null,null,null,null,null,3220]
[1201,null,null,null,null,null,null,null,null,null,null,null,null,null,null,null,null,null,null,null,null,null,3221]
[1202,null,null,null,null,null,null,null,null,null,null,null,null,null,null,null,null,null,null,null,null,null,3222]
[1203,null,null,null,null,null,null,null,null,null,null,null,null,null,null,null,null,null,null,null,null,null,3223]
[1204,null,null,null,null,null,null,null,null,null,null,null,null,null,null,null,null,null,null,null,null,null,3224]
[1205,null,null,null,null,null,null,null,null,null,null,null,null,null,null,null,null,null,null,null,null,null,3225]
[1206,null,null,null,null,null,null,null,null,null,null,null,null,null,null,null,null,null,null,null,null,null,3226]
[1207,null,null,null,null,null,null,null,null,null,null,null,null,null,null,null,null,null,null,null,null,null,3227]
[1208,null,null,null,null,null,null,null,null,null,null,null,null,null,null,null,null,null,null,null,null,null,3228]
[1209,null,null,null,null,null,null,null,null,null,null,null,null,null,null,null,null,null,null,null,null,null,3229]
[1210,null,null,null,null,null,null,null,null,null,null,null,null,null,null,null,null,null,null,null,null,null,3230]
[1211,null,null,null,null,null,null,null,null,null,null,null,null,null,null,null,null,null,null,null,null,null,3231]
[1212,null,null,null,null,null,null,null,null,null,null,null,null,null,null,null,null,null,null,null,null,null,3232]
[1213,null,null,null,null,null,null,null,null,null,null,null,null,null,null,null,null,null,null,null,null,null,3233]
[1214,null,null,null,null,null,null,null,null,null,null,null,null,null,null,null,null,null,null,null,null,null,3234]
[1215,null,null,null,null,null,null,null,null,null,null,null,null,null,null,null,null,null,null,null,null,null,3235]
[1216,null,null,null,null,null,null,null,null,null,null,null,null,null,null,null,null,null,null,null,null,null,3236]
[1217,null,null,null,null,null,null,null,null,null,null,null,null,null,null,null,null,null,null,null,null,null,3237]
[1218,null,null,null,null,null,null,null,null,null,null,null,null,null,null,null,null,null,null,null,null,null,3238]
[1219,null,null,null,null,null,null,null,null,null,null,null,null,null,null,null,null,null,null,null,null,null,3239]
[1220,null,null,null,null,null,null,null,null,null,null,null,null,null,null,null,null,null,null,null,null,null,3240]
[1221,null,null,null,null,null,null,null,null,null,null,null,null,null,null,null,null,null,null,null,null,null,3241]
[1222,null,null,null,null,null,null,null,null,null,null,null,null,null,null,null,null,null,null,null,null,null,3242]
[1223,null,null,null,null,null,null,null,null,null,null,null,null,null,null,null,null,null,null,null,null,null,3243]
[1224,null,null,null,null,null,null,null,null,null,null,null,null,null,null,null,null,null,null,null,null,null,3244]
[1225,null,null,null,null,null,null,null,null,null,null,null,null,null,null,null,null,null,null,null,null,null,3245]
[1226,null,null,null,null,null,null,null,null,null,null,null,null,null,null,null,null,null,null,null,null,null,3246]
[1227,null,null,null,null,null,null,null,null,null,null,null,null,null,null,null,null,null,null,null,null,null,3247]
[1228,null,null,null,null,null,null,null,null,null,null,null,null,null,null,null,null,null,null,null,null,null,3248]
[1229,null,null,null,null,null,null,null,null,null,null,null,null,null,null,null,null,null,null,null,null,null,3249]
[1230,null,null,null,null,null,null,null,null,null,null,null,null,null,null,null,null,null,null,null,null,null,3250]
[1231,null,null,null,null,null,null,null,null,null,null,null,null,null,null,null,null,null,null,null,null,null,3251]
[1232,null,null,null,null,null,null,null,null,null,null,null,null,null,null,null,null,null,null,null,null,null,3252]
[1233,null,null,null,null,null,null,null,null,null,null,null,null,null,null,null,null,null,null,null,null,null,3253]
[1234,null,null,null,null,null,null,null,null,null,null,null,null,null,null,null,null,null,null,null,null,null,3254]
[1235,null,null,null,null,null,null,null,null,null,null,null,null,null,null,null,null,null,null,null,null,null,3255]
[1236,null,null,null,null,null,null,null,null,null,null,null,null,null,null,null,null,null,null,null,null,null,3256]
[1237,null,null,null,null,null,null,null,null,null,null,null,null,null,null,null,null,null,null,null,null,null,3257]
[1238,null,null,null,null,null,null,null,null,null,null,null,null,null,null,null,null,null,null,null,null,null,3258]
[1239,null,null,null,null,null,null,null,null,null,null,null,null,null,null,null,null,null,null,null,null,null,3259]
[1240,null,null,null,null,null,null,null,null,null,null,null,null,null,null,null,null,null,null,null,null,null,3260]
[1241,null,null,null,null,null,null,null,null,null,null,null,null,null,null,null,null,null,null,null,null,null,3261]
[1242,null,null,null,null,null,null,null,null,null,null,null,null,null,null,null,null,null,null,null,null,null,3262]
[1243,null,null,null,null,null,null,null,null,null,null,null,null,null,null,null,null,null,null,null,null,null,3263]
[1244,null,null,null,null,null,null,null,null,null,null,null,null,null,null,null,null,null,null,null,null,null,3264]
[1245,null,null,null,null,null,null,null,null,null,null,null,null,null,null,null,null,null,null,null,null,null,3265]
[1246,null,null,null,null,null,null,null,null,null,null,null,null,null,null,null,null,null,null,null,null,null,3266]
[1247,null,null,null,null,null,null,null,null,null,null,null,null,null,null,null,null,null,null,null,null,null,3267]
[1248,null,null,null,null,null,null,null,null,null,null,null,null,null,null,null,null,null,null,null,null,null,3268]
[1249,null,null,null,null,null,null,null,null,null,null,null,null,null,null,null,null,null,null,null,null,null,3269]
[1250,null,null,null,null,null,null,null,null,null,null,null,null,null,null,null,null,null,null,null,null,null,3270]
[1251,null,null,null,null,null,null,null,null,null,null,null,null,null,null,null,null,null,null,null,null,null,3271]
[1252,null,null,null,null,null,null,null,null,null,null,null,null,null,null,null,null,null,null,null,null,null,3272]
[1253,null,null,null,null,null,null,null,null,null,null,null,null,null,null,null,null,null,null,null,null,null,3273]
[1254,null,null,null,null,null,null,null,null,null,null,null,null,null,null,null,null,null,null,null,null,null,3274]
[1255,null,null,null,null,null,null,null,null,null,null,null,null,null,null,null,null,null,null,null,null,null,3275]
[1256,null,null,null,null,null,null,null,null,null,null,null,null,null,null,null,null,null,null,null,null,null,3276]
[1257,null,null,null,null,null,null,null,null,null,null,null,null,null,null,null,null,null,null,null,null,null,3277]
[1258,null,null,null,null,null,null,null,null,null,null,null,null,null,null,null,null,null,null,null,null,null,3278]
[1259,null,null,null,null,null,null,null,null,null,null,null,null,null,null,null,null,null,null,null,null,null,3279]
[1260,null,null,null,null,null,null,null,null,null,null,null,null,null,null,null,null,null,null,null,null,null,3280]
[1261,null,null,null,null,null,null,null,null,null,null,null,null,null,null,null,null,null,null,null,null,null,3281]
[1262,null,null,null,null,null,null,null,null,null,null,null,null,null,null,null,null,null,null,null,null,null,3282]
[1263,null,null,null,null,null,null,null,null,null,null,null,null,null,null,null,null,null,null,null,null,null,3283]
[1264,null,null,null,null,null,null,null,null,null,null,null,null,null,null,null,null,null,null,null,null,null,3284]
[1265,null,null,null,null,null,null,null,null,null,null,null,null,null,null,null,null,null,null,null,null,null,3285]
[1266,null,null,null,null,null,null,null,null,null,null,null,null,null,null,null,null,null,null,null,null,null,3286]
[1267,null,null,null,null,null,null,null,null,null,null,null,null,null,null,null,null,null,null,null,null,null,3287]
[1268,null,null,null,null,null,null,null,null,null,null,null,null,null,null,null,null,null,null,null,null,null,3288]
[1269,null,null,null,null,null,null,null,null,null,null,null,null,null,null,null,null,null,null,null,null,null,3289]
[1270,null,null,null,null,null,null,null,null,null,null,null,null,null,null,null,null,null,null,null,null,null,3290]
[1271,null,null,null,null,null,null,null,null,null,null,null,null,null,null,null,null,null,null,null,null,null,3291]
[1272,null,null,null,null,null,null,null,null,null,null,null,null,null,null,null,null,null,null,null,null,null,3292]
[1273,null,null,null,null,null,null,null,null,null,null,null,null,null,null,null,null,null,null,null,null,null,3293]
[1274,null,null,null,null,null,null,null,null,null,null,null,null,null,null,null,null,null,null,null,null,null,3294]
[1275,null,null,null,null,null,null,null,null,null,null,null,null,null,null,null,null,null,null,null,null,null,3295]
[1276,null,null,null,null,null,null,null,null,null,null,null,null,null,null,null,null,null,null,null,null,null,3296]
[1277,null,null,null,null,null,null,null,null,null,null,null,null,null,null,null,null,null,null,null,null,null,3297]
[1278,null,null,null,null,null,null,null,null,null,null,null,null,null,null,null,null,null,null,null,null,null,3298]
[1279,null,null,null,null,null,null,null,null,null,null,null,null,null,null,null,null,null,null,null,null,null,3299]
[1280,null,null,null,null,null,null,null,null,null,null,null,null,null,null,null,null,null,null,null,null,null,3300]
[1281,null,null,null,null,null,null,null,null,null,null,null,null,null,null,null,null,null,null,null,null,null,3301]
[1282,null,null,null,null,null,null,null,null,null,null,null,null,null,null,null,null,null,null,null,null,null,3302]
[1283,null,null,null,null,null,null,null,null,null,null,null,null,null,null,null,null,null,null,null,null,null,3303]
[1284,null,null,null,null,null,null,null,null,null,null,null,null,null,null,null,null,null,null,null,null,null,3304]
[1285,null,null,null,null,null,null,null,null,null,null,null,null,null,null,null,null,null,null,null,null,null,3305]
[1286,null,null,null,null,null,null,null,null,null,null,null,null,null,null,null,null,null,null,null,null,null,3306]
[1287,null,null,null,null,null,null,null,null,null,null,null,null,null,null,null,null,null,null,null,null,null,3307]
[1288,null,null,null,null,null,null,null,null,null,null,null,null,null,null,null,null,null,null,null,null,null,3308]
[1289,null,null,null,null,null,null,null,null,null,null,null,null,null,null,null,null,null,null,null,null,null,3309]
[1290,null,null,null,null,null,null,null,null,null,null,null,null,null,null,null,null,null,null,null,null,null,3310]
[1291,null,null,null,null,null,null,null,null,null,null,null,null,null,null,null,null,null,null,null,null,null,3311]
[1292,null,null,null,null,null,null,null,null,null,null,null,null,null,null,null,null,null,null,null,null,null,3312]
[1293,null,null,null,null,null,null,null,null,null,null,null,null,null,null,null,null,null,null,null,null,null,3313]
[1294,null,null,null,null,null,null,null,null,null,null,null,null,null,null,null,null,null,null,null,null,null,3314]
[1295,null,null,null,null,null,null,null,null,null,null,null,null,null,null,null,null,null,null,null,null,null,3315]
[1296,null,null,null,null,null,null,null,null,null,null,null,null,null,null,null,null,null,null,null,null,null,3316]
[1297,null,null,null,null,null,null,null,null,null,null,null,null,null,null,null,null,null,null,null,null,null,3317]
[1298,null,null,null,null,null,null,null,null,null,null,null,null,null,null,null,null,null,null,null,null,null,3318]
[1299,null,null,null,null,null,null,null,null,null,null,null,null,null,null,null,null,null,null,null,null,null,3319]
[1300,null,null,null,null,null,null,null,null,null,null,null,null,null,null,null,null,null,null,null,null,null,3320]
[1301,null,null,null,null,null,null,null,null,null,null,null,null,null,null,null,null,null,null,null,null,null,3321]
[1302,null,null,null,null,null,null,null,null,null,null,null,null,null,null,null,null,null,null,null,null,null,3322]
[1303,null,null,null,null,null,null,null,null,null,null,null,null,null,null,null,null,null,null,null,null,null,3323]
[1304,null,null,null,null,null,null,null,null,null,null,null,null,null,null,null,null,null,null,null,null,null,3324]
[1305,null,null,null,null,null,null,null,null,null,null,null,null,null,null,null,null,null,null,null,null,null,3325]
[1306,null,null,null,null,null,null,null,null,null,null,null,null,null,null,null,null,null,null,null,null,null,3326]
[1307,null,null,null,null,null,null,null,null,null,null,null,null,null,null,null,null,null,null,null,null,null,3327]
[1308,null,null,null,null,null,null,null,null,null,null,null,null,null,null,null,null,null,null,null,null,null,3328]
[1309,null,null,null,null,null,null,null,null,null,null,null,null,null,null,null,null,null,null,null,null,null,3329]
[1310,null,null,null,null,null,null,null,null,null,null,null,null,null,null,null,null,null,null,null,null,null,3330]
[1311,null,null,null,null,null,null,null,null,null,null,null,null,null,null,null,null,null,null,null,null,null,3331]
[1312,null,null,null,null,null,null,null,null,null,null,null,null,null,null,null,null,null,null,null,null,null,3332]
[1313,null,null,null,null,null,null,null,null,null,null,null,null,null,null,null,null,null,null,null,null,null,3333]
[1314,null,null,null,null,null,null,null,null,null,null,null,null,null,null,null,null,null,null,null,null,null,3334]
[1315,null,null,null,null,null,null,null,null,null,null,null,null,null,null,null,null,null,null,null,null,null,3335]
[1316,null,null,null,null,null,null,null,null,null,null,null,null,null,null,null,null,null,null,null,null,null,3336]
[1317,null,null,null,null,null,null,null,null,null,null,null,null,null,null,null,null,null,null,null,null,null,3337]
[1318,null,null,null,null,null,null,null,null,null,null,null,null,null,null,null,null,null,null,null,null,null,3338]
[1319,null,null,null,null,null,null,null,null,null,null,null,null,null,null,null,null,null,null,null,null,null,3339]
[1320,null,null,null,null,null,null,null,null,null,null,null,null,null,null,null,null,null,null,null,null,null,3340]
[1321,null,null,null,null,null,null,null,null,null,null,null,null,null,null,null,null,null,null,null,null,null,3341]
[1322,null,null,null,null,null,null,null,null,null,null,null,null,null,null,null,null,null,null,null,null,null,3342]
[1323,null,null,null,null,null,null,null,null,null,null,null,null,null,null,null,null,null,null,null,null,null,3343]
[1324,null,null,null,null,null,null,null,null,null,null,null,null,null,null,null,null,null,null,null,null,null,3344]
[1325,null,null,null,null,null,null,null,null,null,null,null,null,null,null,null,null,null,null,null,null,null,3345]
[1326,null,null,null,null,null,null,null,null,null,null,null,null,null,null,null,null,null,null,null,null,null,3346]
[1327,null,null,null,null,null,null,null,null,null,null,null,null,null,null,null,null,null,null,null,null,null,3347]
[1328,null,null,null,null,null,null,null,null,null,null,null,null,null,null,null,null,null,null,null,null,null,3348]
[1329,null,null,null,null,null,null,null,null,null,null,null,null,null,null,null,null,null,null,null,null,null,3349]
[1330,null,null,null,null,null,null,null,null,null,null,null,null,null,null,null,null,null,null,null,null,null,3350]
[1331,null,null,null,null,null,null,null,null,null,null,null,null,null,null,null,null,null,null,null,null,null,3351]
[1332,null,null,null,null,null,null,null,null,null,null,null,null,null,null,null,null,null,null,null,null,null,3352]
[1333,null,null,null,null,null,null,null,null,null,null,null,null,null,null,null,null,null,null,null,null,null,3353]
[1334,null,null,null,null,null,null,null,null,null,null,null,null,null,null,null,null,null,null,null,null,null,3354]
[1335,null,null,null,null,null,null,null,null,null,null,null,null,null,null,null,null,null,null,null,null,null,3355]
[1336,null,null,null,null,null,null,null,null,null,null,null,null,null,null,null,null,null,null,null,null,null,3356]
[1337,null,null,null,null,null,null,null,null,null,null,null,null,null,null,null,null,null,null,null,null,null,3357]
[1338,null,null,null,null,null,null,null,null,null,null,null,null,null,null,null,null,null,null,null,null,null,3358]
[1339,null,null,null,null,null,null,null,null,null,null,null,null,null,null,null,null,null,null,null,null,null,3359]
[1340,null,null,null,null,null,null,null,null,null,null,null,null,null,null,null,null,null,null,null,null,null,3360]
[1341,null,null,null,null,null,null,null,null,null,null,null,null,null,null,null,null,null,null,null,null,null,3361]
[1342,null,null,null,null,null,null,null,null,null,null,null,null,null,null,null,null,null,null,null,null,null,3362]
[1343,null,null,null,null,null,null,null,null,null,null,null,null,null,null,null,null,null,null,null,null,null,3363]
[1344,null,null,null,null,null,null,null,null,null,null,null,null,null,null,null,null,null,null,null,null,null,3364]
[1345,null,null,null,null,null,null,null,null,null,null,null,null,null,null,null,null,null,null,null,null,null,3365]
[1346,null,null,null,null,null,null,null,null,null,null,null,null,null,null,null,null,null,null,null,null,null,3366]
[1347,null,null,null,null,null,null,null,null,null,null,null,null,null,null,null,null,null,null,null,null,null,3367]
[1348,null,null,null,null,null,null,null,null,null,null,null,null,null,null,null,null,null,null,null,null,null,3368]
[1349,null,null,null,null,null,null,null,null,null,null,null,null,null,null,null,null,null,null,null,null,null,3369]
[1350,null,null,null,null,null,null,null,null,null,null,null,null,null,null,null,null,null,null,null,null,null,3370]
[1351,null,null,null,null,null,null,null,null,null,null,null,null,null,null,null,null,null,null,null,null,null,3371]
[1352,null,null,null,null,null,null,null,null,null,null,null,null,null,null,null,null,null,null,null,null,null,3372]
[1353,null,null,null,null,null,null,null,null,null,null,null,null,null,null,null,null,null,null,null,null,null,3373]
[1354,null,null,null,null,null,null,null,null,null,null,null,null,null,null,null,null,null,null,null,null,null,3374]
[1355,null,null,null,null,null,null,null,null,null,null,null,null,null,null,null,null,null,null,null,null,null,3375]
[1356,null,null,null,null,null,null,null,null,null,null,null,null,null,null,null,null,null,null,null,null,null,3376]
[1357,null,null,null,null,null,null,null,null,null,null,null,null,null,null,null,null,null,null,null,null,null,3377]
[1358,null,null,null,null,null,null,null,null,null,null,null,null,null,null,null,null,null,null,null,null,null,3378]
[1359,null,null,null,null,null,null,null,null,null,null,null,null,null,null,null,null,null,null,null,null,null,3379]
[1360,null,null,null,null,null,null,null,null,null,null,null,null,null,null,null,null,null,null,null,null,null,3380]
[1361,null,null,null,null,null,null,null,null,null,null,null,null,null,null,null,null,null,null,null,null,null,3381]
[1362,null,null,null,null,null,null,null,null,null,null,null,null,null,null,null,null,null,null,null,null,null,3382]
[1363,null,null,null,null,null,null,null,null,null,null,null,null,null,null,null,null,null,null,null,null,null,3383]
[1364,null,null,null,null,null,null,null,null,null,null,null,null,null,null,null,null,null,null,null,null,null,3384]
[1365,null,null,null,null,null,null,null,null,null,null,null,null,null,null,null,null,null,null,null,null,null,3385]
[1366,null,null,null,null,null,null,null,null,null,null,null,null,null,null,null,null,null,null,null,null,null,3386]
[1367,null,null,null,null,null,null,null,null,null,null,null,null,null,null,null,null,null,null,null,null,null,3387]
[1368,null,null,null,null,null,null,null,null,null,null,null,null,null,null,null,null,null,null,null,null,null,3388]
[1369,null,null,null,null,null,null,null,null,null,null,null,null,null,null,null,null,null,null,null,null,null,3389]
[1370,null,null,null,null,null,null,null,null,null,null,null,null,null,null,null,null,null,null,null,null,null,3390]
[1371,null,null,null,null,null,null,null,null,null,null,null,null,null,null,null,null,null,null,null,null,null,3391]
[1372,null,null,null,null,null,null,null,null,null,null,null,null,null,null,null,null,null,null,null,null,null,3392]
[1373,null,null,null,null,null,null,null,null,null,null,null,null,null,null,null,null,null,null,null,null,null,3393]
[1374,null,null,null,null,null,null,null,null,null,null,null,null,null,null,null,null,null,null,null,null,null,3394]
[1375,null,null,null,null,null,null,null,null,null,null,null,null,null,null,null,null,null,null,null,null,null,3395]
[1376,null,null,null,null,null,null,null,null,null,null,null,null,null,null,null,null,null,null,null,null,null,3396]
[1377,null,null,null,null,null,null,null,null,null,null,null,null,null,null,null,null,null,null,null,null,null,3397]
[1378,null,null,null,null,null,null,null,null,null,null,null,null,null,null,null,null,null,null,null,null,null,3398]
[1379,null,null,null,null,null,null,null,null,null,null,null,null,null,null,null,null,null,null,null,null,null,3399]
[1380,null,null,null,null,null,null,null,null,null,null,null,null,null,null,null,null,null,null,null,null,null,3400]
[1381,null,null,null,null,null,null,null,null,null,null,null,null,null,null,null,null,null,null,null,null,null,3401]
[1382,null,null,null,null,null,null,null,null,null,null,null,null,null,null,null,null,null,null,null,null,null,3402]
[1383,null,null,null,null,null,null,null,null,null,null,null,null,null,null,null,null,null,null,null,null,null,3403]
[1384,null,null,null,null,null,null,null,null,null,null,null,null,null,null,null,null,null,null,null,null,null,3404]
[1385,null,null,null,null,null,null,null,null,null,null,null,null,null,null,null,null,null,null,null,null,null,3405]
[1386,null,null,null,null,null,null,null,null,null,null,null,null,null,null,null,null,null,null,null,null,null,3406]
[1387,null,null,null,null,null,null,null,null,null,null,null,null,null,null,null,null,null,null,null,null,null,3407]
[1388,null,null,null,null,null,null,null,null,null,null,null,null,null,null,null,null,null,null,null,null,null,3408]
[1389,null,null,null,null,null,null,null,null,null,null,null,null,null,null,null,null,null,null,null,null,null,3409]
[1390,null,null,null,null,null,null,null,null,null,null,null,null,null,null,null,null,null,null,null,null,null,3410]
[1391,null,null,null,null,null,null,null,null,null,null,null,null,null,null,null,null,null,null,null,null,null,3411]
[1392,null,null,null,null,null,null,null,null,null,null,null,null,null,null,null,null,null,null,null,null,null,3412]
[1393,null,null,null,null,null,null,null,null,null,null,null,null,null,null,null,null,null,null,null,null,null,3413]
[1394,null,null,null,null,null,null,null,null,null,null,null,null,null,null,null,null,null,null,null,null,null,3414]
[1395,null,null,null,null,null,null,null,null,null,null,null,null,null,null,null,null,null,null,null,null,null,3415]
[1396,null,null,null,null,null,null,null,null,null,null,null,null,null,null,null,null,null,null,null,null,null,3416]
[1397,null,null,null,null,null,null,null,null,null,null,null,null,null,null,null,null,null,null,null,null,null,3417]
[1398,null,null,null,null,null,null,null,null,null,null,null,null,null,null,null,null,null,null,null,null,null,3418]
[1399,null,null,null,null,null,null,null,null,null,null,null,null,null,null,null,null,null,null,null,null,null,3419]
[1400,null,null,null,null,null,null,null,null,null,null,null,null,null,null,null,null,null,null,null,null,null,3420]
[1401,null,null,null,null,null,null,null,null,null,null,null,null,null,null,null,null,null,null,null,null,null,3421]
[1402,null,null,null,null,null,null,null,null,null,null,null,null,null,null,null,null,null,null,null,null,null,3422]
[1403,null,null,null,null,null,null,null,null,null,null,null,null,null,null,null,null,null,null,null,null,null,3423]
[1404,null,null,null,null,null,null,null,null,null,null,null,null,null,null,null,null,null,null,null,null,null,3424]
[1405,null,null,null,null,null,null,null,null,null,null,null,null,null,null,null,null,null,null,null,null,null,3425]
[1406,null,null,null,null,null,null,null,null,null,null,null,null,null,null,null,null,null,null,null,null,null,3426]
[1407,null,null,null,null,null,null,null,null,null,null,null,null,null,null,null,null,null,null,null,null,null,3427]
[1408,null,null,null,null,null,null,null,null,null,null,null,null,null,null,null,null,null,null,null,null,null,3428]
[1409,null,null,null,null,null,null,null,null,null,null,null,null,null,null,null,null,null,null,null,null,null,3429]
[1410,null,null,null,null,null,null,null,null,null,null,null,null,null,null,null,null,null,null,null,null,null,3430]
[1411,null,null,null,null,null,null,null,null,null,null,null,null,null,null,null,null,null,null,null,null,null,3431]
[1412,null,null,null,null,null,null,null,null,null,null,null,null,null,null,null,null,null,null,null,null,null,3432]
[1413,null,null,null,null,null,null,null,null,null,null,null,null,null,null,null,null,null,null,null,null,null,3433]
[1414,null,null,null,null,null,null,null,null,null,null,null,null,null,null,null,null,null,null,null,null,null,3434]
[1415,null,null,null,null,null,null,null,null,null,null,null,null,null,null,null,null,null,null,null,null,null,3435]
[1416,null,null,null,null,null,null,null,null,null,null,null,null,null,null,null,null,null,null,null,null,null,3436]
[1417,null,null,null,null,null,null,null,null,null,null,null,null,null,null,null,null,null,null,null,null,null,3437]
[1418,null,null,null,null,null,null,null,null,null,null,null,null,null,null,null,null,null,null,null,null,null,3438]
[1419,null,null,null,null,null,null,null,null,null,null,null,null,null,null,null,null,null,null,null,null,null,3439]
[1420,null,null,null,null,null,null,null,null,null,null,null,null,null,null,null,null,null,null,null,null,null,3440]
[1421,null,null,null,null,null,null,null,null,null,null,null,null,null,null,null,null,null,null,null,null,null,3441]
[1422,null,null,null,null,null,null,null,null,null,null,null,null,null,null,null,null,null,null,null,null,null,3442]
[1423,null,null,null,null,null,null,null,null,null,null,null,null,null,null,null,null,null,null,null,null,null,3443]
[1424,null,null,null,null,null,null,null,null,null,null,null,null,null,null,null,null,null,null,null,null,null,3444]
[1425,null,null,null,null,null,null,null,null,null,null,null,null,null,null,null,null,null,null,null,null,null,3445]
[1426,null,null,null,null,null,null,null,null,null,null,null,null,null,null,null,null,null,null,null,null,null,3446]
[1427,null,null,null,null,null,null,null,null,null,null,null,null,null,null,null,null,null,null,null,null,null,3447]
[1428,null,null,null,null,null,null,null,null,null,null,null,null,null,null,null,null,null,null,null,null,null,3448]
[1429,null,null,null,null,null,null,null,null,null,null,null,null,null,null,null,null,null,null,null,null,null,3449]
[1430,null,null,null,null,null,null,null,null,null,null,null,null,null,null,null,null,null,null,null,null,null,3450]
[1431,null,null,null,null,null,null,null,null,null,null,null,null,null,null,null,null,null,null,null,null,null,3451]
[1432,null,null,null,null,null,null,null,null,null,null,null,null,null,null,null,null,null,null,null,null,null,3452]
[1433,null,null,null,null,null,null,null,null,null,null,null,null,null,null,null,null,null,null,null,null,null,3453]
[1434,null,null,null,null,null,null,null,null,null,null,null,null,null,null,null,null,null,null,null,null,null,3454]
[1435,null,null,null,null,null,null,null,null,null,null,null,null,null,null,null,null,null,null,null,null,null,3455]
[1436,null,null,null,null,null,null,null,null,null,null,null,null,null,null,null,null,null,null,null,null,null,3456]
[1437,null,null,null,null,null,null,null,null,null,null,null,null,null,null,null,null,null,null,null,null,null,3457]
[1438,null,null,null,null,null,null,null,null,null,null,null,null,null,null,null,null,null,null,null,null,null,3458]
[1439,null,null,null,null,null,null,null,null,null,null,null,null,null,null,null,null,null,null,null,null,null,3459]
[1440,null,null,null,null,null,null,null,null,null,null,null,null,null,null,null,null,null,null,null,null,null,3460]
[1441,null,null,null,null,null,null,null,null,null,null,null,null,null,null,null,null,null,null,null,null,null,3461]
[1442,null,null,null,null,null,null,null,null,null,null,null,null,null,null,null,null,null,null,null,null,null,3462]
[1443,null,null,null,null,null,null,null,null,null,null,null,null,null,null,null,null,null,null,null,null,null,3463]
[1444,null,null,null,null,null,null,null,null,null,null,null,null,null,null,null,null,null,null,null,null,null,3464]
[1445,null,null,null,null,null,null,null,null,null,null,null,null,null,null,null,null,null,null,null,null,null,3465]
[1446,null,null,null,null,null,null,null,null,null,null,null,null,null,null,null,null,null,null,null,null,null,3466]
[1447,null,null,null,null,null,null,null,null,null,null,null,null,null,null,null,null,null,null,null,null,null,3467]
[1448,null,null,null,null,null,null,null,null,null,null,null,null,null,null,null,null,null,null,null,null,null,3468]
[1449,null,null,null,null,null,null,null,null,null,null,null,null,null,null,null,null,null,null,null,null,null,3469]
[1450,null,null,null,null,null,null,null,null,null,null,null,null,null,null,null,null,null,null,null,null,null,3470]
[1451,null,null,null,null,null,null,null,null,null,null,null,null,null,null,null,null,null,null,null,null,null,3471]
[1452,null,null,null,null,null,null,null,null,null,null,null,null,null,null,null,null,null,null,null,null,null,3472]
[1453,null,null,null,null,null,null,null,null,null,null,null,null,null,null,null,null,null,null,null,null,null,3473]
[1454,null,null,null,null,null,null,null,null,null,null,null,null,null,null,null,null,null,null,null,null,null,3474]
[1455,null,null,null,null,null,null,null,null,null,null,null,null,null,null,null,null,null,null,null,null,null,3475]
[1456,null,null,null,null,null,null,null,null,null,null,null,null,null,null,null,null,null,null,null,null,null,3476]
[1457,null,null,null,null,null,null,null,null,null,null,null,null,null,null,null,null,null,null,null,null,null,3477]
[1458,null,null,null,null,null,null,null,null,null,null,null,null,null,null,null,null,null,null,null,null,null,3478]
[1459,null,null,null,null,null,null,null,null,null,null,null,null,null,null,null,null,null,null,null,null,null,3479]
[1460,null,null,null,null,null,null,null,null,null,null,null,null,null,null,null,null,null,null,null,null,null,3480]
[1461,null,null,null,null,null,null,null,null,null,null,null,null,null,null,null,null,null,null,null,null,null,3481]
[1462,null,null,null,null,null,null,null,null,null,null,null,null,null,null,null,null,null,null,null,null,null,3482]
[1463,null,null,null,null,null,null,null,null,null,null,null,null,null,null,null,null,null,null,null,null,null,3483]
[1464,null,null,null,null,null,null,null,null,null,null,null,null,null,null,null,null,null,null,null,null,null,3484]
[1465,null,null,null,null,null,null,null,null,null,null,null,null,null,null,null,null,null,null,null,null,null,3485]
[1466,null,null,null,null,null,null,null,null,null,null,null,null,null,null,null,null,null,null,null,null,null,3486]
[1467,null,null,null,null,null,null,null,null,null,null,null,null,null,null,null,null,null,null,null,null,null,3487]
[1468,null,null,null,null,null,null,null,null,null,null,null,null,null,null,null,null,null,null,null,null,null,3488]
[1469,null,null,null,null,null,null,null,null,null,null,null,null,null,null,null,null,null,null,null,null,null,3489]
[1470,null,null,null,null,null,null,null,null,null,null,null,null,null,null,null,null,null,null,null,null,null,3490]
[1471,null,null,null,null,null,null,null,null,null,null,null,null,null,null,null,null,null,null,null,null,null,3491]
[1472,null,null,null,null,null,null,null,null,null,null,null,null,null,null,null,null,null,null,null,null,null,3492]
[1473,null,null,null,null,null,null,null,null,null,null,null,null,null,null,null,null,null,null,null,null,null,3493]
[1474,null,null,null,null,null,null,null,null,null,null,null,null,null,null,null,null,null,null,null,null,null,3494]
[1475,null,null,null,null,null,null,null,null,null,null,null,null,null,null,null,null,null,null,null,null,null,3495]
[1476,null,null,null,null,null,null,null,null,null,null,null,null,null,null,null,null,null,null,null,null,null,3496]
[1477,null,null,null,null,null,null,null,null,null,null,null,null,null,null,null,null,null,null,null,null,null,3497]
[1478,null,null,null,null,null,null,null,null,null,null,null,null,null,null,null,null,null,null,null,null,null,3498]
[1479,null,null,null,null,null,null,null,null,null,null,null,null,null,null,null,null,null,null,null,null,null,3499]
[1480,null,null,null,null,null,null,null,null,null,null,null,null,null,null,null,null,null,null,null,null,null,3500]
[1481,null,null,null,null,null,null,null,null,null,null,null,null,null,null,null,null,null,null,null,null,null,3501]
[1482,null,null,null,null,null,null,null,null,null,null,null,null,null,null,null,null,null,null,null,null,null,3502]
[1483,null,null,null,null,null,null,null,null,null,null,null,null,null,null,null,null,null,null,null,null,null,3503]
[1484,null,null,null,null,null,null,null,null,null,null,null,null,null,null,null,null,null,null,null,null,null,3504]
[1485,null,null,null,null,null,null,null,null,null,null,null,null,null,null,null,null,null,null,null,null,null,3505]
[1486,null,null,null,null,null,null,null,null,null,null,null,null,null,null,null,null,null,null,null,null,null,3506]
[1487,null,null,null,null,null,null,null,null,null,null,null,null,null,null,null,null,null,null,null,null,null,3507]
[1488,null,null,null,null,null,null,null,null,null,null,null,null,null,null,null,null,null,null,null,null,null,3508]
[1489,null,null,null,null,null,null,null,null,null,null,null,null,null,null,null,null,null,null,null,null,null,3509]
[1490,null,null,null,null,null,null,null,null,null,null,null,null,null,null,null,null,null,null,null,null,null,3510]
[1491,null,null,null,null,null,null,null,null,null,null,null,null,null,null,null,null,null,null,null,null,null,3511]
[1492,null,null,null,null,null,null,null,null,null,null,null,null,null,null,null,null,null,null,null,null,null,3512]
[1493,null,null,null,null,null,null,null,null,null,null,null,null,null,null,null,null,null,null,null,null,null,3513]
[1494,null,null,null,null,null,null,null,null,null,null,null,null,null,null,null,null,null,null,null,null,null,3514]
[1495,null,null,null,null,null,null,null,null,null,null,null,null,null,null,null,null,null,null,null,null,null,3515]
[1496,null,null,null,null,null,null,null,null,null,null,null,null,null,null,null,null,null,null,null,null,null,3516]
[1497,null,null,null,null,null,null,null,null,null,null,null,null,null,null,null,null,null,null,null,null,null,3517]
[1498,null,null,null,null,null,null,null,null,null,null,null,null,null,null,null,null,null,null,null,null,null,3518]
[1499,null,null,null,null,null,null,null,null,null,null,null,null,null,null,null,null,null,null,null,null,null,3519]
[1500,null,null,null,null,null,null,null,null,null,null,null,null,null,null,null,null,null,null,null,null,null,3520]
[1501,null,null,null,null,null,null,null,null,null,null,null,null,null,null,null,null,null,null,null,null,null,3521]
[1502,null,null,null,null,null,null,null,null,null,null,null,null,null,null,null,null,null,null,null,null,null,3522]
[1503,null,null,null,null,null,null,null,null,null,null,null,null,null,null,null,null,null,null,null,null,null,3523]
[1504,null,null,null,null,null,null,null,null,null,null,null,null,null,null,null,null,null,null,null,null,null,3524]
[1505,null,null,null,null,null,null,null,null,null,null,null,null,null,null,null,null,null,null,null,null,null,3525]
[1506,null,null,null,null,null,null,null,null,null,null,null,null,null,null,null,null,null,null,null,null,null,3526]
[1507,null,null,null,null,null,null,null,null,null,null,null,null,null,null,null,null,null,null,null,null,null,3527]
[1508,null,null,null,null,null,null,null,null,null,null,null,null,null,null,null,null,null,null,null,null,null,3528]
[1509,null,null,null,null,null,null,null,null,null,null,null,null,null,null,null,null,null,null,null,null,null,3529]
[1510,null,null,null,null,null,null,null,null,null,null,null,null,null,null,null,null,null,null,null,null,null,3530]
[1511,null,null,null,null,null,null,null,null,null,null,null,null,null,null,null,null,null,null,null,null,null,3531]
[1512,null,null,null,null,null,null,null,null,null,null,null,null,null,null,null,null,null,null,null,null,null,3532]
[1513,null,null,null,null,null,null,null,null,null,null,null,null,null,null,null,null,null,null,null,null,null,3533]
[1514,null,null,null,null,null,null,null,null,null,null,null,null,null,null,null,null,null,null,null,null,null,3534]
[1515,null,null,null,null,null,null,null,null,null,null,null,null,null,null,null,null,null,null,null,null,null,3535]
[1516,null,null,null,null,null,null,null,null,null,null,null,null,null,null,null,null,null,null,null,null,null,3536]
[1517,null,null,null,null,null,null,null,null,null,null,null,null,null,null,null,null,null,null,null,null,null,3537]
[1518,null,null,null,null,null,null,null,null,null,null,null,null,null,null,null,null,null,null,null,null,null,3538]
[1519,null,null,null,null,null,null,null,null,null,null,null,null,null,null,null,null,null,null,null,null,null,3539]
[1520,null,null,null,null,null,null,null,null,null,null,null,null,null,null,null,null,null,null,null,null,null,3540]
[1521,null,null,null,null,null,null,null,null,null,null,null,null,null,null,null,null,null,null,null,null,null,3541]
[1522,null,null,null,null,null,null,null,null,null,null,null,null,null,null,null,null,null,null,null,null,null,3542]
[1523,null,null,null,null,null,null,null,null,null,null,null,null,null,null,null,null,null,null,null,null,null,3543]
[1524,null,null,null,null,null,null,null,null,null,null,null,null,null,null,null,null,null,null,null,null,null,3544]
[1525,null,null,null,null,null,null,null,null,null,null,null,null,null,null,null,null,null,null,null,null,null,3545]
[1526,null,null,null,null,null,null,null,null,null,null,null,null,null,null,null,null,null,null,null,null,null,3546]
[1527,null,null,null,null,null,null,null,null,null,null,null,null,null,null,null,null,null,null,null,null,null,3547]
[1528,null,null,null,null,null,null,null,null,null,null,null,null,null,null,null,null,null,null,null,null,null,3548]
[1529,null,null,null,null,null,null,null,null,null,null,null,null,null,null,null,null,null,null,null,null,null,3549]
[1530,null,null,null,null,null,null,null,null,null,null,null,null,null,null,null,null,null,null,null,null,null,3550]
[1531,null,null,null,null,null,null,null,null,null,null,null,null,null,null,null,null,null,null,null,null,null,3551]
[1532,null,null,null,null,null,null,null,null,null,null,null,null,null,null,null,null,null,null,null,null,null,3552]
[1533,null,null,null,null,null,null,null,null,null,null,null,null,null,null,null,null,null,null,null,null,null,3553]
[1534,null,null,null,null,null,null,null,null,null,null,null,null,null,null,null,null,null,null,null,null,null,3554]
[1535,null,null,null,null,null,null,null,null,null,null,null,null,null,null,null,null,null,null,null,null,null,3555]
[1536,null,null,null,null,null,null,null,null,null,null,null,null,null,null,null,null,null,null,null,null,null,3556]
[1537,null,null,null,null,null,null,null,null,null,null,null,null,null,null,null,null,null,null,null,null,null,3557]
[1538,null,null,null,null,null,null,null,null,null,null,null,null,null,null,null,null,null,null,null,null,null,3558]
[1539,null,null,null,null,null,null,null,null,null,null,null,null,null,null,null,null,null,null,null,null,null,3559]
[1540,null,null,null,null,null,null,null,null,null,null,null,null,null,null,null,null,null,null,null,null,null,3560]
[1541,null,null,null,null,null,null,null,null,null,null,null,null,null,null,null,null,null,null,null,null,null,3561]
[1542,null,null,null,null,null,null,null,null,null,null,null,null,null,null,null,null,null,null,null,null,null,3562]
[1543,null,null,null,null,null,null,null,null,null,null,null,null,null,null,null,null,null,null,null,null,null,3563]
[1544,null,null,null,null,null,null,null,null,null,null,null,null,null,null,null,null,null,null,null,null,null,3564]
[1545,null,null,null,null,null,null,null,null,null,null,null,null,null,null,null,null,null,null,null,null,null,3565]
[1546,null,null,null,null,null,null,null,null,null,null,null,null,null,null,null,null,null,null,null,null,null,3566]
[1547,null,null,null,null,null,null,null,null,null,null,null,null,null,null,null,null,null,null,null,null,null,3567]
[1548,null,null,null,null,null,null,null,null,null,null,null,null,null,null,null,null,null,null,null,null,null,3568]
[1549,null,null,null,null,null,null,null,null,null,null,null,null,null,null,null,null,null,null,null,null,null,3569]
[1550,null,null,null,null,null,null,null,null,null,null,null,null,null,null,null,null,null,null,null,null,null,3570]
[1551,null,null,null,null,null,null,null,null,null,null,null,null,null,null,null,null,null,null,null,null,null,3571]
[1552,null,null,null,null,null,null,null,null,null,null,null,null,null,null,null,null,null,null,null,null,null,3572]
[1553,null,null,null,null,null,null,null,null,null,null,null,null,null,null,null,null,null,null,null,null,null,3573]
[1554,null,null,null,null,null,null,null,null,null,null,null,null,null,null,null,null,null,null,null,null,null,3574]
[1555,null,null,null,null,null,null,null,null,null,null,null,null,null,null,null,null,null,null,null,null,null,3575]
[1556,null,null,null,null,null,null,null,null,null,null,null,null,null,null,null,null,null,null,null,null,null,3576]
[1557,null,null,null,null,null,null,null,null,null,null,null,null,null,null,null,null,null,null,null,null,null,3577]
[1558,null,null,null,null,null,null,null,null,null,null,null,null,null,null,null,null,null,null,null,null,null,3578]
[1559,null,null,null,null,null,null,null,null,null,null,null,null,null,null,null,null,null,null,null,null,null,3579]
[1560,null,null,null,null,null,null,null,null,null,null,null,null,null,null,null,null,null,null,null,null,null,3580]
[1561,null,null,null,null,null,null,null,null,null,null,null,null,null,null,null,null,null,null,null,null,null,3581]
[1562,null,null,null,null,null,null,null,null,null,null,null,null,null,null,null,null,null,null,null,null,null,3582]
[1563,null,null,null,null,null,null,null,null,null,null,null,null,null,null,null,null,null,null,null,null,null,3583]
[1564,null,null,null,null,null,null,null,null,null,null,null,null,null,null,null,null,null,null,null,null,null,3584]
[1565,null,null,null,null,null,null,null,null,null,null,null,null,null,null,null,null,null,null,null,null,null,3585]
[1566,null,null,null,null,null,null,null,null,null,null,null,null,null,null,null,null,null,null,null,null,null,3586]
[1567,null,null,null,null,null,null,null,null,null,null,null,null,null,null,null,null,null,null,null,null,null,3587]
[1568,null,null,null,null,null,null,null,null,null,null,null,null,null,null,null,null,null,null,null,null,null,3588]
[1569,null,null,null,null,null,null,null,null,null,null,null,null,null,null,null,null,null,null,null,null,null,3589]
[1570,null,null,null,null,null,null,null,null,null,null,null,null,null,null,null,null,null,null,null,null,null,3590]
[1571,null,null,null,null,null,null,null,null,null,null,null,null,null,null,null,null,null,null,null,null,null,3591]
[1572,null,null,null,null,null,null,null,null,null,null,null,null,null,null,null,null,null,null,null,null,null,3592]
[1573,null,null,null,null,null,null,null,null,null,null,null,null,null,null,null,null,null,null,null,null,null,3593]
[1574,null,null,null,null,null,null,null,null,null,null,null,null,null,null,null,null,null,null,null,null,null,3594]
[1575,null,null,null,null,null,null,null,null,null,null,null,null,null,null,null,null,null,null,null,null,null,3595]
[1576,null,null,null,null,null,null,null,null,null,null,null,null,null,null,null,null,null,null,null,null,null,3596]
[1577,null,null,null,null,null,null,null,null,null,null,null,null,null,null,null,null,null,null,null,null,null,3597]
[1578,null,null,null,null,null,null,null,null,null,null,null,null,null,null,null,null,null,null,null,null,null,3598]
[1579,null,null,null,null,null,null,null,null,null,null,null,null,null,null,null,null,null,null,null,null,null,3599]
[1580,null,null,null,null,null,null,null,null,null,null,null,null,null,null,null,null,null,null,null,null,null,3600]
[1581,null,null,null,null,null,null,null,null,null,null,null,null,null,null,null,null,null,null,null,null,null,3601]
[1582,null,null,null,null,null,null,null,null,null,null,null,null,null,null,null,null,null,null,null,null,null,3602]
[1583,null,null,null,null,null,null,null,null,null,null,null,null,null,null,null,null,null,null,null,null,null,3603]
[1584,null,null,null,null,null,null,null,null,null,null,null,null,null,null,null,null,null,null,null,null,null,3604]
[1585,null,null,null,null,null,null,null,null,null,null,null,null,null,null,null,null,null,null,null,null,null,3605]
[1586,null,null,null,null,null,null,null,null,null,null,null,null,null,null,null,null,null,null,null,null,null,3606]
[1587,null,null,null,null,null,null,null,null,null,null,null,null,null,null,null,null,null,null,null,null,null,3607]
[1588,null,null,null,null,null,null,null,null,null,null,null,null,null,null,null,null,null,null,null,null,null,3608]
[1589,null,null,null,null,null,null,null,null,null,null,null,null,null,null,null,null,null,null,null,null,null,3609]
[1590,null,null,null,null,null,null,null,null,null,null,null,null,null,null,null,null,null,null,null,null,null,3610]
[1591,null,null,null,null,null,null,null,null,null,null,null,null,null,null,null,null,null,null,null,null,null,3611]
[1592,null,null,null,null,null,null,null,null,null,null,null,null,null,null,null,null,null,null,null,null,null,3612]
[1593,null,null,null,null,null,null,null,null,null,null,null,null,null,null,null,null,null,null,null,null,null,3613]
[1594,null,null,null,null,null,null,null,null,null,null,null,null,null,null,null,null,null,null,null,null,null,3614]
[1595,null,null,null,null,null,null,null,null,null,null,null,null,null,null,null,null,null,null,null,null,null,3615]
[1596,null,null,null,null,null,null,null,null,null,null,null,null,null,null,null,null,null,null,null,null,null,3616]
[1597,null,null,null,null,null,null,null,null,null,null,null,null,null,null,null,null,null,null,null,null,null,3617]
[1598,null,null,null,null,null,null,null,null,null,null,null,null,null,null,null,null,null,null,null,null,null,3618]
[1599,null,null,null,null,null,null,null,null,null,null,null,null,null,null,null,null,null,null,null,null,null,3619]
[1600,null,null,null,null,null,null,null,null,null,null,null,null,null,null,null,null,null,null,null,null,null,3620]
[1601,null,null,null,null,null,null,null,null,null,null,null,null,null,null,null,null,null,null,null,null,null,3621]
[1602,null,null,null,null,null,null,null,null,null,null,null,null,null,null,null,null,null,null,null,null,null,3622]
[1603,null,null,null,null,null,null,null,null,null,null,null,null,null,null,null,null,null,null,null,null,null,3623]
[1604,null,null,null,null,null,null,null,null,null,null,null,null,null,null,null,null,null,null,null,null,null,3624]
[1605,null,null,null,null,null,null,null,null,null,null,null,null,null,null,null,null,null,null,null,null,null,3625]
[1606,null,null,null,null,null,null,null,null,null,null,null,null,null,null,null,null,null,null,null,null,null,3626]
[1607,null,null,null,null,null,null,null,null,null,null,null,null,null,null,null,null,null,null,null,null,null,3627]
[1608,null,null,null,null,null,null,null,null,null,null,null,null,null,null,null,null,null,null,null,null,null,3628]
[1609,null,null,null,null,null,null,null,null,null,null,null,null,null,null,null,null,null,null,null,null,null,3629]
[1610,null,null,null,null,null,null,null,null,null,null,null,null,null,null,null,null,null,null,null,null,null,3630]
[1611,null,null,null,null,null,null,null,null,null,null,null,null,null,null,null,null,null,null,null,null,null,3631]
[1612,null,null,null,null,null,null,null,null,null,null,null,null,null,null,null,null,null,null,null,null,null,3632]
[1613,null,null,null,null,null,null,null,null,null,null,null,null,null,null,null,null,null,null,null,null,null,3633]
[1614,null,null,null,null,null,null,null,null,null,null,null,null,null,null,null,null,null,null,null,null,null,3634]
[1615,null,null,null,null,null,null,null,null,null,null,null,null,null,null,null,null,null,null,null,null,null,3635]
[1616,null,null,null,null,null,null,null,null,null,null,null,null,null,null,null,null,null,null,null,null,null,3636]
[1617,null,null,null,null,null,null,null,null,null,null,null,null,null,null,null,null,null,null,null,null,null,3637]
[1618,null,null,null,null,null,null,null,null,null,null,null,null,null,null,null,null,null,null,null,null,null,3638]
[1619,null,null,null,null,null,null,null,null,null,null,null,null,null,null,null,null,null,null,null,null,null,3639]
[1620,null,null,null,null,null,null,null,null,null,null,null,null,null,null,null,null,null,null,null,null,null,3640]
[1621,null,null,null,null,null,null,null,null,null,null,null,null,null,null,null,null,null,null,null,null,null,3641]
[1622,null,null,null,null,null,null,null,null,null,null,null,null,null,null,null,null,null,null,null,null,null,3642]
[1623,null,null,null,null,null,null,null,null,null,null,null,null,null,null,null,null,null,null,null,null,null,3643]
[1624,null,null,null,null,null,null,null,null,null,null,null,null,null,null,null,null,null,null,null,null,null,3644]
[1625,null,null,null,null,null,null,null,null,null,null,null,null,null,null,null,null,null,null,null,null,null,3645]
[1626,null,null,null,null,null,null,null,null,null,null,null,null,null,null,null,null,null,null,null,null,null,3646]
[1627,null,null,null,null,null,null,null,null,null,null,null,null,null,null,null,null,null,null,null,null,null,3647]
[1628,null,null,null,null,null,null,null,null,null,null,null,null,null,null,null,null,null,null,null,null,null,3648]
[1629,null,null,null,null,null,null,null,null,null,null,null,null,null,null,null,null,null,null,null,null,null,3649]
[1630,null,null,null,null,null,null,null,null,null,null,null,null,null,null,null,null,null,null,null,null,null,3650]
[1631,null,null,null,null,null,null,null,null,null,null,null,null,null,null,null,null,null,null,null,null,null,3651]
[1632,null,null,null,null,null,null,null,null,null,null,null,null,null,null,null,null,null,null,null,null,null,3652]
[1633,null,null,null,null,null,null,null,null,null,null,null,null,null,null,null,null,null,null,null,null,null,3653]
[1634,null,null,null,null,null,null,null,null,null,null,null,null,null,null,null,null,null,null,null,null,null,3654]
[1635,null,null,null,null,null,null,null,null,null,null,null,null,null,null,null,null,null,null,null,null,null,3655]
[1636,null,null,null,null,null,null,null,null,null,null,null,null,null,null,null,null,null,null,null,null,null,3656]
[1637,null,null,null,null,null,null,null,null,null,null,null,null,null,null,null,null,null,null,null,null,null,3657]
[1638,null,null,null,null,null,null,null,null,null,null,null,null,null,null,null,null,null,null,null,null,null,3658]
[1639,null,null,null,null,null,null,null,null,null,null,null,null,null,null,null,null,null,null,null,null,null,3659]
[1640,null,null,null,null,null,null,null,null,null,null,null,null,null,null,null,null,null,null,null,null,null,3660]
[1641,null,null,null,null,null,null,null,null,null,null,null,null,null,null,null,null,null,null,null,null,null,3661]
[1642,null,null,null,null,null,null,null,null,null,null,null,null,null,null,null,null,null,null,null,null,null,3662]
[1643,null,null,null,null,null,null,null,null,null,null,null,null,null,null,null,null,null,null,null,null,null,3663]
[1644,null,null,null,null,null,null,null,null,null,null,null,null,null,null,null,null,null,null,null,null,null,3664]
[1645,null,null,null,null,null,null,null,null,null,null,null,null,null,null,null,null,null,null,null,null,null,3665]
[1646,null,null,null,null,null,null,null,null,null,null,null,null,null,null,null,null,null,null,null,null,null,3666]
[1647,null,null,null,null,null,null,null,null,null,null,null,null,null,null,null,null,null,null,null,null,null,3667]
[1648,null,null,null,null,null,null,null,null,null,null,null,null,null,null,null,null,null,null,null,null,null,3668]
[1649,null,null,null,null,null,null,null,null,null,null,null,null,null,null,null,null,null,null,null,null,null,3669]
[1650,null,null,null,null,null,null,null,null,null,null,null,null,null,null,null,null,null,null,null,null,null,3670]
[1651,null,null,null,null,null,null,null,null,null,null,null,null,null,null,null,null,null,null,null,null,null,3671]
[1652,null,null,null,null,null,null,null,null,null,null,null,null,null,null,null,null,null,null,null,null,null,3672]
[1653,null,null,null,null,null,null,null,null,null,null,null,null,null,null,null,null,null,null,null,null,null,3673]
[1654,null,null,null,null,null,null,null,null,null,null,null,null,null,null,null,null,null,null,null,null,null,3674]
[1655,null,null,null,null,null,null,null,null,null,null,null,null,null,null,null,null,null,null,null,null,null,3675]
[1656,null,null,null,null,null,null,null,null,null,null,null,null,null,null,null,null,null,null,null,null,null,3676]
[1657,null,null,null,null,null,null,null,null,null,null,null,null,null,null,null,null,null,null,null,null,null,3677]
[1658,null,null,null,null,null,null,null,null,null,null,null,null,null,null,null,null,null,null,null,null,null,3678]
[1659,null,null,null,null,null,null,null,null,null,null,null,null,null,null,null,null,null,null,null,null,null,3679]
[1660,null,null,null,null,null,null,null,null,null,null,null,null,null,null,null,null,null,null,null,null,null,3680]
[1661,null,null,null,null,null,null,null,null,null,null,null,null,null,null,null,null,null,null,null,null,null,3681]
[1662,null,null,null,null,null,null,null,null,null,null,null,null,null,null,null,null,null,null,null,null,null,3682]
[1663,null,null,null,null,null,null,null,null,null,null,null,null,null,null,null,null,null,null,null,null,null,3683]
[1664,null,null,null,null,null,null,null,null,null,null,null,null,null,null,null,null,null,null,null,null,null,3684]
[1665,null,null,null,null,null,null,null,null,null,null,null,null,null,null,null,null,null,null,null,null,null,3685]
[1666,null,null,null,null,null,null,null,null,null,null,null,null,null,null,null,null,null,null,null,null,null,3686]
[1667,null,null,null,null,null,null,null,null,null,null,null,null,null,null,null,null,null,null,null,null,null,3687]
[1668,null,null,null,null,null,null,null,null,null,null,null,null,null,null,null,null,null,null,null,null,null,3688]
[1669,null,null,null,null,null,null,null,null,null,null,null,null,null,null,null,null,null,null,null,null,null,3689]
[1670,null,null,null,null,null,null,null,null,null,null,null,null,null,null,null,null,null,null,null,null,null,3690]
[1671,null,null,null,null,null,null,null,null,null,null,null,null,null,null,null,null,null,null,null,null,null,3691]
[1672,null,null,null,null,null,null,null,null,null,null,null,null,null,null,null,null,null,null,null,null,null,3692]
[1673,null,null,null,null,null,null,null,null,null,null,null,null,null,null,null,null,null,null,null,null,null,3693]
[1674,null,null,null,null,null,null,null,null,null,null,null,null,null,null,null,null,null,null,null,null,null,3694]
[1675,null,null,null,null,null,null,null,null,null,null,null,null,null,null,null,null,null,null,null,null,null,3695]
[1676,null,null,null,null,null,null,null,null,null,null,null,null,null,null,null,null,null,null,null,null,null,3696]
[1677,null,null,null,null,null,null,null,null,null,null,null,null,null,null,null,null,null,null,null,null,null,3697]
[1678,null,null,null,null,null,null,null,null,null,null,null,null,null,null,null,null,null,null,null,null,null,3698]
[1679,null,null,null,null,null,null,null,null,null,null,null,null,null,null,null,null,null,null,null,null,null,3699]
[1680,null,null,null,null,null,null,null,null,null,null,null,null,null,null,null,null,null,null,null,null,null,3700]
[1681,null,null,null,null,null,null,null,null,null,null,null,null,null,null,null,null,null,null,null,null,null,3701]
[1682,null,null,null,null,null,null,null,null,null,null,null,null,null,null,null,null,null,null,null,null,null,3702]
[1683,null,null,null,null,null,null,null,null,null,null,null,null,null,null,null,null,null,null,null,null,null,3703]
[1684,null,null,null,null,null,null,null,null,null,null,null,null,null,null,null,null,null,null,null,null,null,3704]
[1685,null,null,null,null,null,null,null,null,null,null,null,null,null,null,null,null,null,null,null,null,null,3705]
[1686,null,null,null,null,null,null,null,null,null,null,null,null,null,null,null,null,null,null,null,null,null,3706]
[1687,null,null,null,null,null,null,null,null,null,null,null,null,null,null,null,null,null,null,null,null,null,3707]
[1688,null,null,null,null,null,null,null,null,null,null,null,null,null,null,null,null,null,null,null,null,null,3708]
[1689,null,null,null,null,null,null,null,null,null,null,null,null,null,null,null,null,null,null,null,null,null,3709]
[1690,null,null,null,null,null,null,null,null,null,null,null,null,null,null,null,null,null,null,null,null,null,3710]
[1691,null,null,null,null,null,null,null,null,null,null,null,null,null,null,null,null,null,null,null,null,null,3711]
[1692,null,null,null,null,null,null,null,null,null,null,null,null,null,null,null,null,null,null,null,null,null,3712]
[1693,null,null,null,null,null,null,null,null,null,null,null,null,null,null,null,null,null,null,null,null,null,3713]
[1694,null,null,null,null,null,null,null,null,null,null,null,null,null,null,null,null,null,null,null,null,null,3714]
[1695,null,null,null,null,null,null,null,null,null,null,null,null,null,null,null,null,null,null,null,null,null,3715]
[1696,null,null,null,null,null,null,null,null,null,null,null,null,null,null,null,null,null,null,null,null,null,3716]
[1697,null,null,null,null,null,null,null,null,null,null,null,null,null,null,null,null,null,null,null,null,null,3717]
[1698,null,null,null,null,null,null,null,null,null,null,null,null,null,null,null,null,null,null,null,null,null,3718]
[1699,null,null,null,null,null,null,null,null,null,null,null,null,null,null,null,null,null,null,null,null,null,3719]
[1700,null,null,null,null,null,null,null,null,null,null,null,null,null,null,null,null,null,null,null,null,null,3720]
[1701,null,null,null,null,null,null,null,null,null,null,null,null,null,null,null,null,null,null,null,null,null,3721]
[1702,null,null,null,null,null,null,null,null,null,null,null,null,null,null,null,null,null,null,null,null,null,3722]
[1703,null,null,null,null,null,null,null,null,null,null,null,null,null,null,null,null,null,null,null,null,null,3723]
[1704,null,null,null,null,null,null,null,null,null,null,null,null,null,null,null,null,null,null,null,null,null,3724]
[1705,null,null,null,null,null,null,null,null,null,null,null,null,null,null,null,null,null,null,null,null,null,3725]
[1706,null,null,null,null,null,null,null,null,null,null,null,null,null,null,null,null,null,null,null,null,null,3726]
[1707,null,null,null,null,null,null,null,null,null,null,null,null,null,null,null,null,null,null,null,null,null,3727]
[1708,null,null,null,null,null,null,null,null,null,null,null,null,null,null,null,null,null,null,null,null,null,3728]
[1709,null,null,null,null,null,null,null,null,null,null,null,null,null,null,null,null,null,null,null,null,null,3729]
[1710,null,null,null,null,null,null,null,null,null,null,null,null,null,null,null,null,null,null,null,null,null,3730]
[1711,null,null,null,null,null,null,null,null,null,null,null,null,null,null,null,null,null,null,null,null,null,3731]
[1712,null,null,null,null,null,null,null,null,null,null,null,null,null,null,null,null,null,null,null,null,null,3732]
[1713,null,null,null,null,null,null,null,null,null,null,null,null,null,null,null,null,null,null,null,null,null,3733]
[1714,null,null,null,null,null,null,null,null,null,null,null,null,null,null,null,null,null,null,null,null,null,3734]
[1715,null,null,null,null,null,null,null,null,null,null,null,null,null,null,null,null,null,null,null,null,null,3735]
[1716,null,null,null,null,null,null,null,null,null,null,null,null,null,null,null,null,null,null,null,null,null,3736]
[1717,null,null,null,null,null,null,null,null,null,null,null,null,null,null,null,null,null,null,null,null,null,3737]
[1718,null,null,null,null,null,null,null,null,null,null,null,null,null,null,null,null,null,null,null,null,null,3738]
[1719,null,null,null,null,null,null,null,null,null,null,null,null,null,null,null,null,null,null,null,null,null,3739]
[1720,null,null,null,null,null,null,null,null,null,null,null,null,null,null,null,null,null,null,null,null,null,3740]
[1721,null,null,null,null,null,null,null,null,null,null,null,null,null,null,null,null,null,null,null,null,null,3741]
[1722,null,null,null,null,null,null,null,null,null,null,null,null,null,null,null,null,null,null,null,null,null,3742]
[1723,null,null,null,null,null,null,null,null,null,null,null,null,null,null,null,null,null,null,null,null,null,3743]
[1724,null,null,null,null,null,null,null,null,null,null,null,null,null,null,null,null,null,null,null,null,null,3744]
[1725,null,null,null,null,null,null,null,null,null,null,null,null,null,null,null,null,null,null,null,null,null,3745]
[1726,null,null,null,null,null,null,null,null,null,null,null,null,null,null,null,null,null,null,null,null,null,3746]
[1727,null,null,null,null,null,null,null,null,null,null,null,null,null,null,null,null,null,null,null,null,null,3747]
[1728,null,null,null,null,null,null,null,null,null,null,null,null,null,null,null,null,null,null,null,null,null,3748]
[1729,null,null,null,null,null,null,null,null,null,null,null,null,null,null,null,null,null,null,null,null,null,3749]
[1730,null,null,null,null,null,null,null,null,null,null,null,null,null,null,null,null,null,null,null,null,null,3750]
[1731,null,null,null,null,null,null,null,null,null,null,null,null,null,null,null,null,null,null,null,null,null,3751]
[1732,null,null,null,null,null,null,null,null,null,null,null,null,null,null,null,null,null,null,null,null,null,3752]
[1733,null,null,null,null,null,null,null,null,null,null,null,null,null,null,null,null,null,null,null,null,null,3753]
[1734,null,null,null,null,null,null,null,null,null,null,null,null,null,null,null,null,null,null,null,null,null,3754]
[1735,null,null,null,null,null,null,null,null,null,null,null,null,null,null,null,null,null,null,null,null,null,3755]
[1736,null,null,null,null,null,null,null,null,null,null,null,null,null,null,null,null,null,null,null,null,null,3756]
[1737,null,null,null,null,null,null,null,null,null,null,null,null,null,null,null,null,null,null,null,null,null,3757]
[1738,null,null,null,null,null,null,null,null,null,null,null,null,null,null,null,null,null,null,null,null,null,3758]
[1739,null,null,null,null,null,null,null,null,null,null,null,null,null,null,null,null,null,null,null,null,null,3759]
[1740,null,null,null,null,null,null,null,null,null,null,null,null,null,null,null,null,null,null,null,null,null,3760]
[1741,null,null,null,null,null,null,null,null,null,null,null,null,null,null,null,null,null,null,null,null,null,3761]
[1742,null,null,null,null,null,null,null,null,null,null,null,null,null,null,null,null,null,null,null,null,null,3762]
[1743,null,null,null,null,null,null,null,null,null,null,null,null,null,null,null,null,null,null,null,null,null,3763]
[1744,null,null,null,null,null,null,null,null,null,null,null,null,null,null,null,null,null,null,null,null,null,3764]
[1745,null,null,null,null,null,null,null,null,null,null,null,null,null,null,null,null,null,null,null,null,null,3765]
[1746,null,null,null,null,null,null,null,null,null,null,null,null,null,null,null,null,null,null,null,null,null,3766]
[1747,null,null,null,null,null,null,null,null,null,null,null,null,null,null,null,null,null,null,null,null,null,3767]
[1748,null,null,null,null,null,null,null,null,null,null,null,null,null,null,null,null,null,null,null,null,null,3768]
[1749,null,null,null,null,null,null,null,null,null,null,null,null,null,null,null,null,null,null,null,null,null,3769]
[1750,null,null,null,null,null,null,null,null,null,null,null,null,null,null,null,null,null,null,null,null,null,3770]
[1751,null,null,null,null,null,null,null,null,null,null,null,null,null,null,null,null,null,null,null,null,null,3771]
[1752,null,null,null,null,null,null,null,null,null,null,null,null,null,null,null,null,null,null,null,null,null,3772]
[1753,null,null,null,null,null,null,null,null,null,null,null,null,null,null,null,null,null,null,null,null,null,3773]
[1754,null,null,null,null,null,null,null,null,null,null,null,null,null,null,null,null,null,null,null,null,null,3774]
[1755,null,null,null,null,null,null,null,null,null,null,null,null,null,null,null,null,null,null,null,null,null,3775]
[1756,null,null,null,null,null,null,null,null,null,null,null,null,null,null,null,null,null,null,null,null,null,3776]
[1757,null,null,null,null,null,null,null,null,null,null,null,null,null,null,null,null,null,null,null,null,null,3777]
[1758,null,null,null,null,null,null,null,null,null,null,null,null,null,null,null,null,null,null,null,null,null,3778]
[1759,null,null,null,null,null,null,null,null,null,null,null,null,null,null,null,null,null,null,null,null,null,3779]
[1760,null,null,null,null,null,null,null,null,null,null,null,null,null,null,null,null,null,null,null,null,null,3780]
[1761,null,null,null,null,null,null,null,null,null,null,null,null,null,null,null,null,null,null,null,null,null,3781]
[1762,null,null,null,null,null,null,null,null,null,null,null,null,null,null,null,null,null,null,null,null,null,3782]
[1763,null,null,null,null,null,null,null,null,null,null,null,null,null,null,null,null,null,null,null,null,null,3783]
[1764,null,null,null,null,null,null,null,null,null,null,null,null,null,null,null,null,null,null,null,null,null,3784]
[1765,null,null,null,null,null,null,null,null,null,null,null,null,null,null,null,null,null,null,null,null,null,3785]
[1766,null,null,null,null,null,null,null,null,null,null,null,null,null,null,null,null,null,null,null,null,null,3786]
[1767,null,null,null,null,null,null,null,null,null,null,null,null,null,null,null,null,null,null,null,null,null,3787]
[1768,null,null,null,null,null,null,null,null,null,null,null,null,null,null,null,null,null,null,null,null,null,3788]
[1769,null,null,null,null,null,null,null,null,null,null,null,null,null,null,null,null,null,null,null,null,null,3789]
[1770,null,null,null,null,null,null,null,null,null,null,null,null,null,null,null,null,null,null,null,null,null,3790]
[1771,null,null,null,null,null,null,null,null,null,null,null,null,null,null,null,null,null,null,null,null,null,3791]
[1772,null,null,null,null,null,null,null,null,null,null,null,null,null,null,null,null,null,null,null,null,null,3792]
[1773,null,null,null,null,null,null,null,null,null,null,null,null,null,null,null,null,null,null,null,null,null,3793]
[1774,null,null,null,null,null,null,null,null,null,null,null,null,null,null,null,null,null,null,null,null,null,3794]
[1775,null,null,null,null,null,null,null,null,null,null,null,null,null,null,null,null,null,null,null,null,null,3795]
[1776,null,null,null,null,null,null,null,null,null,null,null,null,null,null,null,null,null,null,null,null,null,3796]
[1777,null,null,null,null,null,null,null,null,null,null,null,null,null,null,null,null,null,null,null,null,null,3797]
[1778,null,null,null,null,null,null,null,null,null,null,null,null,null,null,null,null,null,null,null,null,null,3798]
[1779,null,null,null,null,null,null,null,null,null,null,null,null,null,null,null,null,null,null,null,null,null,3799]
[1780,null,null,null,null,null,null,null,null,null,null,null,null,null,null,null,null,null,null,null,null,null,3800]
[1781,null,null,null,null,null,null,null,null,null,null,null,null,null,null,null,null,null,null,null,null,null,3801]
[1782,null,null,null,null,null,null,null,null,null,null,null,null,null,null,null,null,null,null,null,null,null,3802]
[1783,null,null,null,null,null,null,null,null,null,null,null,null,null,null,null,null,null,null,null,null,null,3803]
[1784,null,null,null,null,null,null,null,null,null,null,null,null,null,null,null,null,null,null,null,null,null,3804]
[1785,null,null,null,null,null,null,null,null,null,null,null,null,null,null,null,null,null,null,null,null,null,3805]
[1786,null,null,null,null,null,null,null,null,null,null,null,null,null,null,null,null,null,null,null,null,null,3806]
[1787,null,null,null,null,null,null,null,null,null,null,null,null,null,null,null,null,null,null,null,null,null,3807]
[1788,null,null,null,null,null,null,null,null,null,null,null,null,null,null,null,null,null,null,null,null,null,3808]
[1789,null,null,null,null,null,null,null,null,null,null,null,null,null,null,null,null,null,null,null,null,null,3809]
[1790,null,null,null,null,null,null,null,null,null,null,null,null,null,null,null,null,null,null,null,null,null,3810]
[1791,null,null,null,null,null,null,null,null,null,null,null,null,null,null,null,null,null,null,null,null,null,3811]
[1792,null,null,null,null,null,null,null,null,null,null,null,null,null,null,null,null,null,null,null,null,null,3812]
[1793,null,null,null,null,null,null,null,null,null,null,null,null,null,null,null,null,null,null,null,null,null,3813]
[1794,null,null,null,null,null,null,null,null,null,null,null,null,null,null,null,null,null,null,null,null,null,3814]
[1795,null,null,null,null,null,null,null,null,null,null,null,null,null,null,null,null,null,null,null,null,null,3815]
[1796,null,null,null,null,null,null,null,null,null,null,null,null,null,null,null,null,null,null,null,null,null,3816]
[1797,null,null,null,null,null,null,null,null,null,null,null,null,null,null,null,null,null,null,null,null,null,3817]
[1798,null,null,null,null,null,null,null,null,null,null,null,null,null,null,null,null,null,null,null,null,null,3818]
[1799,null,null,null,null,null,null,null,null,null,null,null,null,null,null,null,null,null,null,null,null,null,3819]
[1800,null,null,null,null,null,null,null,null,null,null,null,null,null,null,null,null,null,null,null,null,null,3820]
[1801,null,null,null,null,null,null,null,null,null,null,null,null,null,null,null,null,null,null,null,null,null,3821]
[1802,null,null,null,null,null,null,null,null,null,null,null,null,null,null,null,null,null,null,null,null,null,3822]
[1803,null,null,null,null,null,null,null,null,null,null,null,null,null,null,null,null,null,null,null,null,null,3823]
[1804,null,null,null,null,null,null,null,null,null,null,null,null,null,null,null,null,null,null,null,null,null,3824]
[1805,null,null,null,null,null,null,null,null,null,null,null,null,null,null,null,null,null,null,null,null,null,3825]
[1806,null,null,null,null,null,null,null,null,null,null,null,null,null,null,null,null,null,null,null,null,null,3826]
[1807,null,null,null,null,null,null,null,null,null,null,null,null,null,null,null,null,null,null,null,null,null,3827]
[1808,null,null,null,null,null,null,null,null,null,null,null,null,null,null,null,null,null,null,null,null,null,3828]
[1809,null,null,null,null,null,null,null,null,null,null,null,null,null,null,null,null,null,null,null,null,null,3829]
[1810,null,null,null,null,null,null,null,null,null,null,null,null,null,null,null,null,null,null,null,null,null,3830]
[1811,null,null,null,null,null,null,null,null,null,null,null,null,null,null,null,null,null,null,null,null,null,3831]
[1812,null,null,null,null,null,null,null,null,null,null,null,null,null,null,null,null,null,null,null,null,null,3832]
[1813,null,null,null,null,null,null,null,null,null,null,null,null,null,null,null,null,null,null,null,null,null,3833]
[1814,null,null,null,null,null,null,null,null,null,null,null,null,null,null,null,null,null,null,null,null,null,3834]
[1815,null,null,null,null,null,null,null,null,null,null,null,null,null,null,null,null,null,null,null,null,null,3835]
[1816,null,null,null,null,null,null,null,null,null,null,null,null,null,null,null,null,null,null,null,null,null,3836]
[1817,null,null,null,null,null,null,null,null,null,null,null,null,null,null,null,null,null,null,null,null,null,3837]
[1818,null,null,null,null,null,null,null,null,null,null,null,null,null,null,null,null,null,null,null,null,null,3838]
[1819,null,null,null,null,null,null,null,null,null,null,null,null,null,null,null,null,null,null,null,null,null,3839]
[1820,null,null,null,null,null,null,null,null,null,null,null,null,null,null,null,null,null,null,null,null,null,3840]
[1821,null,null,null,null,null,null,null,null,null,null,null,null,null,null,null,null,null,null,null,null,null,3841]
[1822,null,null,null,null,null,null,null,null,null,null,null,null,null,null,null,null,null,null,null,null,null,3842]
[1823,null,null,null,null,null,null,null,null,null,null,null,null,null,null,null,null,null,null,null,null,null,3843]
[1824,null,null,null,null,null,null,null,null,null,null,null,null,null,null,null,null,null,null,null,null,null,3844]
[1825,null,null,null,null,null,null,null,null,null,null,null,null,null,null,null,null,null,null,null,null,null,3845]
[1826,null,null,null,null,null,null,null,null,null,null,null,null,null,null,null,null,null,null,null,null,null,3846]
[1827,null,null,null,null,null,null,null,null,null,null,null,null,null,null,null,null,null,null,null,null,null,3847]
[1828,null,null,null,null,null,null,null,null,null,null,null,null,null,null,null,null,null,null,null,null,null,3848]
[1829,null,null,null,null,null,null,null,null,null,null,null,null,null,null,null,null,null,null,null,null,null,3849]
[1830,null,null,null,null,null,null,null,null,null,null,null,null,null,null,null,null,null,null,null,null,null,3850]
[1831,null,null,null,null,null,null,null,null,null,null,null,null,null,null,null,null,null,null,null,null,null,3851]
[1832,null,null,null,null,null,null,null,null,null,null,null,null,null,null,null,null,null,null,null,null,null,3852]
[1833,null,null,null,null,null,null,null,null,null,null,null,null,null,null,null,null,null,null,null,null,null,3853]
[1834,null,null,null,null,null,null,null,null,null,null,null,null,null,null,null,null,null,null,null,null,null,3854]
[1835,null,null,null,null,null,null,null,null,null,null,null,null,null,null,null,null,null,null,null,null,null,3855]
[1836,null,null,null,null,null,null,null,null,null,null,null,null,null,null,null,null,null,null,null,null,null,3856]
[1837,null,null,null,null,null,null,null,null,null,null,null,null,null,null,null,null,null,null,null,null,null,3857]
[1838,null,null,null,null,null,null,null,null,null,null,null,null,null,null,null,null,null,null,null,null,null,3858]
[1839,null,null,null,null,null,null,null,null,null,null,null,null,null,null,null,null,null,null,null,null,null,3859]
[1840,null,null,null,null,null,null,null,null,null,null,null,null,null,null,null,null,null,null,null,null,null,3860]
[1841,null,null,null,null,null,null,null,null,null,null,null,null,null,null,null,null,null,null,null,null,null,3861]
[1842,null,null,null,null,null,null,null,null,null,null,null,null,null,null,null,null,null,null,null,null,null,3862]
[1843,null,null,null,null,null,null,null,null,null,null,null,null,null,null,null,null,null,null,null,null,null,3863]
[1844,null,null,null,null,null,null,null,null,null,null,null,null,null,null,null,null,null,null,null,null,null,3864]
[1845,null,null,null,null,null,null,null,null,null,null,null,null,null,null,null,null,null,null,null,null,null,3865]
[1846,null,null,null,null,null,null,null,null,null,null,null,null,null,null,null,null,null,null,null,null,null,3866]
[1847,null,null,null,null,null,null,null,null,null,null,null,null,null,null,null,null,null,null,null,null,null,3867]
[1848,null,null,null,null,null,null,null,null,null,null,null,null,null,null,null,null,null,null,null,null,null,3868]
[1849,null,null,null,null,null,null,null,null,null,null,null,null,null,null,null,null,null,null,null,null,null,3869]
[1850,null,null,null,null,null,null,null,null,null,null,null,null,null,null,null,null,null,null,null,null,null,3870]
[1851,null,null,null,null,null,null,null,null,null,null,null,null,null,null,null,null,null,null,null,null,null,3871]
[1852,null,null,null,null,null,null,null,null,null,null,null,null,null,null,null,null,null,null,null,null,null,3872]
[1853,null,null,null,null,null,null,null,null,null,null,null,null,null,null,null,null,null,null,null,null,null,3873]
[1854,null,null,null,null,null,null,null,null,null,null,null,null,null,null,null,null,null,null,null,null,null,3874]
[1855,null,null,null,null,null,null,null,null,null,null,null,null,null,null,null,null,null,null,null,null,null,3875]
[1856,null,null,null,null,null,null,null,null,null,null,null,null,null,null,null,null,null,null,null,null,null,3876]
[1857,null,null,null,null,null,null,null,null,null,null,null,null,null,null,null,null,null,null,null,null,null,3877]
[1858,null,null,null,null,null,null,null,null,null,null,null,null,null,null,null,null,null,null,null,null,null,3878]
[1859,null,null,null,null,null,null,null,null,null,null,null,null,null,null,null,null,null,null,null,null,null,3879]
[1860,null,null,null,null,null,null,null,null,null,null,null,null,null,null,null,null,null,null,null,null,null,3880]
[1861,null,null,null,null,null,null,null,null,null,null,null,null,null,null,null,null,null,null,null,null,null,3881]
[1862,null,null,null,null,null,null,null,null,null,null,null,null,null,null,null,null,null,null,null,null,null,3882]
[1863,null,null,null,null,null,null,null,null,null,null,null,null,null,null,null,null,null,null,null,null,null,3883]
[1864,null,null,null,null,null,null,null,null,null,null,null,null,null,null,null,null,null,null,null,null,null,3884]
[1865,null,null,null,null,null,null,null,null,null,null,null,null,null,null,null,null,null,null,null,null,null,3885]
[1866,null,null,null,null,null,null,null,null,null,null,null,null,null,null,null,null,null,null,null,null,null,3886]
[1867,null,null,null,null,null,null,null,null,null,null,null,null,null,null,null,null,null,null,null,null,null,3887]
[1868,null,null,null,null,null,null,null,null,null,null,null,null,null,null,null,null,null,null,null,null,null,3888]
[1869,null,null,null,null,null,null,null,null,null,null,null,null,null,null,null,null,null,null,null,null,null,3889]
[1870,null,null,null,null,null,null,null,null,null,null,null,null,null,null,null,null,null,null,null,null,null,3890]
[1871,null,null,null,null,null,null,null,null,null,null,null,null,null,null,null,null,null,null,null,null,null,3891]
[1872,null,null,null,null,null,null,null,null,null,null,null,null,null,null,null,null,null,null,null,null,null,3892]
[1873,null,null,null,null,null,null,null,null,null,null,null,null,null,null,null,null,null,null,null,null,null,3893]
[1874,null,null,null,null,null,null,null,null,null,null,null,null,null,null,null,null,null,null,null,null,null,3894]
[1875,null,null,null,null,null,null,null,null,null,null,null,null,null,null,null,null,null,null,null,null,null,3895]
[1876,null,null,null,null,null,null,null,null,null,null,null,null,null,null,null,null,null,null,null,null,null,3896]
[1877,null,null,null,null,null,null,null,null,null,null,null,null,null,null,null,null,null,null,null,null,null,3897]
[1878,null,null,null,null,null,null,null,null,null,null,null,null,null,null,null,null,null,null,null,null,null,3898]
[1879,null,null,null,null,null,null,null,null,null,null,null,null,null,null,null,null,null,null,null,null,null,3899]
[1880,null,null,null,null,null,null,null,null,null,null,null,null,null,null,null,null,null,null,null,null,null,3900]
[1881,null,null,null,null,null,null,null,null,null,null,null,null,null,null,null,null,null,null,null,null,null,3901]
[1882,null,null,null,null,null,null,null,null,null,null,null,null,null,null,null,null,null,null,null,null,null,3902]
[1883,null,null,null,null,null,null,null,null,null,null,null,null,null,null,null,null,null,null,null,null,null,3903]
[1884,null,null,null,null,null,null,null,null,null,null,null,null,null,null,null,null,null,null,null,null,null,3904]
[1885,null,null,null,null,null,null,null,null,null,null,null,null,null,null,null,null,null,null,null,null,null,3905]
[1886,null,null,null,null,null,null,null,null,null,null,null,null,null,null,null,null,null,null,null,null,null,3906]
[1887,null,null,null,null,null,null,null,null,null,null,null,null,null,null,null,null,null,null,null,null,null,3907]
[1888,null,null,null,null,null,null,null,null,null,null,null,null,null,null,null,null,null,null,null,null,null,3908]
[1889,null,null,null,null,null,null,null,null,null,null,null,null,null,null,null,null,null,null,null,null,null,3909]
[1890,null,null,null,null,null,null,null,null,null,null,null,null,null,null,null,null,null,null,null,null,null,3910]
[1891,null,null,null,null,null,null,null,null,null,null,null,null,null,null,null,null,null,null,null,null,null,3911]
[1892,null,null,null,null,null,null,null,null,null,null,null,null,null,null,null,null,null,null,null,null,null,3912]
[1893,null,null,null,null,null,null,null,null,null,null,null,null,null,null,null,null,null,null,null,null,null,3913]
[1894,null,null,null,null,null,null,null,null,null,null,null,null,null,null,null,null,null,null,null,null,null,3914]
[1895,null,null,null,null,null,null,null,null,null,null,null,null,null,null,null,null,null,null,null,null,null,3915]
[1896,null,null,null,null,null,null,null,null,null,null,null,null,null,null,null,null,null,null,null,null,null,3916]
[1897,null,null,null,null,null,null,null,null,null,null,null,null,null,null,null,null,null,null,null,null,null,3917]
[1898,null,null,null,null,null,null,null,null,null,null,null,null,null,null,null,null,null,null,null,null,null,3918]
[1899,null,null,null,null,null,null,null,null,null,null,null,null,null,null,null,null,null,null,null,null,null,3919]
[1900,null,null,null,null,null,null,null,null,null,null,null,null,null,null,null,null,null,null,null,null,null,3920]
[1901,null,null,null,null,null,null,null,null,null,null,null,null,null,null,null,null,null,null,null,null,null,3921]
[1902,null,null,null,null,null,null,null,null,null,null,null,null,null,null,null,null,null,null,null,null,null,3922]
[1903,null,null,null,null,null,null,null,null,null,null,null,null,null,null,null,null,null,null,null,null,null,3923]
[1904,null,null,null,null,null,null,null,null,null,null,null,null,null,null,null,null,null,null,null,null,null,3924]
[1905,null,null,null,null,null,null,null,null,null,null,null,null,null,null,null,null,null,null,null,null,null,3925]
[1906,null,null,null,null,null,null,null,null,null,null,null,null,null,null,null,null,null,null,null,null,null,3926]
[1907,null,null,null,null,null,null,null,null,null,null,null,null,null,null,null,null,null,null,null,null,null,3927]
[1908,null,null,null,null,null,null,null,null,null,null,null,null,null,null,null,null,null,null,null,null,null,3928]
[1909,null,null,null,null,null,null,null,null,null,null,null,null,null,null,null,null,null,null,null,null,null,3929]
[1910,null,null,null,null,null,null,null,null,null,null,null,null,null,null,null,null,null,null,null,null,null,3930]
[1911,null,null,null,null,null,null,null,null,null,null,null,null,null,null,null,null,null,null,null,null,null,3931]
[1912,null,null,null,null,null,null,null,null,null,null,null,null,null,null,null,null,null,null,null,null,null,3932]
[1913,null,null,null,null,null,null,null,null,null,null,null,null,null,null,null,null,null,null,null,null,null,3933]
[1914,null,null,null,null,null,null,null,null,null,null,null,null,null,null,null,null,null,null,null,null,null,3934]
[1915,null,null,null,null,null,null,null,null,null,null,null,null,null,null,null,null,null,null,null,null,null,3935]
[1916,null,null,null,null,null,null,null,null,null,null,null,null,null,null,null,null,null,null,null,null,null,3936]
[1917,null,null,null,null,null,null,null,null,null,null,null,null,null,null,null,null,null,null,null,null,null,3937]
[1918,null,null,null,null,null,null,null,null,null,null,null,null,null,null,null,null,null,null,null,null,null,3938]
[1919,null,null,null,null,null,null,null,null,null,null,null,null,null,null,null,null,null,null,null,null,null,3939]
[1920,null,null,null,null,null,null,null,null,null,null,null,null,null,null,null,null,null,null,null,null,null,3940]
[1921,null,null,null,null,null,null,null,null,null,null,null,null,null,null,null,null,null,null,null,null,null,3941]
[1922,null,null,null,null,null,null,null,null,null,null,null,null,null,null,null,null,null,null,null,null,null,3942]
[1923,null,null,null,null,null,null,null,null,null,null,null,null,null,null,null,null,null,null,null,null,null,3943]
[1924,null,null,null,null,null,null,null,null,null,null,null,null,null,null,null,null,null,null,null,null,null,3944]
[1925,null,null,null,null,null,null,null,null,null,null,null,null,null,null,null,null,null,null,null,null,null,3945]
[1926,null,null,null,null,null,null,null,null,null,null,null,null,null,null,null,null,null,null,null,null,null,3946]
[1927,null,null,null,null,null,null,null,null,null,null,null,null,null,null,null,null,null,null,null,null,null,3947]
[1928,null,null,null,null,null,null,null,null,null,null,null,null,null,null,null,null,null,null,null,null,null,3948]
[1929,null,null,null,null,null,null,null,null,null,null,null,null,null,null,null,null,null,null,null,null,null,3949]
[1930,null,null,null,null,null,null,null,null,null,null,null,null,null,null,null,null,null,null,null,null,null,3950]
[1931,null,null,null,null,null,null,null,null,null,null,null,null,null,null,null,null,null,null,null,null,null,3951]
[1932,null,null,null,null,null,null,null,null,null,null,null,null,null,null,null,null,null,null,null,null,null,3952]
[1933,null,null,null,null,null,null,null,null,null,null,null,null,null,null,null,null,null,null,null,null,null,3953]
[1934,null,null,null,null,null,null,null,null,null,null,null,null,null,null,null,null,null,null,null,null,null,3954]
[1935,null,null,null,null,null,null,null,null,null,null,null,null,null,null,null,null,null,null,null,null,null,3955]
[1936,null,null,null,null,null,null,null,null,null,null,null,null,null,null,null,null,null,null,null,null,null,3956]
[1937,null,null,null,null,null,null,null,null,null,null,null,null,null,null,null,null,null,null,null,null,null,3957]
[1938,null,null,null,null,null,null,null,null,null,null,null,null,null,null,null,null,null,null,null,null,null,3958]
[1939,null,null,null,null,null,null,null,null,null,null,null,null,null,null,null,null,null,null,null,null,null,3959]
[1940,null,null,null,null,null,null,null,null,null,null,null,null,null,null,null,null,null,null,null,null,null,3960]
[1941,null,null,null,null,null,null,null,null,null,null,null,null,null,null,null,null,null,null,null,null,null,3961]
[1942,null,null,null,null,null,null,null,null,null,null,null,null,null,null,null,null,null,null,null,null,null,3962]
[1943,null,null,null,null,null,null,null,null,null,null,null,null,null,null,null,null,null,null,null,null,null,3963]
[1944,null,null,null,null,null,null,null,null,null,null,null,null,null,null,null,null,null,null,null,null,null,3964]
[1945,null,null,null,null,null,null,null,null,null,null,null,null,null,null,null,null,null,null,null,null,null,3965]
[1946,null,null,null,null,null,null,null,null,null,null,null,null,null,null,null,null,null,null,null,null,null,3966]
[1947,null,null,null,null,null,null,null,null,null,null,null,null,null,null,null,null,null,null,null,null,null,3967]
[1948,null,null,null,null,null,null,null,null,null,null,null,null,null,null,null,null,null,null,null,null,null,3968]
[1949,null,null,null,null,null,null,null,null,null,null,null,null,null,null,null,null,null,null,null,null,null,3969]
[1950,null,null,null,null,null,null,null,null,null,null,null,null,null,null,null,null,null,null,null,null,null,3970]
[1951,null,null,null,null,null,null,null,null,null,null,null,null,null,null,null,null,null,null,null,null,null,3971]
[1952,null,null,null,null,null,null,null,null,null,null,null,null,null,null,null,null,null,null,null,null,null,3972]
[1953,null,null,null,null,null,null,null,null,null,null,null,null,null,null,null,null,null,null,null,null,null,3973]
[1954,null,null,null,null,null,null,null,null,null,null,null,null,null,null,null,null,null,null,null,null,null,3974]
[1955,null,null,null,null,null,null,null,null,null,null,null,null,null,null,null,null,null,null,null,null,null,3975]
[1956,null,null,null,null,null,null,null,null,null,null,null,null,null,null,null,null,null,null,null,null,null,3976]
[1957,null,null,null,null,null,null,null,null,null,null,null,null,null,null,null,null,null,null,null,null,null,3977]
[1958,null,null,null,null,null,null,null,null,null,null,null,null,null,null,null,null,null,null,null,null,null,3978]
[1959,null,null,null,null,null,null,null,null,null,null,null,null,null,null,null,null,null,null,null,null,null,3979]
[1960,null,null,null,null,null,null,null,null,null,null,null,null,null,null,null,null,null,null,null,null,null,3980]
[1961,null,null,null,null,null,null,null,null,null,null,null,null,null,null,null,null,null,null,null,null,null,3981]
[1962,null,null,null,null,null,null,null,null,null,null,null,null,null,null,null,null,null,null,null,null,null,3982]
[1963,null,null,null,null,null,null,null,null,null,null,null,null,null,null,null,null,null,null,null,null,null,3983]
[1964,null,null,null,null,null,null,null,null,null,null,null,null,null,null,null,null,null,null,null,null,null,3984]
[1965,null,null,null,null,null,null,null,null,null,null,null,null,null,null,null,null,null,null,null,null,null,3985]
[1966,null,null,null,null,null,null,null,null,null,null,null,null,null,null,null,null,null,null,null,null,null,3986]
[1967,null,null,null,null,null,null,null,null,null,null,null,null,null,null,null,null,null,null,null,null,null,3987]
[1968,null,null,null,null,null,null,null,null,null,null,null,null,null,null,null,null,null,null,null,null,null,3988]
[1969,null,null,null,null,null,null,null,null,null,null,null,null,null,null,null,null,null,null,null,null,null,3989]
[1970,null,null,null,null,null,null,null,null,null,null,null,null,null,null,null,null,null,null,null,null,null,3990]
[1971,null,null,null,null,null,null,null,null,null,null,null,null,null,null,null,null,null,null,null,null,null,3991]
[1972,null,null,null,null,null,null,null,null,null,null,null,null,null,null,null,null,null,null,null,null,null,3992]
[1973,null,null,null,null,null,null,null,null,null,null,null,null,null,null,null,null,null,null,null,null,null,3993]
[1974,null,null,null,null,null,null,null,null,null,null,null,null,null,null,null,null,null,null,null,null,null,3994]
[1975,null,null,null,null,null,null,null,null,null,null,null,null,null,null,null,null,null,null,null,null,null,3995]
[1976,null,null,null,null,null,null,null,null,null,null,null,null,null,null,null,null,null,null,null,null,null,3996]
[1977,null,null,null,null,null,null,null,null,null,null,null,null,null,null,null,null,null,null,null,null,null,3997]
[1978,null,null,null,null,null,null,null,null,null,null,null,null,null,null,null,null,null,null,null,null,null,3998]
[1979,null,null,null,null,null,null,null,null,null,null,null,null,null,null,null,null,null,null,null,null,null,3999]
[1980,null,null,null,null,null,null,null,null,null,null,null,null,null,null,null,null,null,null,null,null,null,4000]
[1981,null,null,null,null,null,null,null,null,null,null,null,null,null,null,null,null,null,null,null,null,null,4001]
[1982,null,null,null,null,null,null,null,null,null,null,null,null,null,null,null,null,null,null,null,null,null,4002]
[1983,null,null,null,null,null,null,null,null,null,null,null,null,null,null,null,null,null,null,null,null,null,4003]
[1984,null,null,null,null,null,null,null,null,null,null,null,null,null,null,null,null,null,null,null,null,null,4004]
[1985,null,null,null,null,null,null,null,null,null,null,null,null,null,null,null,null,null,null,null,null,null,4005]
[1986,null,null,null,null,null,null,null,null,null,null,null,null,null,null,null,null,null,null,null,null,null,4006]
[1987,null,null,null,null,null,null,null,null,null,null,null,null,null,null,null,null,null,null,null,null,null,4007]
[1988,null,null,null,null,null,null,null,null,null,null,null,null,null,null,null,null,null,null,null,null,null,4008]
[1989,null,null,null,null,null,null,null,null,null,null,null,null,null,null,null,null,null,null,null,null,null,4009]
[1990,null,null,null,null,null,null,null,null,null,null,null,null,null,null,null,null,null,null,null,null,null,4010]
[1991,null,null,null,null,null,null,null,null,null,null,null,null,null,null,null,null,null,null,null,null,null,4011]
[1992,null,null,null,null,null,null,null,null,null,null,null,null,null,null,null,null,null,null,null,null,null,4012]
[1993,null,null,null,null,null,null,null,null,null,null,null,null,null,null,null,null,null,null,null,null,null,4013]
[1994,null,null,null,null,null,null,null,null,null,null,null,null,null,null,null,null,null,null,null,null,null,4014]
[1995,null,null,null,null,null,null,null,null,null,null,null,null,null,null,null,null,null,null,null,null,null,4015]
[1996,null,null,null,null,null,null,null,null,null,null,null,null,null,null,null,null,null,null,null,null,null,4016]
[1997,null,null,null,null,null,null,null,null,null,null,null,null,null,null,null,null,null,null,null,null,null,4017]
[1998,null,null,null,null,null,null,null,null,null,null,null,null,null,null,null,null,null,null,null,null,null,4018]
[1999,null,null,null,null,null,null,null,null,null,null,null,null,null,null,null,null,null,null,null,null,null,4019]
[2000,null,null,null,null,null,null,null,null,null,null,null,null,null,null,null,null,null,null,null,null,null,4020]
[2001,null,null,null,null,null,null,null,null,null,null,null,null,null,null,null,null,null,null,null,null,null,4021]
[2002,null,null,null,null,null,null,null,null,null,null,null,null,null,null,null,null,null,null,null,null,null,4022]
[2003,null,null,null,null,null,null,null,null,null,null,null,null,null,null,null,null,null,null,null,null,null,4023]
[2004,null,null,null,null,null,null,null,null,null,null,null,null,null,null,null,null,null,null,null,null,null,4024]
[2005,null,null,null,null,null,null,null,null,null,null,null,null,null,null,null,null,null,null,null,null,null,4025]
[2006,null,null,null,null,null,null,null,null,null,null,null,null,null,null,null,null,null,null,null,null,null,4026]
[2007,null,null,null,null,null,null,null,null,null,null,null,null,null,null,null,null,null,null,null,null,null,4027]
[2008,null,null,null,null,null,null,null,null,null,null,null,null,null,null,null,null,null,null,null,null,null,4028]
[2009,null,null,null,null,null,null,null,null,null,null,null,null,null,null,null,null,null,null,null,null,null,4029]
[2010,null,null,null,null,null,null,null,null,null,null,null,null,null,null,null,null,null,null,null,null,null,4030]
[2011,null,null,null,null,null,null,null,null,null,null,null,null,null,null,null,null,null,null,null,null,null,4031]
[2012,null,null,null,null,null,null,null,null,null,null,null,null,null,null,null,null,null,null,null,null,null,4032]
[2013,null,null,null,null,null,null,null,null,null,null,null,null,null,null,null,null,null,null,null,null,null,4033]
[2014,null,null,null,null,null,null,null,null,null,null,null,null,null,null,null,null,null,null,null,null,null,4034]
[2015,null,null,null,null,null,null,null,null,null,null,null,null,null,null,null,null,null,null,null,null,null,4035]
[2016,null,null,null,null,null,null,null,null,null,null,null,null,null,null,null,null,null,null,null,null,null,4036]
[2017,null,null,null,null,null,null,null,null,null,null,null,null,null,null,null,null,null,null,null,null,null,4037]
[2018,null,null,null,null,null,null,null,null,null,null,null,null,null,null,null,null,null,null,null,null,null,4038]
[2019,null,null,null,null,null,null,null,null,null,null,null,null,null,null,null,null,null,null,null,null,null,4039]
[2020,null,null,null,null,null,null,null,null,null,null,null,null,null,null,null,null,null,null,null,null,null,4040]
[2021,null,null,null,null,null,null,null,null,null,null,null,null,null,null,null,null,null,null,null,null,null,4041]
[2022,null,null,null,null,null,null,null,null,null,null,null,null,null,null,null,null,null,null,null,null,null,4042]
[2023,null,null,null,null,null,null,null,null,null,null,null,null,null,null,null,null,null,null,null,null,null,4043]
[2024,null,null,null,null,null,null,null,null,null,null,null,null,null,null,null,null,null,null,null,null,null,4044]
[2025,null,null,null,null,null,null,null,null,null,null,null,null,null,null,null,null,null,null,null,null,null,4045]
[2026,null,null,null,null,null,null,null,null,null,null,null,null,null,null,null,null,null,null,null,null,null,4046]
[2027,null,null,null,null,null,null,null,null,null,null,null,null,null,null,null,null,null,null,null,null,null,4047]
[2028,null,null,null,null,null,null,null,null,null,null,null,null,null,null,null,null,null,null,null,null,null,4048]
[2029,null,null,null,null,null,null,null,null,null,null,null,null,null,null,null,null,null,null,null,null,null,4049]
[2030,null,null,null,null,null,null,null,null,null,null,null,null,null,null,null,null,null,null,null,null,null,4050]
[2031,null,null,null,null,null,null,null,null,null,null,null,null,null,null,null,null,null,null,null,null,null,4051]
[2032,null,null,null,null,null,null,null,null,null,null,null,null,null,null,null,null,null,null,null,null,null,4052]
[2033,null,null,null,null,null,null,null,null,null,null,null,null,null,null,null,null,null,null,null,null,null,4053]
[2034,null,null,null,null,null,null,null,null,null,null,null,null,null,null,null,null,null,null,null,null,null,4054]
[2035,null,null,null,null,null,null,null,null,null,null,null,null,null,null,null,null,null,null,null,null,null,4055]
[2036,null,null,null,null,null,null,null,null,null,null,null,null,null,null,null,null,null,null,null,null,null,4056]
[2037,null,null,null,null,null,null,null,null,null,null,null,null,null,null,null,null,null,null,null,null,null,4057]
[2038,null,null,null,null,null,null,null,null,null,null,null,null,null,null,null,null,null,null,null,null,null,4058]
[2039,null,null,null,null,null,null,null,null,null,null,null,null,null,null,null,null,null,null,null,null,null,4059]
[2040,null,null,null,null,null,null,null,null,null,null,null,null,null,null,null,null,null,null,null,null,null,4060]
[2041,null,null,null,null,null,null,null,null,null,null,null,null,null,null,null,null,null,null,null,null,null,4061]
[2042,null,null,null,null,null,null,null,null,null,null,null,null,null,null,null,null,null,null,null,null,null,4062]
[2043,null,null,null,null,null,null,null,null,null,null,null,null,null,null,null,null,null,null,null,null,null,4063]
[2044,null,null,null,null,null,null,null,null,null,null,null,null,null,null,null,null,null,null,null,null,null,4064]
[2045,null,null,null,null,null,null,null,null,null,null,null,null,null,null,null,null,null,null,null,null,null,4065]
[2046,null,null,null,null,null,null,null,null,null,null,null,null,null,null,null,null,null,null,null,null,null,4066]
[2047,null,null,null,null,null,null,null,null,null,null,null,null,null,null,null,null,null,null,null,null,null,4067]
[2048,null,null,null,null,null,null,null,null,null,null,null,null,null,null,null,null,null,null,null,null,null,4068]
[2049,null,null,null,null,null,null,null,null,null,null,null,null,null,null,null,null,null,null,null,null,null,4069]
[2050,null,null,null,null,null,null,null,null,null,null,null,null,null,null,null,null,null,null,null,null,null,4070]
[2051,null,null,null,null,null,null,null,null,null,null,null,null,null,null,null,null,null,null,null,null,null,4071]
[2052,null,null,null,null,null,null,null,null,null,null,null,null,null,null,null,null,null,null,null,null,null,4072]
[2053,null,null,null,null,null,null,null,null,null,null,null,null,null,null,null,null,null,null,null,null,null,4073]
[2054,null,null,null,null,null,null,null,null,null,null,null,null,null,null,null,null,null,null,null,null,null,4074]
[2055,null,null,null,null,null,null,null,null,null,null,null,null,null,null,null,null,null,null,null,null,null,4075]
[2056,null,null,null,null,null,null,null,null,null,null,null,null,null,null,null,null,null,null,null,null,null,4076]
[2057,null,null,null,null,null,null,null,null,null,null,null,null,null,null,null,null,null,null,null,null,null,4077]
[2058,null,null,null,null,null,null,null,null,null,null,null,null,null,null,null,null,null,null,null,null,null,4078]
[2059,null,null,null,null,null,null,null,null,null,null,null,null,null,null,null,null,null,null,null,null,null,4079]
[2060,null,null,null,null,null,null,null,null,null,null,null,null,null,null,null,null,null,null,null,null,null,4080]
[2061,null,null,null,null,null,null,null,null,null,null,null,null,null,null,null,null,null,null,null,null,null,4081]
[2062,null,null,null,null,null,null,null,null,null,null,null,null,null,null,null,null,null,null,null,null,null,4082]
[2063,null,null,null,null,null,null,null,null,null,null,null,null,null,null,null,null,null,null,null,null,null,4083]
[2064,null,null,null,null,null,null,null,null,null,null,null,null,null,null,null,null,null,null,null,null,null,4084]
[2065,null,null,null,null,null,null,null,null,null,null,null,null,null,null,null,null,null,null,null,null,null,4085]
[2066,null,null,null,null,null,null,null,null,null,null,null,null,null,null,null,null,null,null,null,null,null,4086]
[2067,null,null,null,null,null,null,null,null,null,null,null,null,null,null,null,null,null,null,null,null,null,4087]
[2068,null,null,null,null,null,null,null,null,null,null,null,null,null,null,null,null,null,null,null,null,null,4088]
[2069,null,null,null,null,null,null,null,null,null,null,null,null,null,null,null,null,null,null,null,null,null,4089]
[2070,null,null,null,null,null,null,null,null,null,null,null,null,null,null,null,null,null,null,null,null,null,4090]
[2071,null,null,null,null,null,null,null,null,null,null,null,null,null,null,null,null,null,null,null,null,null,4091]
[2072,null,null,null,null,null,null,null,null,null,null,null,null,null,null,null,null,null,null,null,null,null,4092]
[2073,null,null,null,null,null,null,null,null,null,null,null,null,null,null,null,null,null,null,null,null,null,4093]
[2074,null,null,null,null,null,null,null,null,null,null,null,null,null,null,null,null,null,null,null,null,null,4094]
[2075,null,null,null,null,null,null,null,null,null,null,null,null,null,null,null,null,null,null,null,null,null,4095]
[2076,null,null,null,null,null,null,null,null,null,null,null,null,null,null,null,null,null,null,null,null,null,4096]
[2077,null,null,null,null,null,null,null,null,null,null,null,null,null,null,null,null,null,null,null,null,null,4097]
[2078,null,null,null,null,null,null,null,null,null,null,null,null,null,null,null,null,null,null,null,null,null,4098]
[2079,null,null,null,null,null,null,null,null,null,null,null,null,null,null,null,null,null,null,null,null,null,4099]
[2080,null,null,null,null,null,null,null,null,null,null,null,null,null,null,null,null,null,null,null,null,null,4100]
[2081,null,null,null,null,null,null,null,null,null,null,null,null,null,null,null,null,null,null,null,null,null,4101]
[2082,null,null,null,null,null,null,null,null,null,null,null,null,null,null,null,null,null,null,null,null,null,4102]
[2083,null,null,null,null,null,null,null,null,null,null,null,null,null,null,null,null,null,null,null,null,null,4103]
[2084,null,null,null,null,null,null,null,null,null,null,null,null,null,null,null,null,null,null,null,null,null,4104]
[2085,null,null,null,null,null,null,null,null,null,null,null,null,null,null,null,null,null,null,null,null,null,4105]
[2086,null,null,null,null,null,null,null,null,null,null,null,null,null,null,null,null,null,null,null,null,null,4106]
[2087,null,null,null,null,null,null,null,null,null,null,null,null,null,null,null,null,null,null,null,null,null,4107]
[2088,null,null,null,null,null,null,null,null,null,null,null,null,null,null,null,null,null,null,null,null,null,4108]
[2089,null,null,null,null,null,null,null,null,null,null,null,null,null,null,null,null,null,null,null,null,null,4109]
[2090,null,null,null,null,null,null,null,null,null,null,null,null,null,null,null,null,null,null,null,null,null,4110]
[2091,null,null,null,null,null,null,null,null,null,null,null,null,null,null,null,null,null,null,null,null,null,4111]
[2092,null,null,null,null,null,null,null,null,null,null,null,null,null,null,null,null,null,null,null,null,null,4112]
[2093,null,null,null,null,null,null,null,null,null,null,null,null,null,null,null,null,null,null,null,null,null,4113]
[2094,null,null,null,null,null,null,null,null,null,null,null,null,null,null,null,null,null,null,null,null,null,4114]
[2095,null,null,null,null,null,null,null,null,null,null,null,null,null,null,null,null,null,null,null,null,null,4115]
[2096,null,null,null,null,null,null,null,null,null,null,null,null,null,null,null,null,null,null,null,null,null,4116]
[2097,null,null,null,null,null,null,null,null,null,null,null,null,null,null,null,null,null,null,null,null,null,4117]
[2098,null,null,null,null,null,null,null,null,null,null,null,null,null,null,null,null,null,null,null,null,null,4118]
[2099,null,null,null,null,null,null,null,null,null,null,null,null,null,null,null,null,null,null,null,null,null,4119]
[2100,null,null,null,null,null,null,null,null,null,null,null,null,null,null,null,null,null,null,null,null,null,4120]
[2101,null,null,null,null,null,null,null,null,null,null,null,null,null,null,null,null,null,null,null,null,null,4121]
[2102,null,null,null,null,null,null,null,null,null,null,null,null,null,null,null,null,null,null,null,null,null,4122]
[2103,null,null,null,null,null,null,null,null,null,null,null,null,null,null,null,null,null,null,null,null,null,4123]
[2104,null,null,null,null,null,null,null,null,null,null,null,null,null,null,null,null,null,null,null,null,null,4124]
[2105,null,null,null,null,null,null,null,null,null,null,null,null,null,null,null,null,null,null,null,null,null,4125]
[2106,null,null,null,null,null,null,null,null,null,null,null,null,null,null,null,null,null,null,null,null,null,4126]
[2107,null,null,null,null,null,null,null,null,null,null,null,null,null,null,null,null,null,null,null,null,null,4127]
[2108,null,null,null,null,null,null,null,null,null,null,null,null,null,null,null,null,null,null,null,null,null,4128]
[2109,null,null,null,null,null,null,null,null,null,null,null,null,null,null,null,null,null,null,null,null,null,4129]
[2110,null,null,null,null,null,null,null,null,null,null,null,null,null,null,null,null,null,null,null,null,null,4130]
[2111,null,null,null,null,null,null,null,null,null,null,null,null,null,null,null,null,null,null,null,null,null,4131]
[2112,null,null,null,null,null,null,null,null,null,null,null,null,null,null,null,null,null,null,null,null,null,4132]
[2113,null,null,null,null,null,null,null,null,null,null,null,null,null,null,null,null,null,null,null,null,null,4133]
[2114,null,null,null,null,null,null,null,null,null,null,null,null,null,null,null,null,null,null,null,null,null,4134]
[2115,null,null,null,null,null,null,null,null,null,null,null,null,null,null,null,null,null,null,null,null,null,4135]
[2116,null,null,null,null,null,null,null,null,null,null,null,null,null,null,null,null,null,null,null,null,null,4136]
[2117,null,null,null,null,null,null,null,null,null,null,null,null,null,null,null,null,null,null,null,null,null,4137]
[2118,null,null,null,null,null,null,null,null,null,null,null,null,null,null,null,null,null,null,null,null,null,4138]
[2119,null,null,null,null,null,null,null,null,null,null,null,null,null,null,null,null,null,null,null,null,null,4139]
[2120,null,null,null,null,null,null,null,null,null,null,null,null,null,null,null,null,null,null,null,null,null,4140]
[2121,null,null,null,null,null,null,null,null,null,null,null,null,null,null,null,null,null,null,null,null,null,4141]
[2122,null,null,null,null,null,null,null,null,null,null,null,null,null,null,null,null,null,null,null,null,null,4142]
[2123,null,null,null,null,null,null,null,null,null,null,null,null,null,null,null,null,null,null,null,null,null,4143]
[2124,null,null,null,null,null,null,null,null,null,null,null,null,null,null,null,null,null,null,null,null,null,4144]
[2125,null,null,null,null,null,null,null,null,null,null,null,null,null,null,null,null,null,null,null,null,null,4145]
[2126,null,null,null,null,null,null,null,null,null,null,null,null,null,null,null,null,null,null,null,null,null,4146]
[2127,null,null,null,null,null,null,null,null,null,null,null,null,null,null,null,null,null,null,null,null,null,4147]
[2128,null,null,null,null,null,null,null,null,null,null,null,null,null,null,null,null,null,null,null,null,null,4148]
[2129,null,null,null,null,null,null,null,null,null,null,null,null,null,null,null,null,null,null,null,null,null,4149]
[2130,null,null,null,null,null,null,null,null,null,null,null,null,null,null,null,null,null,null,null,null,null,4150]
[2131,null,null,null,null,null,null,null,null,null,null,null,null,null,null,null,null,null,null,null,null,null,4151]
[2132,null,null,null,null,null,null,null,null,null,null,null,null,null,null,null,null,null,null,null,null,null,4152]
[2133,null,null,null,null,null,null,null,null,null,null,null,null,null,null,null,null,null,null,null,null,null,4153]
[2134,null,null,null,null,null,null,null,null,null,null,null,null,null,null,null,null,null,null,null,null,null,4154]
[2135,null,null,null,null,null,null,null,null,null,null,null,null,null,null,null,null,null,null,null,null,null,4155]
[2136,null,null,null,null,null,null,null,null,null,null,null,null,null,null,null,null,null,null,null,null,null,4156]
[2137,null,null,null,null,null,null,null,null,null,null,null,null,null,null,null,null,null,null,null,null,null,4157]
[2138,null,null,null,null,null,null,null,null,null,null,null,null,null,null,null,null,null,null,null,null,null,4158]
[2139,null,null,null,null,null,null,null,null,null,null,null,null,null,null,null,null,null,null,null,null,null,4159]
[2140,null,null,null,null,null,null,null,null,null,null,null,null,null,null,null,null,null,null,null,null,null,4160]
[2141,null,null,null,null,null,null,null,null,null,null,null,null,null,null,null,null,null,null,null,null,null,4161]
[2142,null,null,null,null,null,null,null,null,null,null,null,null,null,null,null,null,null,null,null,null,null,4162]
[2143,null,null,null,null,null,null,null,null,null,null,null,null,null,null,null,null,null,null,null,null,null,4163]
[2144,null,null,null,null,null,null,null,null,null,null,null,null,null,null,null,null,null,null,null,null,null,4164]
[2145,null,null,null,null,null,null,null,null,null,null,null,null,null,null,null,null,null,null,null,null,null,4165]
[2146,null,null,null,null,null,null,null,null,null,null,null,null,null,null,null,null,null,null,null,null,null,4166]
[2147,null,null,null,null,null,null,null,null,null,null,null,null,null,null,null,null,null,null,null,null,null,4167]
[2148,null,null,null,null,null,null,null,null,null,null,null,null,null,null,null,null,null,null,null,null,null,4168]
[2149,null,null,null,null,null,null,null,null,null,null,null,null,null,null,null,null,null,null,null,null,null,4169]
[2150,null,null,null,null,null,null,null,null,null,null,null,null,null,null,null,null,null,null,null,null,null,4170]
[2151,null,null,null,null,null,null,null,null,null,null,null,null,null,null,null,null,null,null,null,null,null,4171]
[2152,null,null,null,null,null,null,null,null,null,null,null,null,null,null,null,null,null,null,null,null,null,4172]
[2153,null,null,null,null,null,null,null,null,null,null,null,null,null,null,null,null,null,null,null,null,null,4173]
[2154,null,null,null,null,null,null,null,null,null,null,null,null,null,null,null,null,null,null,null,null,null,4174]
[2155,null,null,null,null,null,null,null,null,null,null,null,null,null,null,null,null,null,null,null,null,null,4175]
[2156,null,null,null,null,null,null,null,null,null,null,null,null,null,null,null,null,null,null,null,null,null,4176]
[2157,null,null,null,null,null,null,null,null,null,null,null,null,null,null,null,null,null,null,null,null,null,4177]
[2158,null,null,null,null,null,null,null,null,null,null,null,null,null,null,null,null,null,null,null,null,null,4178]
[2159,null,null,null,null,null,null,null,null,null,null,null,null,null,null,null,null,null,null,null,null,null,4179]
[2160,null,null,null,null,null,null,null,null,null,null,null,null,null,null,null,null,null,null,null,null,null,4180]
[2161,null,null,null,null,null,null,null,null,null,null,null,null,null,null,null,null,null,null,null,null,null,4181]
[2162,null,null,null,null,null,null,null,null,null,null,null,null,null,null,null,null,null,null,null,null,null,4182]
[2163,null,null,null,null,null,null,null,null,null,null,null,null,null,null,null,null,null,null,null,null,null,4183]
[2164,null,null,null,null,null,null,null,null,null,null,null,null,null,null,null,null,null,null,null,null,null,4184]
[2165,null,null,null,null,null,null,null,null,null,null,null,null,null,null,null,null,null,null,null,null,null,4185]
[2166,null,null,null,null,null,null,null,null,null,null,null,null,null,null,null,null,null,null,null,null,null,4186]
[2167,null,null,null,null,null,null,null,null,null,null,null,null,null,null,null,null,null,null,null,null,null,4187]
[2168,null,null,null,null,null,null,null,null,null,null,null,null,null,null,null,null,null,null,null,null,null,4188]
[2169,null,null,null,null,null,null,null,null,null,null,null,null,null,null,null,null,null,null,null,null,null,4189]
[2170,null,null,null,null,null,null,null,null,null,null,null,null,null,null,null,null,null,null,null,null,null,4190]
[2171,null,null,null,null,null,null,null,null,null,null,null,null,null,null,null,null,null,null,null,null,null,4191]
[2172,null,null,null,null,null,null,null,null,null,null,null,null,null,null,null,null,null,null,null,null,null,4192]
[2173,null,null,null,null,null,null,null,null,null,null,null,null,null,null,null,null,null,null,null,null,null,4193]
[2174,null,null,null,null,null,null,null,null,null,null,null,null,null,null,null,null,null,null,null,null,null,4194]
[2175,null,null,null,null,null,null,null,null,null,null,null,null,null,null,null,null,null,null,null,null,null,4195]
[2176,null,null,null,null,null,null,null,null,null,null,null,null,null,null,null,null,null,null,null,null,null,4196]
[2177,null,null,null,null,null,null,null,null,null,null,null,null,null,null,null,null,null,null,null,null,null,4197]
[2178,null,null,null,null,null,null,null,null,null,null,null,null,null,null,null,null,null,null,null,null,null,4198]
[2179,null,null,null,null,null,null,null,null,null,null,null,null,null,null,null,null,null,null,null,null,null,4199]
[2180,null,null,null,null,null,null,null,null,null,null,null,null,null,null,null,null,null,null,null,null,null,4200]
[2181,null,null,null,null,null,null,null,null,null,null,null,null,null,null,null,null,null,null,null,null,null,4201]
[2182,null,null,null,null,null,null,null,null,null,null,null,null,null,null,null,null,null,null,null,null,null,4202]
[2183,null,null,null,null,null,null,null,null,null,null,null,null,null,null,null,null,null,null,null,null,null,4203]
[2184,null,null,null,null,null,null,null,null,null,null,null,null,null,null,null,null,null,null,null,null,null,4204]
[2185,null,null,null,null,null,null,null,null,null,null,null,null,null,null,null,null,null,null,null,null,null,4205]
[2186,null,null,null,null,null,null,null,null,null,null,null,null,null,null,null,null,null,null,null,null,null,4206]
[2187,null,null,null,null,null,null,null,null,null,null,null,null,null,null,null,null,null,null,null,null,null,4207]
[2188,null,null,null,null,null,null,null,null,null,null,null,null,null,null,null,null,null,null,null,null,null,4208]
[2189,null,null,null,null,null,null,null,null,null,null,null,null,null,null,null,null,null,null,null,null,null,4209]
[2190,null,null,null,null,null,null,null,null,null,null,null,null,null,null,null,null,null,null,null,null,null,4210]
[2191,null,null,null,null,null,null,null,null,null,null,null,null,null,null,null,null,null,null,null,null,null,4211]
[2192,null,null,null,null,null,null,null,null,null,null,null,null,null,null,null,null,null,null,null,null,null,4212]
[2193,null,null,null,null,null,null,null,null,null,null,null,null,null,null,null,null,null,null,null,null,null,4213]
[2194,null,null,null,null,null,null,null,null,null,null,null,null,null,null,null,null,null,null,null,null,null,4214]
[2195,null,null,null,null,null,null,null,null,null,null,null,null,null,null,null,null,null,null,null,null,null,4215]
[2196,null,null,null,null,null,null,null,null,null,null,null,null,null,null,null,null,null,null,null,null,null,4216]
[2197,null,null,null,null,null,null,null,null,null,null,null,null,null,null,null,null,null,null,null,null,null,4217]
[2198,null,null,null,null,null,null,null,null,null,null,null,null,null,null,null,null,null,null,null,null,null,4218]
[2199,null,null,null,null,null,null,null,null,null,null,null,null,null,null,null,null,null,null,null,null,null,4219]
[2200,null,null,null,null,null,null,null,null,null,null,null,null,null,null,null,null,null,null,null,null,null,4220]
[2201,null,null,null,null,null,null,null,null,null,null,null,null,null,null,null,null,null,null,null,null,null,4221]
[2202,null,null,null,null,null,null,null,null,null,null,null,null,null,null,null,null,null,null,null,null,null,4222]
[2203,null,null,null,null,null,null,null,null,null,null,null,null,null,null,null,null,null,null,null,null,null,4223]
[2204,null,null,null,null,null,null,null,null,null,null,null,null,null,null,null,null,null,null,null,null,null,4224]
[2205,null,null,null,null,null,null,null,null,null,null,null,null,null,null,null,null,null,null,null,null,null,4225]
[2206,null,null,null,null,null,null,null,null,null,null,null,null,null,null,null,null,null,null,null,null,null,4226]
[2207,null,null,null,null,null,null,null,null,null,null,null,null,null,null,null,null,null,null,null,null,null,4227]
[2208,null,null,null,null,null,null,null,null,null,null,null,null,null,null,null,null,null,null,null,null,null,4228]
[2209,null,null,null,null,null,null,null,null,null,null,null,null,null,null,null,null,null,null,null,null,null,4229]
[2210,null,null,null,null,null,null,null,null,null,null,null,null,null,null,null,null,null,null,null,null,null,4230]
[2211,null,null,null,null,null,null,null,null,null,null,null,null,null,null,null,null,null,null,null,null,null,4231]
[2212,null,null,null,null,null,null,null,null,null,null,null,null,null,null,null,null,null,null,null,null,null,4232]
[2213,null,null,null,null,null,null,null,null,null,null,null,null,null,null,null,null,null,null,null,null,null,4233]
[2214,null,null,null,null,null,null,null,null,null,null,null,null,null,null,null,null,null,null,null,null,null,4234]
[2215,null,null,null,null,null,null,null,null,null,null,null,null,null,null,null,null,null,null,null,null,null,4235]
[2216,null,null,null,null,null,null,null,null,null,null,null,null,null,null,null,null,null,null,null,null,null,4236]
[2217,null,null,null,null,null,null,null,null,null,null,null,null,null,null,null,null,null,null,null,null,null,4237]
[2218,null,null,null,null,null,null,null,null,null,null,null,null,null,null,null,null,null,null,null,null,null,4238]
[2219,null,null,null,null,null,null,null,null,null,null,null,null,null,null,null,null,null,null,null,null,null,4239]
[2220,null,null,null,null,null,null,null,null,null,null,null,null,null,null,null,null,null,null,null,null,null,4240]
[2221,null,null,null,null,null,null,null,null,null,null,null,null,null,null,null,null,null,null,null,null,null,4241]
[2222,null,null,null,null,null,null,null,null,null,null,null,null,null,null,null,null,null,null,null,null,null,4242]
[2223,null,null,null,null,null,null,null,null,null,null,null,null,null,null,null,null,null,null,null,null,null,4243]
[2224,null,null,null,null,null,null,null,null,null,null,null,null,null,null,null,null,null,null,null,null,null,4244]
[2225,null,null,null,null,null,null,null,null,null,null,null,null,null,null,null,null,null,null,null,null,null,4245]
[2226,null,null,null,null,null,null,null,null,null,null,null,null,null,null,null,null,null,null,null,null,null,4246]
[2227,null,null,null,null,null,null,null,null,null,null,null,null,null,null,null,null,null,null,null,null,null,4247]
[2228,null,null,null,null,null,null,null,null,null,null,null,null,null,null,null,null,null,null,null,null,null,4248]
[2229,null,null,null,null,null,null,null,null,null,null,null,null,null,null,null,null,null,null,null,null,null,4249]
[2230,null,null,null,null,null,null,null,null,null,null,null,null,null,null,null,null,null,null,null,null,null,4250]
[2231,null,null,null,null,null,null,null,null,null,null,null,null,null,null,null,null,null,null,null,null,null,4251]
[2232,null,null,null,null,null,null,null,null,null,null,null,null,null,null,null,null,null,null,null,null,null,4252]
[2233,null,null,null,null,null,null,null,null,null,null,null,null,null,null,null,null,null,null,null,null,null,4253]
[2234,null,null,null,null,null,null,null,null,null,null,null,null,null,null,null,null,null,null,null,null,null,4254]
[2235,null,null,null,null,null,null,null,null,null,null,null,null,null,null,null,null,null,null,null,null,null,4255]
[2236,null,null,null,null,null,null,null,null,null,null,null,null,null,null,null,null,null,null,null,null,null,4256]
[2237,null,null,null,null,null,null,null,null,null,null,null,null,null,null,null,null,null,null,null,null,null,4257]
[2238,null,null,null,null,null,null,null,null,null,null,null,null,null,null,null,null,null,null,null,null,null,4258]
[2239,null,null,null,null,null,null,null,null,null,null,null,null,null,null,null,null,null,null,null,null,null,4259]
[2240,null,null,null,null,null,null,null,null,null,null,null,null,null,null,null,null,null,null,null,null,null,4260]
[2241,null,null,null,null,null,null,null,null,null,null,null,null,null,null,null,null,null,null,null,null,null,4261]
[2242,null,null,null,null,null,null,null,null,null,null,null,null,null,null,null,null,null,null,null,null,null,4262]
[2243,null,null,null,null,null,null,null,null,null,null,null,null,null,null,null,null,null,null,null,null,null,4263]
[2244,null,null,null,null,null,null,null,null,null,null,null,null,null,null,null,null,null,null,null,null,null,4264]
[2245,null,null,null,null,null,null,null,null,null,null,null,null,null,null,null,null,null,null,null,null,null,4265]
[2246,null,null,null,null,null,null,null,null,null,null,null,null,null,null,null,null,null,null,null,null,null,4266]
[2247,null,null,null,null,null,null,null,null,null,null,null,null,null,null,null,null,null,null,null,null,null,4267]
[2248,null,null,null,null,null,null,null,null,null,null,null,null,null,null,null,null,null,null,null,null,null,4268]
[2249,null,null,null,null,null,null,null,null,null,null,null,null,null,null,null,null,null,null,null,null,null,4269]
[2250,null,null,null,null,null,null,null,null,null,null,null,null,null,null,null,null,null,null,null,null,null,4270]
[2251,null,null,null,null,null,null,null,null,null,null,null,null,null,null,null,null,null,null,null,null,null,4271]
[2252,null,null,null,null,null,null,null,null,null,null,null,null,null,null,null,null,null,null,null,null,null,4272]
[2253,null,null,null,null,null,null,null,null,null,null,null,null,null,null,null,null,null,null,null,null,null,4273]
[2254,null,null,null,null,null,null,null,null,null,null,null,null,null,null,null,null,null,null,null,null,null,4274]
[2255,null,null,null,null,null,null,null,null,null,null,null,null,null,null,null,null,null,null,null,null,null,4275]
[2256,null,null,null,null,null,null,null,null,null,null,null,null,null,null,null,null,null,null,null,null,null,4276]
[2257,null,null,null,null,null,null,null,null,null,null,null,null,null,null,null,null,null,null,null,null,null,4277]
[2258,null,null,null,null,null,null,null,null,null,null,null,null,null,null,null,null,null,null,null,null,null,4278]
[2259,null,null,null,null,null,null,null,null,null,null,null,null,null,null,null,null,null,null,null,null,null,4279]
[2260,null,null,null,null,null,null,null,null,null,null,null,null,null,null,null,null,null,null,null,null,null,4280]
[2261,null,null,null,null,null,null,null,null,null,null,null,null,null,null,null,null,null,null,null,null,null,4281]
[2262,null,null,null,null,null,null,null,null,null,null,null,null,null,null,null,null,null,null,null,null,null,4282]
[2263,null,null,null,null,null,null,null,null,null,null,null,null,null,null,null,null,null,null,null,null,null,4283]
[2264,null,null,null,null,null,null,null,null,null,null,null,null,null,null,null,null,null,null,null,null,null,4284]
[2265,null,null,null,null,null,null,null,null,null,null,null,null,null,null,null,null,null,null,null,null,null,4285]
[2266,null,null,null,null,null,null,null,null,null,null,null,null,null,null,null,null,null,null,null,null,null,4286]
[2267,null,null,null,null,null,null,null,null,null,null,null,null,null,null,null,null,null,null,null,null,null,4287]
[2268,null,null,null,null,null,null,null,null,null,null,null,null,null,null,null,null,null,null,null,null,null,4288]
[2269,null,null,null,null,null,null,null,null,null,null,null,null,null,null,null,null,null,null,null,null,null,4289]
[2270,null,null,null,null,null,null,null,null,null,null,null,null,null,null,null,null,null,null,null,null,null,4290]
[2271,null,null,null,null,null,null,null,null,null,null,null,null,null,null,null,null,null,null,null,null,null,4291]
[2272,null,null,null,null,null,null,null,null,null,null,null,null,null,null,null,null,null,null,null,null,null,4292]
[2273,null,null,null,null,null,null,null,null,null,null,null,null,null,null,null,null,null,null,null,null,null,4293]
[2274,null,null,null,null,null,null,null,null,null,null,null,null,null,null,null,null,null,null,null,null,null,4294]
[2275,null,null,null,null,null,null,null,null,null,null,null,null,null,null,null,null,null,null,null,null,null,4295]
[2276,null,null,null,null,null,null,null,null,null,null,null,null,null,null,null,null,null,null,null,null,null,4296]
[2277,null,null,null,null,null,null,null,null,null,null,null,null,null,null,null,null,null,null,null,null,null,4297]
[2278,null,null,null,null,null,null,null,null,null,null,null,null,null,null,null,null,null,null,null,null,null,4298]
[2279,null,null,null,null,null,null,null,null,null,null,null,null,null,null,null,null,null,null,null,null,null,4299]
[2280,null,null,null,null,null,null,null,null,null,null,null,null,null,null,null,null,null,null,null,null,null,4300]
[2281,null,null,null,null,null,null,null,null,null,null,null,null,null,null,null,null,null,null,null,null,null,4301]
[2282,null,null,null,null,null,null,null,null,null,null,null,null,null,null,null,null,null,null,null,null,null,4302]
[2283,null,null,null,null,null,null,null,null,null,null,null,null,null,null,null,null,null,null,null,null,null,4303]
[2284,null,null,null,null,null,null,null,null,null,null,null,null,null,null,null,null,null,null,null,null,null,4304]
[2285,null,null,null,null,null,null,null,null,null,null,null,null,null,null,null,null,null,null,null,null,null,4305]
[2286,null,null,null,null,null,null,null,null,null,null,null,null,null,null,null,null,null,null,null,null,null,4306]
[2287,null,null,null,null,null,null,null,null,null,null,null,null,null,null,null,null,null,null,null,null,null,4307]
[2288,null,null,null,null,null,null,null,null,null,null,null,null,null,null,null,null,null,null,null,null,null,4308]
[2289,null,null,null,null,null,null,null,null,null,null,null,null,null,null,null,null,null,null,null,null,null,4309]
[2290,null,null,null,null,null,null,null,null,null,null,null,null,null,null,null,null,null,null,null,null,null,4310]
[2291,null,null,null,null,null,null,null,null,null,null,null,null,null,null,null,null,null,null,null,null,null,4311]
[2292,null,null,null,null,null,null,null,null,null,null,null,null,null,null,null,null,null,null,null,null,null,4312]
[2293,null,null,null,null,null,null,null,null,null,null,null,null,null,null,null,null,null,null,null,null,null,4313]
[2294,null,null,null,null,null,null,null,null,null,null,null,null,null,null,null,null,null,null,null,null,null,4314]
[2295,null,null,null,null,null,null,null,null,null,null,null,null,null,null,null,null,null,null,null,null,null,4315]
[2296,null,null,null,null,null,null,null,null,null,null,null,null,null,null,null,null,null,null,null,null,null,4316]
[2297,null,null,null,null,null,null,null,null,null,null,null,null,null,null,null,null,null,null,null,null,null,4317]
[2298,null,null,null,null,null,null,null,null,null,null,null,null,null,null,null,null,null,null,null,null,null,4318]
[2299,null,null,null,null,null,null,null,null,null,null,null,null,null,null,null,null,null,null,null,null,null,4319]
[2300,null,null,null,null,null,null,null,null,null,null,null,null,null,null,null,null,null,null,null,null,null,4320]
[2301,null,null,null,null,null,null,null,null,null,null,null,null,null,null,null,null,null,null,null,null,null,4321]
[2302,null,null,null,null,null,null,null,null,null,null,null,null,null,null,null,null,null,null,null,null,null,4322]
[2303,null,null,null,null,null,null,null,null,null,null,null,null,null,null,null,null,null,null,null,null,null,4323]
[2304,null,null,null,null,null,null,null,null,null,null,null,null,null,null,null,null,null,null,null,null,null,4324]
[2305,null,null,null,null,null,null,null,null,null,null,null,null,null,null,null,null,null,null,null,null,null,4325]
[2306,null,null,null,null,null,null,null,null,null,null,null,null,null,null,null,null,null,null,null,null,null,4326]
[2307,null,null,null,null,null,null,null,null,null,null,null,null,null,null,null,null,null,null,null,null,null,4327]
[2308,null,null,null,null,null,null,null,null,null,null,null,null,null,null,null,null,null,null,null,null,null,4328]
[2309,null,null,null,null,null,null,null,null,null,null,null,null,null,null,null,null,null,null,null,null,null,4329]
[2310,null,null,null,null,null,null,null,null,null,null,null,null,null,null,null,null,null,null,null,null,null,4330]
[2311,null,null,null,null,null,null,null,null,null,null,null,null,null,null,null,null,null,null,null,null,null,4331]
[2312,null,null,null,null,null,null,null,null,null,null,null,null,null,null,null,null,null,null,null,null,null,4332]
[2313,null,null,null,null,null,null,null,null,null,null,null,null,null,null,null,null,null,null,null,null,null,4333]
[2314,null,null,null,null,null,null,null,null,null,null,null,null,null,null,null,null,null,null,null,null,null,4334]
[2315,null,null,null,null,null,null,null,null,null,null,null,null,null,null,null,null,null,null,null,null,null,4335]
[2316,null,null,null,null,null,null,null,null,null,null,null,null,null,null,null,null,null,null,null,null,null,4336]
[2317,null,null,null,null,null,null,null,null,null,null,null,null,null,null,null,null,null,null,null,null,null,4337]
[2318,null,null,null,null,null,null,null,null,null,null,null,null,null,null,null,null,null,null,null,null,null,4338]
[2319,null,null,null,null,null,null,null,null,null,null,null,null,null,null,null,null,null,null,null,null,null,4339]
[2320,null,null,null,null,null,null,null,null,null,null,null,null,null,null,null,null,null,null,null,null,null,4340]
[2321,null,null,null,null,null,null,null,null,null,null,null,null,null,null,null,null,null,null,null,null,null,4341]
[2322,null,null,null,null,null,null,null,null,null,null,null,null,null,null,null,null,null,null,null,null,null,4342]
[2323,null,null,null,null,null,null,null,null,null,null,null,null,null,null,null,null,null,null,null,null,null,4343]
[2324,null,null,null,null,null,null,null,null,null,null,null,null,null,null,null,null,null,null,null,null,null,4344]
[2325,null,null,null,null,null,null,null,null,null,null,null,null,null,null,null,null,null,null,null,null,null,4345]
[2326,null,null,null,null,null,null,null,null,null,null,null,null,null,null,null,null,null,null,null,null,null,4346]
[2327,null,null,null,null,null,null,null,null,null,null,null,null,null,null,null,null,null,null,null,null,null,4347]
[2328,null,null,null,null,null,null,null,null,null,null,null,null,null,null,null,null,null,null,null,null,null,4348]
[2329,null,null,null,null,null,null,null,null,null,null,null,null,null,null,null,null,null,null,null,null,null,4349]
[2330,null,null,null,null,null,null,null,null,null,null,null,null,null,null,null,null,null,null,null,null,null,4350]
[2331,null,null,null,null,null,null,null,null,null,null,null,null,null,null,null,null,null,null,null,null,null,4351]
[2332,null,null,null,null,null,null,null,null,null,null,null,null,null,null,null,null,null,null,null,null,null,4352]
[2333,null,null,null,null,null,null,null,null,null,null,null,null,null,null,null,null,null,null,null,null,null,4353]
[2334,null,null,null,null,null,null,null,null,null,null,null,null,null,null,null,null,null,null,null,null,null,4354]
[2335,null,null,null,null,null,null,null,null,null,null,null,null,null,null,null,null,null,null,null,null,null,4355]
[2336,null,null,null,null,null,null,null,null,null,null,null,null,null,null,null,null,null,null,null,null,null,4356]
[2337,null,null,null,null,null,null,null,null,null,null,null,null,null,null,null,null,null,null,null,null,null,4357]
[2338,null,null,null,null,null,null,null,null,null,null,null,null,null,null,null,null,null,null,null,null,null,4358]
[2339,null,null,null,null,null,null,null,null,null,null,null,null,null,null,null,null,null,null,null,null,null,4359]
[2340,null,null,null,null,null,null,null,null,null,null,null,null,null,null,null,null,null,null,null,null,null,4360]
[2341,null,null,null,null,null,null,null,null,null,null,null,null,null,null,null,null,null,null,null,null,null,4361]
[2342,null,null,null,null,null,null,null,null,null,null,null,null,null,null,null,null,null,null,null,null,null,4362]
[2343,null,null,null,null,null,null,null,null,null,null,null,null,null,null,null,null,null,null,null,null,null,4363]
[2344,null,null,null,null,null,null,null,null,null,null,null,null,null,null,null,null,null,null,null,null,null,4364]
[2345,null,null,null,null,null,null,null,null,null,null,null,null,null,null,null,null,null,null,null,null,null,4365]
[2346,null,null,null,null,null,null,null,null,null,null,null,null,null,null,null,null,null,null,null,null,null,4366]
[2347,null,null,null,null,null,null,null,null,null,null,null,null,null,null,null,null,null,null,null,null,null,4367]
[2348,null,null,null,null,null,null,null,null,null,null,null,null,null,null,null,null,null,null,null,null,null,4368]
[2349,null,null,null,null,null,null,null,null,null,null,null,null,null,null,null,null,null,null,null,null,null,4369]
[2350,null,null,null,null,null,null,null,null,null,null,null,null,null,null,null,null,null,null,null,null,null,4370]
[2351,null,null,null,null,null,null,null,null,null,null,null,null,null,null,null,null,null,null,null,null,null,4371]
[2352,null,null,null,null,null,null,null,null,null,null,null,null,null,null,null,null,null,null,null,null,null,4372]
[2353,null,null,null,null,null,null,null,null,null,null,null,null,null,null,null,null,null,null,null,null,null,4373]
[2354,null,null,null,null,null,null,null,null,null,null,null,null,null,null,null,null,null,null,null,null,null,4374]
[2355,null,null,null,null,null,null,null,null,null,null,null,null,null,null,null,null,null,null,null,null,null,4375]
[2356,null,null,null,null,null,null,null,null,null,null,null,null,null,null,null,null,null,null,null,null,null,4376]
[2357,null,null,null,null,null,null,null,null,null,null,null,null,null,null,null,null,null,null,null,null,null,4377]
[2358,null,null,null,null,null,null,null,null,null,null,null,null,null,null,null,null,null,null,null,null,null,4378]
[2359,null,null,null,null,null,null,null,null,null,null,null,null,null,null,null,null,null,null,null,null,null,4379]
[2360,null,null,null,null,null,null,null,null,null,null,null,null,null,null,null,null,null,null,null,null,null,4380]
[2361,null,null,null,null,null,null,null,null,null,null,null,null,null,null,null,null,null,null,null,null,null,4381]
[2362,null,null,null,null,null,null,null,null,null,null,null,null,null,null,null,null,null,null,null,null,null,4382]
[2363,null,null,null,null,null,null,null,null,null,null,null,null,null,null,null,null,null,null,null,null,null,4383]
[2364,null,null,null,null,null,null,null,null,null,null,null,null,null,null,null,null,null,null,null,null,null,4384]
[2365,null,null,null,null,null,null,null,null,null,null,null,null,null,null,null,null,null,null,null,null,null,4385]
[2366,null,null,null,null,null,null,null,null,null,null,null,null,null,null,null,null,null,null,null,null,null,4386]
[2367,null,null,null,null,null,null,null,null,null,null,null,null,null,null,null,null,null,null,null,null,null,4387]
[2368,null,null,null,null,null,null,null,null,null,null,null,null,null,null,null,null,null,null,null,null,null,4388]
[2369,null,null,null,null,null,null,null,null,null,null,null,null,null,null,null,null,null,null,null,null,null,4389]
[2370,null,null,null,null,null,null,null,null,null,null,null,null,null,null,null,null,null,null,null,null,null,4390]
[2371,null,null,null,null,null,null,null,null,null,null,null,null,null,null,null,null,null,null,null,null,null,4391]
[2372,null,null,null,null,null,null,null,null,null,null,null,null,null,null,null,null,null,null,null,null,null,4392]
[2373,null,null,null,null,null,null,null,null,null,null,null,null,null,null,null,null,null,null,null,null,null,4393]
[2374,null,null,null,null,null,null,null,null,null,null,null,null,null,null,null,null,null,null,null,null,null,4394]
[2375,null,null,null,null,null,null,null,null,null,null,null,null,null,null,null,null,null,null,null,null,null,4395]
[2376,null,null,null,null,null,null,null,null,null,null,null,null,null,null,null,null,null,null,null,null,null,4396]
[2377,null,null,null,null,null,null,null,null,null,null,null,null,null,null,null,null,null,null,null,null,null,4397]
[2378,null,null,null,null,null,null,null,null,null,null,null,null,null,null,null,null,null,null,null,null,null,4398]
[2379,null,null,null,null,null,null,null,null,null,null,null,null,null,null,null,null,null,null,null,null,null,4399]
[2380,null,null,null,null,null,null,null,null,null,null,null,null,null,null,null,null,null,null,null,null,null,4400]
[2381,null,null,null,null,null,null,null,null,null,null,null,null,null,null,null,null,null,null,null,null,null,4401]
[2382,null,null,null,null,null,null,null,null,null,null,null,null,null,null,null,null,null,null,null,null,null,4402]
[2383,null,null,null,null,null,null,null,null,null,null,null,null,null,null,null,null,null,null,null,null,null,4403]
[2384,null,null,null,null,null,null,null,null,null,null,null,null,null,null,null,null,null,null,null,null,null,4404]
[2385,null,null,null,null,null,null,null,null,null,null,null,null,null,null,null,null,null,null,null,null,null,4405]
[2386,null,null,null,null,null,null,null,null,null,null,null,null,null,null,null,null,null,null,null,null,null,4406]
[2387,null,null,null,null,null,null,null,null,null,null,null,null,null,null,null,null,null,null,null,null,null,4407]
[2388,null,null,null,null,null,null,null,null,null,null,null,null,null,null,null,null,null,null,null,null,null,4408]
[2389,null,null,null,null,null,null,null,null,null,null,null,null,null,null,null,null,null,null,null,null,null,4409]
[2390,null,null,null,null,null,null,null,null,null,null,null,null,null,null,null,null,null,null,null,null,null,4410]
[2391,null,null,null,null,null,null,null,null,null,null,null,null,null,null,null,null,null,null,null,null,null,4411]
[2392,null,null,null,null,null,null,null,null,null,null,null,null,null,null,null,null,null,null,null,null,null,4412]
[2393,null,null,null,null,null,null,null,null,null,null,null,null,null,null,null,null,null,null,null,null,null,4413]
[2394,null,null,null,null,null,null,null,null,null,null,null,null,null,null,null,null,null,null,null,null,null,4414]
[2395,null,null,null,null,null,null,null,null,null,null,null,null,null,null,null,null,null,null,null,null,null,4415]
[2396,null,null,null,null,null,null,null,null,null,null,null,null,null,null,null,null,null,null,null,null,null,4416]
[2397,null,null,null,null,null,null,null,null,null,null,null,null,null,null,null,null,null,null,null,null,null,4417]
[2398,null,null,null,null,null,null,null,null,null,null,null,null,null,null,null,null,null,null,null,null,null,4418]
[2399,null,null,null,null,null,null,null,null,null,null,null,null,null,null,null,null,null,null,null,null,null,4419]
[2400,null,null,null,null,null,null,null,null,null,null,null,null,null,null,null,null,null,null,null,null,null,4420]
[2401,null,null,null,null,null,null,null,null,null,null,null,null,null,null,null,null,null,null,null,null,null,4421]
[2402,null,null,null,null,null,null,null,null,null,null,null,null,null,null,null,null,null,null,null,null,null,4422]
[2403,null,null,null,null,null,null,null,null,null,null,null,null,null,null,null,null,null,null,null,null,null,4423]
[2404,null,null,null,null,null,null,null,null,null,null,null,null,null,null,null,null,null,null,null,null,null,4424]
[2405,null,null,null,null,null,null,null,null,null,null,null,null,null,null,null,null,null,null,null,null,null,4425]
[2406,null,null,null,null,null,null,null,null,null,null,null,null,null,null,null,null,null,null,null,null,null,4426]
[2407,null,null,null,null,null,null,null,null,null,null,null,null,null,null,null,null,null,null,null,null,null,4427]
[2408,null,null,null,null,null,null,null,null,null,null,null,null,null,null,null,null,null,null,null,null,null,4428]
[2409,null,null,null,null,null,null,null,null,null,null,null,null,null,null,null,null,null,null,null,null,null,4429]
[2410,null,null,null,null,null,null,null,null,null,null,null,null,null,null,null,null,null,null,null,null,null,4430]
[2411,null,null,null,null,null,null,null,null,null,null,null,null,null,null,null,null,null,null,null,null,null,4431]
[2412,null,null,null,null,null,null,null,null,null,null,null,null,null,null,null,null,null,null,null,null,null,4432]
[2413,null,null,null,null,null,null,null,null,null,null,null,null,null,null,null,null,null,null,null,null,null,4433]
[2414,null,null,null,null,null,null,null,null,null,null,null,null,null,null,null,null,null,null,null,null,null,4434]
[2415,null,null,null,null,null,null,null,null,null,null,null,null,null,null,null,null,null,null,null,null,null,4435]
[2416,null,null,null,null,null,null,null,null,null,null,null,null,null,null,null,null,null,null,null,null,null,4436]
[2417,null,null,null,null,null,null,null,null,null,null,null,null,null,null,null,null,null,null,null,null,null,4437]
[2418,null,null,null,null,null,null,null,null,null,null,null,null,null,null,null,null,null,null,null,null,null,4438]
[2419,null,null,null,null,null,null,null,null,null,null,null,null,null,null,null,null,null,null,null,null,null,4439]
[2420,null,null,null,null,null,null,null,null,null,null,null,null,null,null,null,null,null,null,null,null,null,4440]
[2421,null,null,null,null,null,null,null,null,null,null,null,null,null,null,null,null,null,null,null,null,null,4441]
[2422,null,null,null,null,null,null,null,null,null,null,null,null,null,null,null,null,null,null,null,null,null,4442]
[2423,null,null,null,null,null,null,null,null,null,null,null,null,null,null,null,null,null,null,null,null,null,4443]
[2424,null,null,null,null,null,null,null,null,null,null,null,null,null,null,null,null,null,null,null,null,null,4444]
[2425,null,null,null,null,null,null,null,null,null,null,null,null,null,null,null,null,null,null,null,null,null,4445]
[2426,null,null,null,null,null,null,null,null,null,null,null,null,null,null,null,null,null,null,null,null,null,4446]
[2427,null,null,null,null,null,null,null,null,null,null,null,null,null,null,null,null,null,null,null,null,null,4447]
[2428,null,null,null,null,null,null,null,null,null,null,null,null,null,null,null,null,null,null,null,null,null,4448]
[2429,null,null,null,null,null,null,null,null,null,null,null,null,null,null,null,null,null,null,null,null,null,4449]
[2430,null,null,null,null,null,null,null,null,null,null,null,null,null,null,null,null,null,null,null,null,null,4450]
[2431,null,null,null,null,null,null,null,null,null,null,null,null,null,null,null,null,null,null,null,null,null,4451]
[2432,null,null,null,null,null,null,null,null,null,null,null,null,null,null,null,null,null,null,null,null,null,4452]
[2433,null,null,null,null,null,null,null,null,null,null,null,null,null,null,null,null,null,null,null,null,null,4453]
[2434,null,null,null,null,null,null,null,null,null,null,null,null,null,null,null,null,null,null,null,null,null,4454]
[2435,null,null,null,null,null,null,null,null,null,null,null,null,null,null,null,null,null,null,null,null,null,4455]
[2436,null,null,null,null,null,null,null,null,null,null,null,null,null,null,null,null,null,null,null,null,null,4456]
[2437,null,null,null,null,null,null,null,null,null,null,null,null,null,null,null,null,null,null,null,null,null,4457]
[2438,null,null,null,null,null,null,null,null,null,null,null,null,null,null,null,null,null,null,null,null,null,4458]
[2439,null,null,null,null,null,null,null,null,null,null,null,null,null,null,null,null,null,null,null,null,null,4459]
[2440,null,null,null,null,null,null,null,null,null,null,null,null,null,null,null,null,null,null,null,null,null,4460]
[2441,null,null,null,null,null,null,null,null,null,null,null,null,null,null,null,null,null,null,null,null,null,4461]
[2442,null,null,null,null,null,null,null,null,null,null,null,null,null,null,null,null,null,null,null,null,null,4462]
[2443,null,null,null,null,null,null,null,null,null,null,null,null,null,null,null,null,null,null,null,null,null,4463]
[2444,null,null,null,null,null,null,null,null,null,null,null,null,null,null,null,null,null,null,null,null,null,4464]
[2445,null,null,null,null,null,null,null,null,null,null,null,null,null,null,null,null,null,null,null,null,null,4465]
[2446,null,null,null,null,null,null,null,null,null,null,null,null,null,null,null,null,null,null,null,null,null,4466]
[2447,null,null,null,null,null,null,null,null,null,null,null,null,null,null,null,null,null,null,null,null,null,4467]
[2448,null,null,null,null,null,null,null,null,null,null,null,null,null,null,null,null,null,null,null,null,null,4468]
[2449,null,null,null,null,null,null,null,null,null,null,null,null,null,null,null,null,null,null,null,null,null,4469]
[2450,null,null,null,null,null,null,null,null,null,null,null,null,null,null,null,null,null,null,null,null,null,4470]
[2451,null,null,null,null,null,null,null,null,null,null,null,null,null,null,null,null,null,null,null,null,null,4471]
[2452,null,null,null,null,null,null,null,null,null,null,null,null,null,null,null,null,null,null,null,null,null,4472]
[2453,null,null,null,null,null,null,null,null,null,null,null,null,null,null,null,null,null,null,null,null,null,4473]
[2454,null,null,null,null,null,null,null,null,null,null,null,null,null,null,null,null,null,null,null,null,null,4474]
[2455,null,null,null,null,null,null,null,null,null,null,null,null,null,null,null,null,null,null,null,null,null,4475]
[2456,null,null,null,null,null,null,null,null,null,null,null,null,null,null,null,null,null,null,null,null,null,4476]
[2457,null,null,null,null,null,null,null,null,null,null,null,null,null,null,null,null,null,null,null,null,null,4477]
[2458,null,null,null,null,null,null,null,null,null,null,null,null,null,null,null,null,null,null,null,null,null,4478]
[2459,null,null,null,null,null,null,null,null,null,null,null,null,null,null,null,null,null,null,null,null,null,4479]
[2460,null,null,null,null,null,null,null,null,null,null,null,null,null,null,null,null,null,null,null,null,null,4480]
[2461,null,null,null,null,null,null,null,null,null,null,null,null,null,null,null,null,null,null,null,null,null,4481]
[2462,null,null,null,null,null,null,null,null,null,null,null,null,null,null,null,null,null,null,null,null,null,4482]
[2463,null,null,null,null,null,null,null,null,null,null,null,null,null,null,null,null,null,null,null,null,null,4483]
[2464,null,null,null,null,null,null,null,null,null,null,null,null,null,null,null,null,null,null,null,null,null,4484]
[2465,null,null,null,null,null,null,null,null,null,null,null,null,null,null,null,null,null,null,null,null,null,4485]
[2466,null,null,null,null,null,null,null,null,null,null,null,null,null,null,null,null,null,null,null,null,null,4486]
[2467,null,null,null,null,null,null,null,null,null,null,null,null,null,null,null,null,null,null,null,null,null,4487]
[2468,null,null,null,null,null,null,null,null,null,null,null,null,null,null,null,null,null,null,null,null,null,4488]
[2469,null,null,null,null,null,null,null,null,null,null,null,null,null,null,null,null,null,null,null,null,null,4489]
[2470,null,null,null,null,null,null,null,null,null,null,null,null,null,null,null,null,null,null,null,null,null,4490]
[2471,null,null,null,null,null,null,null,null,null,null,null,null,null,null,null,null,null,null,null,null,null,4491]
[2472,null,null,null,null,null,null,null,null,null,null,null,null,null,null,null,null,null,null,null,null,null,4492]
[2473,null,null,null,null,null,null,null,null,null,null,null,null,null,null,null,null,null,null,null,null,null,4493]
[2474,null,null,null,null,null,null,null,null,null,null,null,null,null,null,null,null,null,null,null,null,null,4494]
[2475,null,null,null,null,null,null,null,null,null,null,null,null,null,null,null,null,null,null,null,null,null,4495]
[2476,null,null,null,null,null,null,null,null,null,null,null,null,null,null,null,null,null,null,null,null,null,4496]
[2477,null,null,null,null,null,null,null,null,null,null,null,null,null,null,null,null,null,null,null,null,null,4497]
[2478,null,null,null,null,null,null,null,null,null,null,null,null,null,null,null,null,null,null,null,null,null,4498]
[2479,null,null,null,null,null,null,null,null,null,null,null,null,null,null,null,null,null,null,null,null,null,4499]
[2480,null,null,null,null,null,null,null,null,null,null,null,null,null,null,null,null,null,null,null,null,null,4500]
[2481,null,null,null,null,null,null,null,null,null,null,null,null,null,null,null,null,null,null,null,null,null,4501]
[2482,null,null,null,null,null,null,null,null,null,null,null,null,null,null,null,null,null,null,null,null,null,4502]
[2483,null,null,null,null,null,null,null,null,null,null,null,null,null,null,null,null,null,null,null,null,null,4503]
[2484,null,null,null,null,null,null,null,null,null,null,null,null,null,null,null,null,null,null,null,null,null,4504]
[2485,null,null,null,null,null,null,null,null,null,null,null,null,null,null,null,null,null,null,null,null,null,4505]
[2486,null,null,null,null,null,null,null,null,null,null,null,null,null,null,null,null,null,null,null,null,null,4506]
[2487,null,null,null,null,null,null,null,null,null,null,null,null,null,null,null,null,null,null,null,null,null,4507]
[2488,null,null,null,null,null,null,null,null,null,null,null,null,null,null,null,null,null,null,null,null,null,4508]
[2489,null,null,null,null,null,null,null,null,null,null,null,null,null,null,null,null,null,null,null,null,null,4509]
[2490,null,null,null,null,null,null,null,null,null,null,null,null,null,null,null,null,null,null,null,null,null,4510]
[2491,null,null,null,null,null,null,null,null,null,null,null,null,null,null,null,null,null,null,null,null,null,4511]
[2492,null,null,null,null,null,null,null,null,null,null,null,null,null,null,null,null,null,null,null,null,null,4512]
[2493,null,null,null,null,null,null,null,null,null,null,null,null,null,null,null,null,null,null,null,null,null,4513]
[2494,null,null,null,null,null,null,null,null,null,null,null,null,null,null,null,null,null,null,null,null,null,4514]
[2495,null,null,null,null,null,null,null,null,null,null,null,null,null,null,null,null,null,null,null,null,null,4515]
[2496,null,null,null,null,null,null,null,null,null,null,null,null,null,null,null,null,null,null,null,null,null,4516]
[2497,null,null,null,null,null,null,null,null,null,null,null,null,null,null,null,null,null,null,null,null,null,4517]
[2498,null,null,null,null,null,null,null,null,null,null,null,null,null,null,null,null,null,null,null,null,null,4518]
[2499,null,null,null,null,null,null,null,null,null,null,null,null,null,null,null,null,null,null,null,null,null,4519]
[2500,null,null,null,null,null,null,null,null,null,null,null,null,null,null,null,null,null,null,null,null,null,4520]
[2501,null,null,null,null,null,null,null,null,null,null,null,null,null,null,null,null,null,null,null,null,null,4521]
[2502,null,null,null,null,null,null,null,null,null,null,null,null,null,null,null,null,null,null,null,null,null,4522]
[2503,null,null,null,null,null,null,null,null,null,null,null,null,null,null,null,null,null,null,null,null,null,4523]
[2504,null,null,null,null,null,null,null,null,null,null,null,null,null,null,null,null,null,null,null,null,null,4524]
[2505,null,null,null,null,null,null,null,null,null,null,null,null,null,null,null,null,null,null,null,null,null,4525]
[2506,null,null,null,null,null,null,null,null,null,null,null,null,null,null,null,null,null,null,null,null,null,4526]
[2507,null,null,null,null,null,null,null,null,null,null,null,null,null,null,null,null,null,null,null,null,null,4527]
[2508,null,null,null,null,null,null,null,null,null,null,null,null,null,null,null,null,null,null,null,null,null,4528]
[2509,null,null,null,null,null,null,null,null,null,null,null,null,null,null,null,null,null,null,null,null,null,4529]
[2510,null,null,null,null,null,null,null,null,null,null,null,null,null,null,null,null,null,null,null,null,null,4530]
[2511,null,null,null,null,null,null,null,null,null,null,null,null,null,null,null,null,null,null,null,null,null,4531]
[2512,null,null,null,null,null,null,null,null,null,null,null,null,null,null,null,null,null,null,null,null,null,4532]
[2513,null,null,null,null,null,null,null,null,null,null,null,null,null,null,null,null,null,null,null,null,null,4533]
[2514,null,null,null,null,null,null,null,null,null,null,null,null,null,null,null,null,null,null,null,null,null,4534]
[2515,null,null,null,null,null,null,null,null,null,null,null,null,null,null,null,null,null,null,null,null,null,4535]
[2516,null,null,null,null,null,null,null,null,null,null,null,null,null,null,null,null,null,null,null,null,null,4536]
[2517,null,null,null,null,null,null,null,null,null,null,null,null,null,null,null,null,null,null,null,null,null,4537]
[2518,null,null,null,null,null,null,null,null,null,null,null,null,null,null,null,null,null,null,null,null,null,4538]
[2519,null,null,null,null,null,null,null,null,null,null,null,null,null,null,null,null,null,null,null,null,null,4539]
[2520,null,null,null,null,null,null,null,null,null,null,null,null,null,null,null,null,null,null,null,null,null,4540]
[2521,null,null,null,null,null,null,null,null,null,null,null,null,null,null,null,null,null,null,null,null,null,4541]
[2522,null,null,null,null,null,null,null,null,null,null,null,null,null,null,null,null,null,null,null,null,null,4542]
[2523,null,null,null,null,null,null,null,null,null,null,null,null,null,null,null,null,null,null,null,null,null,4543]
[2524,null,null,null,null,null,null,null,null,null,null,null,null,null,null,null,null,null,null,null,null,null,4544]
[2525,null,null,null,null,null,null,null,null,null,null,null,null,null,null,null,null,null,null,null,null,null,4545]
[2526,null,null,null,null,null,null,null,null,null,null,null,null,null,null,null,null,null,null,null,null,null,4546]
[2527,null,null,null,null,null,null,null,null,null,null,null,null,null,null,null,null,null,null,null,null,null,4547]
[2528,null,null,null,null,null,null,null,null,null,null,null,null,null,null,null,null,null,null,null,null,null,4548]
[2529,null,null,null,null,null,null,null,null,null,null,null,null,null,null,null,null,null,null,null,null,null,4549]
[2530,null,null,null,null,null,null,null,null,null,null,null,null,null,null,null,null,null,null,null,null,null,4550]
[2531,null,null,null,null,null,null,null,null,null,null,null,null,null,null,null,null,null,null,null,null,null,4551]
[2532,null,null,null,null,null,null,null,null,null,null,null,null,null,null,null,null,null,null,null,null,null,4552]
[2533,null,null,null,null,null,null,null,null,null,null,null,null,null,null,null,null,null,null,null,null,null,4553]
[2534,null,null,null,null,null,null,null,null,null,null,null,null,null,null,null,null,null,null,null,null,null,4554]
[2535,null,null,null,null,null,null,null,null,null,null,null,null,null,null,null,null,null,null,null,null,null,4555]
[2536,null,null,null,null,null,null,null,null,null,null,null,null,null,null,null,null,null,null,null,null,null,4556]
[2537,null,null,null,null,null,null,null,null,null,null,null,null,null,null,null,null,null,null,null,null,null,4557]
[2538,null,null,null,null,null,null,null,null,null,null,null,null,null,null,null,null,null,null,null,null,null,4558]
[2539,null,null,null,null,null,null,null,null,null,null,null,null,null,null,null,null,null,null,null,null,null,4559]
[2540,null,null,null,null,null,null,null,null,null,null,null,null,null,null,null,null,null,null,null,null,null,4560]
[2541,null,null,null,null,null,null,null,null,null,null,null,null,null,null,null,null,null,null,null,null,null,4561]
[2542,null,null,null,null,null,null,null,null,null,null,null,null,null,null,null,null,null,null,null,null,null,4562]
[2543,null,null,null,null,null,null,null,null,null,null,null,null,null,null,null,null,null,null,null,null,null,4563]
[2544,null,null,null,null,null,null,null,null,null,null,null,null,null,null,null,null,null,null,null,null,null,4564]
[2545,null,null,null,null,null,null,null,null,null,null,null,null,null,null,null,null,null,null,null,null,null,4565]
[2546,null,null,null,null,null,null,null,null,null,null,null,null,null,null,null,null,null,null,null,null,null,4566]
[2547,null,null,null,null,null,null,null,null,null,null,null,null,null,null,null,null,null,null,null,null,null,4567]
[2548,null,null,null,null,null,null,null,null,null,null,null,null,null,null,null,null,null,null,null,null,null,4568]
[2549,null,null,null,null,null,null,null,null,null,null,null,null,null,null,null,null,null,null,null,null,null,4569]
[2550,null,null,null,null,null,null,null,null,null,null,null,null,null,null,null,null,null,null,null,null,null,4570]
[2551,null,null,null,null,null,null,null,null,null,null,null,null,null,null,null,null,null,null,null,null,null,4571]
[2552,null,null,null,null,null,null,null,null,null,null,null,null,null,null,null,null,null,null,null,null,null,4572]
[2553,null,null,null,null,null,null,null,null,null,null,null,null,null,null,null,null,null,null,null,null,null,4573]
[2554,null,null,null,null,null,null,null,null,null,null,null,null,null,null,null,null,null,null,null,null,null,4574]
[2555,null,null,null,null,null,null,null,null,null,null,null,null,null,null,null,null,null,null,null,null,null,4575]
[2556,null,null,null,null,null,null,null,null,null,null,null,null,null,null,null,null,null,null,null,null,null,4576]
[2557,null,null,null,null,null,null,null,null,null,null,null,null,null,null,null,null,null,null,null,null,null,4577]
[2558,null,null,null,null,null,null,null,null,null,null,null,null,null,null,null,null,null,null,null,null,null,4578]
[2559,null,null,null,null,null,null,null,null,null,null,null,null,null,null,null,null,null,null,null,null,null,4579]
[2560,null,null,null,null,null,null,null,null,null,null,null,null,null,null,null,null,null,null,null,null,null,4580]
[2561,null,null,null,null,null,null,null,null,null,null,null,null,null,null,null,null,null,null,null,null,null,4581]
[2562,null,null,null,null,null,null,null,null,null,null,null,null,null,null,null,null,null,null,null,null,null,4582]
[2563,null,null,null,null,null,null,null,null,null,null,null,null,null,null,null,null,null,null,null,null,null,4583]
[2564,null,null,null,null,null,null,null,null,null,null,null,null,null,null,null,null,null,null,null,null,null,4584]
[2565,null,null,null,null,null,null,null,null,null,null,null,null,null,null,null,null,null,null,null,null,null,4585]
[2566,null,null,null,null,null,null,null,null,null,null,null,null,null,null,null,null,null,null,null,null,null,4586]
[2567,null,null,null,null,null,null,null,null,null,null,null,null,null,null,null,null,null,null,null,null,null,4587]
[2568,null,null,null,null,null,null,null,null,null,null,null,null,null,null,null,null,null,null,null,null,null,4588]
[2569,null,null,null,null,null,null,null,null,null,null,null,null,null,null,null,null,null,null,null,null,null,4589]
[2570,null,null,null,null,null,null,null,null,null,null,null,null,null,null,null,null,null,null,null,null,null,4590]
[2571,null,null,null,null,null,null,null,null,null,null,null,null,null,null,null,null,null,null,null,null,null,4591]
[2572,null,null,null,null,null,null,null,null,null,null,null,null,null,null,null,null,null,null,null,null,null,4592]
[2573,null,null,null,null,null,null,null,null,null,null,null,null,null,null,null,null,null,null,null,null,null,4593]
[2574,null,null,null,null,null,null,null,null,null,null,null,null,null,null,null,null,null,null,null,null,null,4594]
[2575,null,null,null,null,null,null,null,null,null,null,null,null,null,null,null,null,null,null,null,null,null,4595]
[2576,null,null,null,null,null,null,null,null,null,null,null,null,null,null,null,null,null,null,null,null,null,4596]
[2577,null,null,null,null,null,null,null,null,null,null,null,null,null,null,null,null,null,null,null,null,null,4597]
[2578,null,null,null,null,null,null,null,null,null,null,null,null,null,null,null,null,null,null,null,null,null,4598]
[2579,null,null,null,null,null,null,null,null,null,null,null,null,null,null,null,null,null,null,null,null,null,4599]
[2580,null,null,null,null,null,null,null,null,null,null,null,null,null,null,null,null,null,null,null,null,null,4600]
[2581,null,null,null,null,null,null,null,null,null,null,null,null,null,null,null,null,null,null,null,null,null,4601]
[2582,null,null,null,null,null,null,null,null,null,null,null,null,null,null,null,null,null,null,null,null,null,4602]
[2583,null,null,null,null,null,null,null,null,null,null,null,null,null,null,null,null,null,null,null,null,null,4603]
[2584,null,null,null,null,null,null,null,null,null,null,null,null,null,null,null,null,null,null,null,null,null,4604]
[2585,null,null,null,null,null,null,null,null,null,null,null,null,null,null,null,null,null,null,null,null,null,4605]
[2586,null,null,null,null,null,null,null,null,null,null,null,null,null,null,null,null,null,null,null,null,null,4606]
[2587,null,null,null,null,null,null,null,null,null,null,null,null,null,null,null,null,null,null,null,null,null,4607]
[2588,null,null,null,null,null,null,null,null,null,null,null,null,null,null,null,null,null,null,null,null,null,4608]
[2589,null,null,null,null,null,null,null,null,null,null,null,null,null,null,null,null,null,null,null,null,null,4609]
[2590,null,null,null,null,null,null,null,null,null,null,null,null,null,null,null,null,null,null,null,null,null,4610]
[2591,null,null,null,null,null,null,null,null,null,null,null,null,null,null,null,null,null,null,null,null,null,4611]
[2592,null,null,null,null,null,null,null,null,null,null,null,null,null,null,null,null,null,null,null,null,null,4612]
[2593,null,null,null,null,null,null,null,null,null,null,null,null,null,null,null,null,null,null,null,null,null,4613]
[2594,null,null,null,null,null,null,null,null,null,null,null,null,null,null,null,null,null,null,null,null,null,4614]
[2595,null,null,null,null,null,null,null,null,null,null,null,null,null,null,null,null,null,null,null,null,null,4615]
[2596,null,null,null,null,null,null,null,null,null,null,null,null,null,null,null,null,null,null,null,null,null,4616]
[2597,null,null,null,null,null,null,null,null,null,null,null,null,null,null,null,null,null,null,null,null,null,4617]
[2598,null,null,null,null,null,null,null,null,null,null,null,null,null,null,null,null,null,null,null,null,null,4618]
[2599,null,null,null,null,null,null,null,null,null,null,null,null,null,null,null,null,null,null,null,null,null,4619]
[2600,null,null,null,null,null,null,null,null,null,null,null,null,null,null,null,null,null,null,null,null,null,4620]
[2601,null,null,null,null,null,null,null,null,null,null,null,null,null,null,null,null,null,null,null,null,null,4621]
[2602,null,null,null,null,null,null,null,null,null,null,null,null,null,null,null,null,null,null,null,null,null,4622]
[2603,null,null,null,null,null,null,null,null,null,null,null,null,null,null,null,null,null,null,null,null,null,4623]
[2604,null,null,null,null,null,null,null,null,null,null,null,null,null,null,null,null,null,null,null,null,null,4624]
[2605,null,null,null,null,null,null,null,null,null,null,null,null,null,null,null,null,null,null,null,null,null,4625]
[2606,null,null,null,null,null,null,null,null,null,null,null,null,null,null,null,null,null,null,null,null,null,4626]
[2607,null,null,null,null,null,null,null,null,null,null,null,null,null,null,null,null,null,null,null,null,null,4627]
[2608,null,null,null,null,null,null,null,null,null,null,null,null,null,null,null,null,null,null,null,null,null,4628]
[2609,null,null,null,null,null,null,null,null,null,null,null,null,null,null,null,null,null,null,null,null,null,4629]
[2610,null,null,null,null,null,null,null,null,null,null,null,null,null,null,null,null,null,null,null,null,null,4630]
[2611,null,null,null,null,null,null,null,null,null,null,null,null,null,null,null,null,null,null,null,null,null,4631]
[2612,null,null,null,null,null,null,null,null,null,null,null,null,null,null,null,null,null,null,null,null,null,4632]
[2613,null,null,null,null,null,null,null,null,null,null,null,null,null,null,null,null,null,null,null,null,null,4633]
[2614,null,null,null,null,null,null,null,null,null,null,null,null,null,null,null,null,null,null,null,null,null,4634]
[2615,null,null,null,null,null,null,null,null,null,null,null,null,null,null,null,null,null,null,null,null,null,4635]
[2616,null,null,null,null,null,null,null,null,null,null,null,null,null,null,null,null,null,null,null,null,null,4636]
[2617,null,null,null,null,null,null,null,null,null,null,null,null,null,null,null,null,null,null,null,null,null,4637]
[2618,null,null,null,null,null,null,null,null,null,null,null,null,null,null,null,null,null,null,null,null,null,4638]
[2619,null,null,null,null,null,null,null,null,null,null,null,null,null,null,null,null,null,null,null,null,null,4639]
[2620,null,null,null,null,null,null,null,null,null,null,null,null,null,null,null,null,null,null,null,null,null,4640]
[2621,null,null,null,null,null,null,null,null,null,null,null,null,null,null,null,null,null,null,null,null,null,4641]
[2622,null,null,null,null,null,null,null,null,null,null,null,null,null,null,null,null,null,null,null,null,null,4642]
[2623,null,null,null,null,null,null,null,null,null,null,null,null,null,null,null,null,null,null,null,null,null,4643]
[2624,null,null,null,null,null,null,null,null,null,null,null,null,null,null,null,null,null,null,null,null,null,4644]
[2625,null,null,null,null,null,null,null,null,null,null,null,null,null,null,null,null,null,null,null,null,null,4645]
[2626,null,null,null,null,null,null,null,null,null,null,null,null,null,null,null,null,null,null,null,null,null,4646]
[2627,null,null,null,null,null,null,null,null,null,null,null,null,null,null,null,null,null,null,null,null,null,4647]
[2628,null,null,null,null,null,null,null,null,null,null,null,null,null,null,null,null,null,null,null,null,null,4648]
[2629,null,null,null,null,null,null,null,null,null,null,null,null,null,null,null,null,null,null,null,null,null,4649]
[2630,null,null,null,null,null,null,null,null,null,null,null,null,null,null,null,null,null,null,null,null,null,4650]
[2631,null,null,null,null,null,null,null,null,null,null,null,null,null,null,null,null,null,null,null,null,null,4651]
[2632,null,null,null,null,null,null,null,null,null,null,null,null,null,null,null,null,null,null,null,null,null,4652]
[2633,null,null,null,null,null,null,null,null,null,null,null,null,null,null,null,null,null,null,null,null,null,4653]
[2634,null,null,null,null,null,null,null,null,null,null,null,null,null,null,null,null,null,null,null,null,null,4654]
[2635,null,null,null,null,null,null,null,null,null,null,null,null,null,null,null,null,null,null,null,null,null,4655]
[2636,null,null,null,null,null,null,null,null,null,null,null,null,null,null,null,null,null,null,null,null,null,4656]
[2637,null,null,null,null,null,null,null,null,null,null,null,null,null,null,null,null,null,null,null,null,null,4657]
[2638,null,null,null,null,null,null,null,null,null,null,null,null,null,null,null,null,null,null,null,null,null,4658]
[2639,null,null,null,null,null,null,null,null,null,null,null,null,null,null,null,null,null,null,null,null,null,4659]
[2640,null,null,null,null,null,null,null,null,null,null,null,null,null,null,null,null,null,null,null,null,null,4660]
[2641,null,null,null,null,null,null,null,null,null,null,null,null,null,null,null,null,null,null,null,null,null,4661]
[2642,null,null,null,null,null,null,null,null,null,null,null,null,null,null,null,null,null,null,null,null,null,4662]
[2643,null,null,null,null,null,null,null,null,null,null,null,null,null,null,null,null,null,null,null,null,null,4663]
[2644,null,null,null,null,null,null,null,null,null,null,null,null,null,null,null,null,null,null,null,null,null,4664]
[2645,null,null,null,null,null,null,null,null,null,null,null,null,null,null,null,null,null,null,null,null,null,4665]
[2646,null,null,null,null,null,null,null,null,null,null,null,null,null,null,null,null,null,null,null,null,null,4666]
[2647,null,null,null,null,null,null,null,null,null,null,null,null,null,null,null,null,null,null,null,null,null,4667]
[2648,null,null,null,null,null,null,null,null,null,null,null,null,null,null,null,null,null,null,null,null,null,4668]
[2649,null,null,null,null,null,null,null,null,null,null,null,null,null,null,null,null,null,null,null,null,null,4669]
[2650,null,null,null,null,null,null,null,null,null,null,null,null,null,null,null,null,null,null,null,null,null,4670]
[2651,null,null,null,null,null,null,null,null,null,null,null,null,null,null,null,null,null,null,null,null,null,4671]
[2652,null,null,null,null,null,null,null,null,null,null,null,null,null,null,null,null,null,null,null,null,null,4672]
[2653,null,null,null,null,null,null,null,null,null,null,null,null,null,null,null,null,null,null,null,null,null,4673]
[2654,null,null,null,null,null,null,null,null,null,null,null,null,null,null,null,null,null,null,null,null,null,4674]
[2655,null,null,null,null,null,null,null,null,null,null,null,null,null,null,null,null,null,null,null,null,null,4675]
[2656,null,null,null,null,null,null,null,null,null,null,null,null,null,null,null,null,null,null,null,null,null,4676]
[2657,null,null,null,null,null,null,null,null,null,null,null,null,null,null,null,null,null,null,null,null,null,4677]
[2658,null,null,null,null,null,null,null,null,null,null,null,null,null,null,null,null,null,null,null,null,null,4678]
[2659,null,null,null,null,null,null,null,null,null,null,null,null,null,null,null,null,null,null,null,null,null,4679]
[2660,null,null,null,null,null,null,null,null,null,null,null,null,null,null,null,null,null,null,null,null,null,4680]
[2661,null,null,null,null,null,null,null,null,null,null,null,null,null,null,null,null,null,null,null,null,null,4681]
[2662,null,null,null,null,null,null,null,null,null,null,null,null,null,null,null,null,null,null,null,null,null,4682]
[2663,null,null,null,null,null,null,null,null,null,null,null,null,null,null,null,null,null,null,null,null,null,4683]
[2664,null,null,null,null,null,null,null,null,null,null,null,null,null,null,null,null,null,null,null,null,null,4684]
[2665,null,null,null,null,null,null,null,null,null,null,null,null,null,null,null,null,null,null,null,null,null,4685]
[2666,null,null,null,null,null,null,null,null,null,null,null,null,null,null,null,null,null,null,null,null,null,4686]
[2667,null,null,null,null,null,null,null,null,null,null,null,null,null,null,null,null,null,null,null,null,null,4687]
[2668,null,null,null,null,null,null,null,null,null,null,null,null,null,null,null,null,null,null,null,null,null,4688]
[2669,null,null,null,null,null,null,null,null,null,null,null,null,null,null,null,null,null,null,null,null,null,4689]
[2670,null,null,null,null,null,null,null,null,null,null,null,null,null,null,null,null,null,null,null,null,null,4690]
[2671,null,null,null,null,null,null,null,null,null,null,null,null,null,null,null,null,null,null,null,null,null,4691]
[2672,null,null,null,null,null,null,null,null,null,null,null,null,null,null,null,null,null,null,null,null,null,4692]
[2673,null,null,null,null,null,null,null,null,null,null,null,null,null,null,null,null,null,null,null,null,null,4693]
[2674,null,null,null,null,null,null,null,null,null,null,null,null,null,null,null,null,null,null,null,null,null,4694]
[2675,null,null,null,null,null,null,null,null,null,null,null,null,null,null,null,null,null,null,null,null,null,4695]
[2676,null,null,null,null,null,null,null,null,null,null,null,null,null,null,null,null,null,null,null,null,null,4696]
[2677,null,null,null,null,null,null,null,null,null,null,null,null,null,null,null,null,null,null,null,null,null,4697]
[2678,null,null,null,null,null,null,null,null,null,null,null,null,null,null,null,null,null,null,null,null,null,4698]
[2679,null,null,null,null,null,null,null,null,null,null,null,null,null,null,null,null,null,null,null,null,null,4699]
[2680,null,null,null,null,null,null,null,null,null,null,null,null,null,null,null,null,null,null,null,null,null,4700]
[2681,null,null,null,null,null,null,null,null,null,null,null,null,null,null,null,null,null,null,null,null,null,4701]
[2682,null,null,null,null,null,null,null,null,null,null,null,null,null,null,null,null,null,null,null,null,null,4702]
[2683,null,null,null,null,null,null,null,null,null,null,null,null,null,null,null,null,null,null,null,null,null,4703]
[2684,null,null,null,null,null,null,null,null,null,null,null,null,null,null,null,null,null,null,null,null,null,4704]
[2685,null,null,null,null,null,null,null,null,null,null,null,null,null,null,null,null,null,null,null,null,null,4705]
[2686,null,null,null,null,null,null,null,null,null,null,null,null,null,null,null,null,null,null,null,null,null,4706]
[2687,null,null,null,null,null,null,null,null,null,null,null,null,null,null,null,null,null,null,null,null,null,4707]
[2688,null,null,null,null,null,null,null,null,null,null,null,null,null,null,null,null,null,null,null,null,null,4708]
[2689,null,null,null,null,null,null,null,null,null,null,null,null,null,null,null,null,null,null,null,null,null,4709]
[2690,null,null,null,null,null,null,null,null,null,null,null,null,null,null,null,null,null,null,null,null,null,4710]
[2691,null,null,null,null,null,null,null,null,null,null,null,null,null,null,null,null,null,null,null,null,null,4711]
[2692,null,null,null,null,null,null,null,null,null,null,null,null,null,null,null,null,null,null,null,null,null,4712]
[2693,null,null,null,null,null,null,null,null,null,null,null,null,null,null,null,null,null,null,null,null,null,4713]
[2694,null,null,null,null,null,null,null,null,null,null,null,null,null,null,null,null,null,null,null,null,null,4714]
[2695,null,null,null,null,null,null,null,null,null,null,null,null,null,null,null,null,null,null,null,null,null,4715]
[2696,null,null,null,null,null,null,null,null,null,null,null,null,null,null,null,null,null,null,null,null,null,4716]
[2697,null,null,null,null,null,null,null,null,null,null,null,null,null,null,null,null,null,null,null,null,null,4717]
[2698,null,null,null,null,null,null,null,null,null,null,null,null,null,null,null,null,null,null,null,null,null,4718]
[2699,null,null,null,null,null,null,null,null,null,null,null,null,null,null,null,null,null,null,null,null,null,4719]
[2700,null,null,null,null,null,null,null,null,null,null,null,null,null,null,null,null,null,null,null,null,null,4720]
[2701,null,null,null,null,null,null,null,null,null,null,null,null,null,null,null,null,null,null,null,null,null,4721]
[2702,null,null,null,null,null,null,null,null,null,null,null,null,null,null,null,null,null,null,null,null,null,4722]
[2703,null,null,null,null,null,null,null,null,null,null,null,null,null,null,null,null,null,null,null,null,null,4723]
[2704,null,null,null,null,null,null,null,null,null,null,null,null,null,null,null,null,null,null,null,null,null,4724]
[2705,null,null,null,null,null,null,null,null,null,null,null,null,null,null,null,null,null,null,null,null,null,4725]
[2706,null,null,null,null,null,null,null,null,null,null,null,null,null,null,null,null,null,null,null,null,null,4726]
[2707,null,null,null,null,null,null,null,null,null,null,null,null,null,null,null,null,null,null,null,null,null,4727]
[2708,null,null,null,null,null,null,null,null,null,null,null,null,null,null,null,null,null,null,null,null,null,4728]
[2709,null,null,null,null,null,null,null,null,null,null,null,null,null,null,null,null,null,null,null,null,null,4729]
[2710,null,null,null,null,null,null,null,null,null,null,null,null,null,null,null,null,null,null,null,null,null,4730]
[2711,null,null,null,null,null,null,null,null,null,null,null,null,null,null,null,null,null,null,null,null,null,4731]
[2712,null,null,null,null,null,null,null,null,null,null,null,null,null,null,null,null,null,null,null,null,null,4732]
[2713,null,null,null,null,null,null,null,null,null,null,null,null,null,null,null,null,null,null,null,null,null,4733]
[2714,null,null,null,null,null,null,null,null,null,null,null,null,null,null,null,null,null,null,null,null,null,4734]
[2715,null,null,null,null,null,null,null,null,null,null,null,null,null,null,null,null,null,null,null,null,null,4735]
[2716,null,null,null,null,null,null,null,null,null,null,null,null,null,null,null,null,null,null,null,null,null,4736]
[2717,null,null,null,null,null,null,null,null,null,null,null,null,null,null,null,null,null,null,null,null,null,4737]
[2718,null,null,null,null,null,null,null,null,null,null,null,null,null,null,null,null,null,null,null,null,null,4738]
[2719,null,null,null,null,null,null,null,null,null,null,null,null,null,null,null,null,null,null,null,null,null,4739]
[2720,null,null,null,null,null,null,null,null,null,null,null,null,null,null,null,null,null,null,null,null,null,4740]
[2721,null,null,null,null,null,null,null,null,null,null,null,null,null,null,null,null,null,null,null,null,null,4741]
[2722,null,null,null,null,null,null,null,null,null,null,null,null,null,null,null,null,null,null,null,null,null,4742]
[2723,null,null,null,null,null,null,null,null,null,null,null,null,null,null,null,null,null,null,null,null,null,4743]
[2724,null,null,null,null,null,null,null,null,null,null,null,null,null,null,null,null,null,null,null,null,null,4744]
[2725,null,null,null,null,null,null,null,null,null,null,null,null,null,null,null,null,null,null,null,null,null,4745]
[2726,null,null,null,null,null,null,null,null,null,null,null,null,null,null,null,null,null,null,null,null,null,4746]
[2727,null,null,null,null,null,null,null,null,null,null,null,null,null,null,null,null,null,null,null,null,null,4747]
[2728,null,null,null,null,null,null,null,null,null,null,null,null,null,null,null,null,null,null,null,null,null,4748]
[2729,null,null,null,null,null,null,null,null,null,null,null,null,null,null,null,null,null,null,null,null,null,4749]
[2730,null,null,null,null,null,null,null,null,null,null,null,null,null,null,null,null,null,null,null,null,null,4750]
[2731,null,null,null,null,null,null,null,null,null,null,null,null,null,null,null,null,null,null,null,null,null,4751]
[2732,null,null,null,null,null,null,null,null,null,null,null,null,null,null,null,null,null,null,null,null,null,4752]
[2733,null,null,null,null,null,null,null,null,null,null,null,null,null,null,null,null,null,null,null,null,null,4753]
[2734,null,null,null,null,null,null,null,null,null,null,null,null,null,null,null,null,null,null,null,null,null,4754]
[2735,null,null,null,null,null,null,null,null,null,null,null,null,null,null,null,null,null,null,null,null,null,4755]
[2736,null,null,null,null,null,null,null,null,null,null,null,null,null,null,null,null,null,null,null,null,null,4756]
[2737,null,null,null,null,null,null,null,null,null,null,null,null,null,null,null,null,null,null,null,null,null,4757]
[2738,null,null,null,null,null,null,null,null,null,null,null,null,null,null,null,null,null,null,null,null,null,4758]
[2739,null,null,null,null,null,null,null,null,null,null,null,null,null,null,null,null,null,null,null,null,null,4759]
[2740,null,null,null,null,null,null,null,null,null,null,null,null,null,null,null,null,null,null,null,null,null,4760]
[2741,null,null,null,null,null,null,null,null,null,null,null,null,null,null,null,null,null,null,null,null,null,4761]
[2742,null,null,null,null,null,null,null,null,null,null,null,null,null,null,null,null,null,null,null,null,null,4762]
[2743,null,null,null,null,null,null,null,null,null,null,null,null,null,null,null,null,null,null,null,null,null,4763]
[2744,null,null,null,null,null,null,null,null,null,null,null,null,null,null,null,null,null,null,null,null,null,4764]
[2745,null,null,null,null,null,null,null,null,null,null,null,null,null,null,null,null,null,null,null,null,null,4765]
[2746,null,null,null,null,null,null,null,null,null,null,null,null,null,null,null,null,null,null,null,null,null,4766]
[2747,null,null,null,null,null,null,null,null,null,null,null,null,null,null,null,null,null,null,null,null,null,4767]
[2748,null,null,null,null,null,null,null,null,null,null,null,null,null,null,null,null,null,null,null,null,null,4768]
[2749,null,null,null,null,null,null,null,null,null,null,null,null,null,null,null,null,null,null,null,null,null,4769]
[2750,null,null,null,null,null,null,null,null,null,null,null,null,null,null,null,null,null,null,null,null,null,4770]
[2751,null,null,null,null,null,null,null,null,null,null,null,null,null,null,null,null,null,null,null,null,null,4771]
[2752,null,null,null,null,null,null,null,null,null,null,null,null,null,null,null,null,null,null,null,null,null,4772]
[2753,null,null,null,null,null,null,null,null,null,null,null,null,null,null,null,null,null,null,null,null,null,4773]
[2754,null,null,null,null,null,null,null,null,null,null,null,null,null,null,null,null,null,null,null,null,null,4774]
[2755,null,null,null,null,null,null,null,null,null,null,null,null,null,null,null,null,null,null,null,null,null,4775]
[2756,null,null,null,null,null,null,null,null,null,null,null,null,null,null,null,null,null,null,null,null,null,4776]
[2757,null,null,null,null,null,null,null,null,null,null,null,null,null,null,null,null,null,null,null,null,null,4777]
[2758,null,null,null,null,null,null,null,null,null,null,null,null,null,null,null,null,null,null,null,null,null,4778]
[2759,null,null,null,null,null,null,null,null,null,null,null,null,null,null,null,null,null,null,null,null,null,4779]
[2760,null,null,null,null,null,null,null,null,null,null,null,null,null,null,null,null,null,null,null,null,null,4780]
[2761,null,null,null,null,null,null,null,null,null,null,null,null,null,null,null,null,null,null,null,null,null,4781]
[2762,null,null,null,null,null,null,null,null,null,null,null,null,null,null,null,null,null,null,null,null,null,4782]
[2763,null,null,null,null,null,null,null,null,null,null,null,null,null,null,null,null,null,null,null,null,null,4783]
[2764,null,null,null,null,null,null,null,null,null,null,null,null,null,null,null,null,null,null,null,null,null,4784]
[2765,null,null,null,null,null,null,null,null,null,null,null,null,null,null,null,null,null,null,null,null,null,4785]
[2766,null,null,null,null,null,null,null,null,null,null,null,null,null,null,null,null,null,null,null,null,null,4786]
[2767,null,null,null,null,null,null,null,null,null,null,null,null,null,null,null,null,null,null,null,null,null,4787]

{"sheet":"Training","index":5,"n_rows":18,"n_cols":14,"rows_kept":18,"cut":false,"hidden":false,"merged":[[14,1,14,13],[15,1,15,13],[16,1,16,13],[17,1,17,13],[1,6,1,7],[1,2,1,3],[13,1,13,11],[4,4,4,8],[4,9,4,13]]}
["Back to Index page"]
[null,"COUNTRY",null,null,null,null,"Date [dd/mm/yyyy]:"]
[]
[null,"Template for Refrigerator/ Freezer maintenance and or RTMD Trainings"]
[null,null,null,null,"Intial (first round) training",null,null,null,null,"A follow-up (2nd round ) refreshing training"]
[null,"Type of Training","Indicative Timeline","Training Language","Implementation year 1","Training Location (City and Address)","1st training # of participants","Participant Profile","1st # of training ","Implementation year 2","Training Location (City and Address)","2nd training # of participants","Participant Profile","2nd # of  training"]
[1,"In-person refrigerators and freezers installation, maintenance, and repair Central Training (ToT).","5 days",null,null,null,null,null,{"$f":"ROUNDUP(G7/20,0)","v":0},null,null,null,null,{"$f":"ROUNDUP(L7/20,0)","v":0}]
[2,"In-person RTMD system, technician and general  trainings on Refrigerators and freezers ( ToT).","3 days",null,null,null,null,null,{"$f":"ROUNDUP(G8/20,0)","v":0},null,null,null,null,0]
[3,"Remote RTMD system, technician and general  trainings on Refrigerators and freezers.","2 days",null,null,null,null,null,{"$f":"ROUNDUP(G9/20,0)","v":0},null,null,null,null,0]
[4,"In-person RTMD system, technician and general  Central training on WICRs/WIFRs.","3 dyas",null,null,null,null,null,{"$f":"ROUNDUP(G10/20,0)","v":0},null,null,null,null,0]
[5,"Remote RTMD system, technician and general  Central training on WICRs/WIFRs.","2 days",null,null,null,null,null,0,null,null,null,null,0]
[]
[null,"Note:"]
[null,"Refrigerator and freezer installation, maintenance and repair training: This training is Training or Traininers ( ToT) conducted in-person at the Central Level for a maximum of 20 participatns."]
[null,"System Administrator Training : The supplier trains system administrators in system administration, setup, operation, troubleshooting, maintenance, interpreting data, and training of further system administrators and operators. As most IT type users maintain general user profiles and system setup while also being able to access and interpret data, only a limited number of system administrators need to be trained. Classroom-based theoretical session. There is a suggestion that a maximum of five staff be trained in this area."]
[null,"Technician Training: The supplier trains country technicians on the proper installation of the RTM system, system administration, setup, operation, troubleshooting, maintenance, interpretation of data, and training of further technicians, system administrators, and operators.  Comprehensive classroom instruction."]
[null,"General Operation Training:  A supplier trains system operators and logisticians on system operation, data interpretation, and basic troubleshooting and maintenance These users will be the general users of the system. Detailed theoretical session in classroom format."]
[null,"Determining number of training: In-person and remote training sessions are limited to 20 participants. You can divide the number of participants by 20 before setting the number of trainings if the number increases. participants by 20 before setting the number of trainings."]

{"sheet":"DroDown","index":6,"n_rows":34,"n_cols":32,"rows_kept":34,"cut":false,"hidden":true,"merged":[]}
[]
[null,"Supply Chain Level",null,"Key for deployment",null,"CCE Manufacturer",null,"CCE Type",null,"Power source",null,"Storage volume Category ",null,"Response",null,"Road quality",null,"Special Access",null,"Plug type",null,"Voltage Supply",null,"Solar Panel mounting type",null,"Approval year",null,"#",null,"Roof type",null,"Refrigerators RTMD Manufacturer & Model"]
[null,"National/Central",null,"Extension Electric",null,"Aucma",null,"Refrigerator",null,"SDD",null,"<60L",null,"Yes",null,"Fully Paved",null,"Boat",null,"A",null,"100V",null,"Pole",null,2021,null,0,null,"Steel",null,"Ikhaya VM1000"]
[null,"Provincial/Regional",null,"Extension Solar",null,"B Medical",null,"Vaccine /waterpack Freezer",null,"On-grid",null,"≤60L",null,"No",null,"Partially Paved",null,"River Crossing",null,"B",null,"110V",null,"Roof",null,{"$f":"Z3+1","v":2022},null,1,null,"Straw",null,"Nexleaf ColdTrace 5"]
[null,"District",null,"Replacement Electric",null,"Dulas",null,"Waterpack Freezer",null,null,null,"≥60, <120L",null,null,null,"Dirt Road (Good Quality)",null,"Footpath Access Only",null,"C",null,"115V",null,"Ground",null,{"$f":"Z4+1","v":2023},null,2,null,"Concrete",null,"Berlinger Fridge-tag 3"]
[null,"Service Point",null,"Replacement Solar",null,"Godrej & Boyce ",null,"Combined\n Refrig./Freezer",null,null,null,"≥120L",null,null,null,"Dirt Road (Rough)",null,"Other",null,"D",null,"120V",null,"Not Applicable",null,2024,null,3,null,"Tiles",null,"Haier U-Cool "]
[null,null,null,"Expansion Electric",null,"Haier",null,null,null,null,null,"<120L Gross",null,null,null,null,null,"Not required",null,"E",null,"127V",null,null,null,2025,null,4,null,"Not Applicable",null,"Beyond Wireless ICE3 BC141"]
[null,null,null,"Expansion Solar",null,"Coolfinity",null,null,null,null,null,"<150L Gross",null,null,null,null,null,null,null,"F",null,"220V",null,null,null,2026,null,5,null,null,null,"Other"]
[null,null,null,null,null,"Vestfrost",null,null,null,null,null,"≥150L gross",null,null,null,null,null,null,null,"G",null,"230V",null,null,null,2027,null,6,null,null,null,"Not Defined"]
[null,null,null,null,null,null,null,null,null,null,null,null,null,null,null,null,null,null,null,"H",null,"240V",null,null,null,2028,null,7]
[null,null,null,null,null,null,null,null,null,null,null,null,null,null,null,null,null,null,null,"I",null,"N/A",null,null,null,2029,null,8]
[null,null,null,null,null,null,null,null,null,null,null,null,null,null,null,null,null,null,null,"J",null,null,null,null,null,null,null,9]
[null,null,null,null,null,null,null,null,null,null,null,null,null,null,null,null,null,null,null,"K",null,null,null,null,null,null,null,10]
[null,null,null,null,null,null,null,null,null,null,null,null,null,null,null,null,null,null,null,"L",null,null,null,null,null,null,null,11]
[null,null,null,null,null,null,null,null,null,null,null,null,null,null,null,null,null,null,null,"M",null,null,null,null,null,null,null,12]
[null,null,null,null,null,null,null,null,null,null,null,null,null,null,null,null,null,null,null,"N",null,null,null,null,null,null,null,13,null,null,null,"WICR/FR RTMD Manufacturer & Model"]
[null,null,null,null,null,null,null,null,null,null,null,null,null,null,null,null,null,null,null,"N/A",null,null,null,null,null,null,null,14,null,null,null,"Beyond Wireless ICE3 BC141 (1 WICR)"]
[null,null,null,null,null,null,null,null,null,null,null,null,null,null,null,null,null,null,null,null,null,null,null,null,null,null,null,15,null,null,null,"Beyond Wireless ICE3 EXTRA BC440 (2 WICRs)"]
[null,null,null,null,null,null,null,null,null,null,null,null,null,null,null,null,null,null,null,null,null,null,null,null,null,null,null,16,null,null,null,"Beyond Wireless ICE3 EXTRA BC440 (3 WICRs)"]
[null,"SIM card type",null,"Period of subscription",null,"Dashboard language:  ",null,"Installation & training service",null,"Training format",null,"RTMD type",null,"Frequency",null,"What type of RTMD training required?",null,"What type of RTMD training required?",null,null,null,null,null,null,null,null,null,17,null,null,null,"Haier U-cool LoRa  (1 WICR)"]
[null,"Global (Supplier managed)",null,"3 Years",null,"Arabic",null,"Remote training only",null,"On-site trainer",null,"Integrated",null,"50Hz",null,"Central (in person)",null,"Central (in-person)",null,null,null,null,null,null,null,null,null,18,null,null,null,"Haier U-cool LoRa  (2 WICRs)"]
[null,"Local (MoH managed)",null,null,null,"English",null,"On-site training only",null,"Remote traner",null,"Standalone",null,"60Hz",null,"Remote",null,"Remote",null,null,null,null,null,null,null,null,null,19,null,null,null,"Haier U-cool LoRa  (3 WICRs)"]
[null,null,null,null,null,"French",null,"Installation only",null,null,null,"Any",null,"Not applicable",null,"On-site (at installation site)",null,"No training",null,null,null,null,null,null,null,null,null,20,null,null,null,"Ikhaya VM1000 (1WICR)"]
[null,null,null,null,null,"Portuguese",null,"Installation and remote training",null,null,null,null,null,null,null,"No training",null,null,null,null,null,null,null,null,null,null,null,null,null,null,null,"Ikhaya VM1000 (2 WICRs)"]
[null,null,null,null,null,"Russian",null,"Installation and on-site training",null,null,null,null,null,null,null,null,null,null,null,null,null,null,null,null,null,null,null,null,null,null,null,"Other"]
[null,null,null,null,null,"Spanish",null,"No installation and no training"]
[]
[null,null,null,"Key for WICR deployment",null,"WICR/FR Type",null,"WICR location",null,"Language",null,"Mainteance"]
[null,null,null,"Replacement",null,"Walk-in cold room",null,"Same building  within 15 meters distance",null,"Arabic",null,"Central (in-person)"]
[null,null,null,"Expansion",null,"Walk-in freezer room",null,"Same building  15 mtrs and more apart",null,"English",null,"No training"]
[null,null,null,"Extension",null,"Comb. WICR/WIFR",null,"Separate building",null,"French"]
[null,null,null,null,null,null,null,"Not Applicable",null,"Portuguese"]
[null,null,null,null,null,null,null,null,null,"Russian"]
[null,null,null,null,null,null,null,null,null,"Spanish"]

{"sheet":"Spares, TMDs & VRs","index":7,"n_rows":29,"n_cols":7,"rows_kept":29,"cut":false,"hidden":false,"merged":[[1,1,1,4],[3,2,3,3],[4,2,4,3],[5,2,5,3]]}
["Back to Index page"]
[null,"SPARES, TMDs & VRs LIST- Central Location"]
[]
[null,"Consignee Address "]
[null,"Contact Name"]
[null,"Contact Number"]
[]
[null,"Description/ Type","Manufacturer","Model","PQS code","unit of measurment","Qty"]
[]
[]
[]
[]
[]
[]
[]
[]
[]
[]
[]
[]
[]
[]
[]
[]
[]
[null,"Note: "]
[null,"1. Refrigerators are bundled with voltage regulators (VR) & Temperature Monitoring Device (TMDs). This template is for ADDITIONAL VRs and TMDs, as well as spare parts"]
[null,"2. Spares must be procured as a kit. For every 10 refrigerators procured 1 spare kit can be ordered - see UNICEF Supply catalogue for details"]
[null,"link to unicef web catalogue"]

{"sheet":"PMT Contact Details","index":8,"n_rows":16,"n_cols":6,"rows_kept":16,"cut":false,"hidden":false,"merged":[[1,1,1,5]]}
["Back to Index page"]
[null,"Project  Management Team (as endorsed by the ICC)"]
[]
[null,"Function","Name","Organisation","Email","Mobile"]
[1,"Chairperson"]
[2,"Member"]
[3]
[4]
[5]
[6]
[7]
[8]
[9]
[10]
[11]
[12]

{"sheet":"PMT_briefings","index":9,"n_rows":22,"n_cols":9,"rows_kept":22,"cut":false,"hidden":false,"merged":[[1,2,1,5],[3,2,3,3],[4,2,4,3],[5,2,5,3],[20,1,20,7]]}
["Back to Index page"]
[null,null,"PMT Briefings list of participants"]
[]
[null,"MoH Training Coordinator Name"]
[null,"MoH Training Coordinator Contact Details"]
[null,"Training Location Address"]
[]
[null,"Name of participant","Designation","Contact details","Number of days","DSA rate","Terminals","Transport","Total Costs"]
[null,null,null,null,7,25000,15000,7000,{"$f":"(E9*F9)+G9+H9","v":197000}]
[null,null,null,null,null,null,null,null,{"$f":"(E10*F10)+G10+H10","v":0}]
[null,null,null,null,null,null,null,null,0]
[null,null,null,null,null,null,null,null,0]
[null,null,null,null,null,null,null,null,0]
[null,null,null,null,null,null,null,null,0]
[null,null,null,null,null,null,null,null,0]
[null,null,null,null,null,null,null,null,0]
[null,null,null,null,null,null,null,null,0]
[null,null,null,null,null,null,null,null,0]
[null,null,null,null,null,null,null,null,0]
[null,null,null,null,null,null,null,null,0]
[null,"Total",null,null,null,null,null,null,{"$f":"SUM(I9:I20)","v":197000}]
[null,"Note: DSA & travel costs are for MoH's account"]

{"sheet":"Customs","index":10,"n_rows":12,"n_cols":4,"rows_kept":12,"cut":false,"hidden":false,"merged":[[1,1,1,3]]}
["Back to Index page"]
[null,"Local Customs Documentation & Requirements"]
[]
[null,"Activity","Information required","PMT inputs"]
[null,"Customs Clearance Process","Clearly define the customs clearance process in your country. Please be as detailed as possible"]
[null,"Clearance Documentation","Identify the customs documentation required to import cold chain equipment, including pre-clearance & pre-import permits"]
[null,"Import Waivers","Indicate and attach all customs and duty waivers required to import CCE OP equipment"]
[null,"Tax clearance","Attach the tax clearance from Ministry of Finance to import CCE OP equipment (including VAT or any other tax)"]
[null,"Duty Stamps & Fees","Indicate which duty stamps and any other taxes or fees that need to be paid upon clearance and indicate source of funding"]
[null,"Warehousing","Indicate whether customs can provide warehousing for CCE at no charge"]
[null,"Clearing Agent Fees","Indicate that MoH has budgeted for this and assigned a clearing agent"]
[null,"Demurrage,detention or  port/terminal storage charges","Charges related to this are for governments account. PMT to indicate that they have made the necessary authorities aware of the project and taken all steps to mititgate risk and unnecessary charges"]

{"sheet":"Deviation Protocol","index":11,"n_rows":17,"n_cols":11,"rows_kept":17,"cut":false,"hidden":false,"merged":[[1,1,1,5],[3,1,3,5]]}
["Back to Index page"]
[null,"DEVIATION PROTOCOL"]
[]
[null,"AUTHORITY & COMMUNICATION",null,null,null,null,null,"RISK MANAGEMENT FRAMEWORK"]
[null,"Province","District","Officer Designated to authorise changes in installation sites","Designated Officers Mobile Number","Designated Officers Email Address",null,"Risk","Probability","Impact","Management Strategy"]
[null,null,null,null,null,null,null,"Customs clearance documentation not in place","Medium","High","Liaise with Customs Officials and ensure all documentation is in place"]
[null,null,null,null,null,null,null,"Clearing agent not assigned","Medium","High","Liaise with MoH and ensure a clearing agent is assigned before arrival of goods"]
[null,null,null,null,null,null,null,"Goods damaged/stolen in transit","Low","High","Insure goods & advise on routes that are low risk"]
[null,null,null,null,null,null,null,"CCE deployed to incorrect site","Medium","High","Ensure submission of an accurate deployment plan"]
[null,null,null,null,null,null,null," Site inaccessible","Medium","High","Ensure submission of an accurate deployment plan"]
[null,null,null,null,null,null,null,"Site in a security compromised area","Medium","High","Ensure submission of an accurate deployment plan"]
[null,null,null,null,null,null,null,"Equipment delivered after hours","Low","Medium","Liaise with vendor on operating hours of facilities"]
[null,null,null,null,null,null,null,"Facility closed when CCE delivered","Low","High","Liaise with vendor on operating hours of facilities"]
[null,null,null,null,null,null,null,"Appropriate staff not available for training","Medium","High","Ensure HWs are aware of when vendors will be doing the installation & training"]
[null,null,null,null,null,null,null,"Roofing cannot hold solar panels (SDDs)","Medium","High","Ensure a quality HF assessment"]
[null,null,null,null,null,null,null,"No electrical sockets available (ILRs)","Medium","High","Ensure a quality HF assessment"]
[null,null,null,null,null,null,null,"Site already has a functional vaccine refrigerator","Low","High","Ensure a quality HF assessment"]

{"sheet":"Plugs","index":12,"n_rows":7,"n_cols":3,"rows_kept":7,"cut":false,"hidden":false,"merged":[]}
["Back to Index page"]
[null,"Plugs","Use this information to complete column Z in the ODP tab"]
[]
[null,"Instructions:"]
[null,"Click on the link below and select the plug and socket type from the infographic provided"]
[]
[null,"http://www.iec.ch/worldplugs/map.htm"]